Workbook

Sheet Avantages perçus
A1: Bénéficiaire | B1: Type de bénéficiaire | C1: Entreprise | D1: Date | E1: Nature | F1: Montant
A2: Jérôme FANNIUS | B2: Médecin | C2: MSD France | D2: 14/02/2012 | E2: HOSPITALITÉ | F2: 16
A3: Jérôme FANNIUS | B3: Médecin | C3: PIERRE FABRE MEDICAMENT | D3: 22/03/2012 | E3: Restauration | F3: 19
A4: Jérôme FANNIUS | B4: Médecin | C4: PIERRE FABRE MEDICAMENT | D4: 2012-09-06 | E4: Restauration | F4: 27
A5: Jérôme FANNIUS | B5: Médecin | C5: AbbVie | D5: 2012-12-11 | E5: AUTRE : [HOSPITALITE] | F5: 55
A6: Jérôme FANNIUS | B6: Médecin | C6: AbbVie | D6: 14/12/2012 | E6: AUTRE : [HOSPITALITE] | F6: 48
A7: Jérôme FANNIUS | B7: Médecin | C7: PIERRE FABRE MEDICAMENT | D7: 31/01/2013 | E7: Restauration | F7: 18
A8: Jérôme FANNIUS | B8: Médecin | C8: AbbVie | D8: 2013-02-05 | E8: AUTRE : [HOSPITALITE] | F8: 60
A9: Jérôme FANNIUS | B9: Médecin | C9: AbbVie | D9: 2013-04-04 | E9: AUTRE : [HOSPITALITE] | F9: 58
A10: Jérôme FANNIUS | B10: Médecin | C10: AbbVie | D10: 18/04/2013 | E10: AUTRE : [HOSPITALITE] | F10: 58
A11: Jérôme FANNIUS | B11: Médecin | C11: MSD France | D11: 16/05/2013 | E11: HOSPITALITÉ | F11: 20
A12: Jérôme FANNIUS | B12: Médecin | C12: PIERRE FABRE MEDICAMENT | D12: 14/06/2013 | E12: Restauration | F12: 31
A13: Jérôme FANNIUS | B13: Médecin | C13: AbbVie | D13: 2013-07-04 | E13: Repas | F13: 48
A14: Jérôme FANNIUS | B14: Médecin | C14: TRB CHEMEDICA | D14: 2013-09-03 | E14: CADEAUX | F14: 117
A15: Jérôme FANNIUS | B15: Médecin | C15: PIERRE FABRE MEDICAMENT | D15: 2013-09-05 | E15: RESTAURATION | F15: 36
A16: Jérôme FANNIUS | B16: Médecin | C16: UCB Pharma SA | D16: 2013-09-12 | E16: Repas | F16: 24
A17: Jérôme FANNIUS | B17: Médecin | C17: SANDOZ | D17: 24/09/2013 | E17: REPAS | F17: 50
A18: Jérôme FANNIUS | B18: Médecin | C18: BIOCODEX | D18: 26/09/2013 | E18: REPAS | F18: 32
A19: Jérôme FANNIUS | B19: Médecin | C19: BIOCODEX | D19: 2013-10-03 | E19: REPAS | F19: 55
A20: Jérôme FANNIUS | B20: Médecin | C20: AbbVie | D20: 2013-10-10 | E20: Repas | F20: 31
A21: Jérôme FANNIUS | B21: Médecin | C21: AMGEN SAS | D21: 17/10/2013 | E21: REPAS IMPROMPTU | F21: 46
A22: Jérôme FANNIUS | B22: Médecin | C22: MSD France | D22: 23/10/2013 | E22: REPAS | F22: 51
A23: Jérôme FANNIUS | B23: Médecin | C23: PIERRE FABRE MEDICAMENT | D23: 2013-11-07 | E23: RESTAURATION | F23: 41
A24: Jérôme FANNIUS | B24: Médecin | C24: BIOCODEX | D24: 2013-11-12 | E24: REPAS | F24: 44
A25: Jérôme FANNIUS | B25: Médecin | C25: PIERRE FABRE MEDICAMENT | D25: 21/11/2013 | E25: RESTAURATION | F25: 32
A26: Jérôme FANNIUS | B26: Médecin | C26: Genzyme | D26: 27/11/2013 | E26: Frais d'inscription à une réunion scientifique | F26: 490
A27: Jérôme FANNIUS | B27: Médecin | C27: ROTTAPHARM SAS | D27: 28/11/2013 | E27: DEJEUNER | F27: 32
A28: Jérôme FANNIUS | B28: Médecin | C28: AbbVie | D28: 2013-12-02 | E28: Repas | F28: 58
A29: Jérôme FANNIUS | B29: Médecin | C29: PFIZER SAS | D29: 2013-12-03 | E29: AUTRE: INSCRIPTION | F29: 450
A30: Jérôme FANNIUS | B30: Médecin | C30: AbbVie | D30: 2013-12-12 | E30: REPAS | F30: 59
A31: Jérôme FANNIUS | B31: Médecin | C31: AbbVie | D31: 17/12/2013 | E31: REPAS | F31: 53
A32: Jérôme FANNIUS | B32: Médecin | C32: MSD France | D32: 19/12/2013 | E32: REPAS | F32: 39
A33: Jérôme FANNIUS | B33: Médecin | C33: Lilly France SAS | D33: 23/01/2014 | E33: REPAS | F33: 34
A34: Jérôme FANNIUS | B34: Médecin | C34: Lilly France SAS | D34: 23/01/2014 | E34: REPAS | F34: 34
A35: Jérôme FANNIUS | B35: Médecin | C35: SANOFI AVENTIS FRANCE | D35: 30/01/2014 | E35: Repas | F35: 40
A36: Jérôme FANNIUS | B36: Médecin | C36: ABBOTT PRODUCTS SAS | D36: 2014-02-06 | E36: REPAS | F36: 58
A37: Jérôme FANNIUS | B37: Médecin | C37: AMGEN SAS | D37: 2014-03-06 | E37: REPAS IMPROMPTU | F37: 38
A38: Jérôme FANNIUS | B38: Médecin | C38: Lilly France SAS | D38: 14/03/2014 | E38: TRANSPORT | F38: 141
A39: Jérôme FANNIUS | B39: Médecin | C39: Lilly France SAS | D39: 15/03/2014 | E39: TRANSPORT | F39: 43
A40: Jérôme FANNIUS | B40: Médecin | C40: Lilly France SAS | D40: 15/03/2014 | E40: TRANSPORT | F40: 141
A41: Jérôme FANNIUS | B41: Médecin | C41: Lilly France SAS | D41: 15/03/2014 | E41: HÉBERGEMENT | F41: 104
A42: Jérôme FANNIUS | B42: Médecin | C42: Lilly France SAS | D42: 15/03/2014 | E42: TRANSPORT | F42: 43
A43: Jérôme FANNIUS | B43: Médecin | C43: Lilly France SAS | D43: 15/03/2014 | E43: HÉBERGEMENT | F43: 104
A44: Jérôme FANNIUS | B44: Médecin | C44: Lilly France SAS | D44: 15/03/2014 | E44: TRANSPORT | F44: 43
A45: Jérôme FANNIUS | B45: Médecin | C45: Lilly France SAS | D45: 15/03/2014 | E45: REPAS | F45: 142
A46: Jérôme FANNIUS | B46: Médecin | C46: CROMA | D46: 19/03/2014 | E46: Restauration | F46: 33
A47: Jérôme FANNIUS | B47: Médecin | C47: ROTTAPHARM SAS | D47: 27/03/2014 | E47: DEJEUNER | F47: 33
A48: Jérôme FANNIUS | B48: Médecin | C48: Lilly France SAS | D48: 28/03/2014 | E48: HÉBERGEMENT | F48: 165
A49: Jérôme FANNIUS | B49: Médecin | C49: Lilly France SAS | D49: 28/03/2014 | E49: TRANSPORT | F49: 135
A50: Jérôme FANNIUS | B50: Médecin | C50: Lilly France SAS | D50: 28/03/2014 | E50: TRANSPORT | F50: 13
A51: Jérôme FANNIUS | B51: Médecin | C51: Lilly France SAS | D51: 28/03/2014 | E51: REPAS | F51: 60
A52: Jérôme FANNIUS | B52: Médecin | C52: Lilly France SAS | D52: 28/03/2014 | E52: REPAS | F52: 38
A53: Jérôme FANNIUS | B53: Médecin | C53: Lilly France SAS | D53: 29/03/2014 | E53: TRANSPORT | F53: 18
A54: Jérôme FANNIUS | B54: Médecin | C54: Lilly France SAS | D54: 29/03/2014 | E54: REPAS | F54: 38
A55: Jérôme FANNIUS | B55: Médecin | C55: Lilly France SAS | D55: 29/03/2014 | E55: TRANSPORT | F55: 135
A56: Jérôme FANNIUS | B56: Médecin | C56: PFIZER SAS | D56: 2014-04-12 | E56: HEBERGEMENT | F56: 180
A57: Jérôme FANNIUS | B57: Médecin | C57: PFIZER SAS | D57: 2014-04-12 | E57: TRANSPORT | F57: 473
A58: Jérôme FANNIUS | B58: Médecin | C58: PFIZER SAS | D58: 2014-04-12 | E58: REPAS | F58: 141
A59: Jérôme FANNIUS | B59: Médecin | C59: MENARINI FRANCE | D59: 17/04/2014 | E59: Autre : [Restauration] | F59: 30
A60: Jérôme FANNIUS | B60: Médecin | C60: PIERRE FABRE MEDICAMENT | D60: 24/04/2014 | E60: RESTAURATION | F60: 38
A61: Jérôme FANNIUS | B61: Médecin | C61: AbbVie | D61: 15/05/2014 | E61: REPAS | F61: 44
A62: Jérôme FANNIUS | B62: Médecin | C62: PFIZER SAS | D62: 20/05/2014 | E62: REPAS | F62: 59
A63: Jérôme FANNIUS | B63: Médecin | C63: CROMA | D63: 22/05/2014 | E63: Restauration | F63: 42
A64: Jérôme FANNIUS | B64: Médecin | C64: AbbVie | D64: 23/05/2014 | E64: REPAS | F64: 60
A65: Jérôme FANNIUS | B65: Médecin | C65: AbbVie | D65: 23/05/2014 | E65: HEBERGEMENT | F65: 200
A66: Jérôme FANNIUS | B66: Médecin | C66: AbbVie | D66: 23/05/2014 | E66: AUTRE : [PAUSE] | F66: 10
A67: Jérôme FANNIUS | B67: Médecin | C67: AbbVie | D67: 24/05/2014 | E67: AUTRE : [PAUSE] | F67: 10
A68: Jérôme FANNIUS | B68: Médecin | C68: AbbVie | D68: 24/05/2014 | E68: REPAS | F68: 42
A69: Jérôme FANNIUS | B69: Médecin | C69: BOSTON SCIENTIFIC SAS | D69: 2014-06-11 | E69: REPAS | F69: 47
A70: Jérôme FANNIUS | B70: Médecin | C70: BRISTOL-MYERS SQUIBB | D70: 19/06/2014 | E70: Repas | F70: 35
A71: Jérôme FANNIUS | B71: Médecin | C71: BIOCODEX | D71: 2014-07-03 | E71: REPAS | F71: 53
A72: Jérôme FANNIUS | B72: Médecin | C72: PFIZER SAS | D72: 13/07/2014 | E72: Repas | F72: 32
A73: Jérôme FANNIUS | B73: Médecin | C73: AbbVie | D73: 16/07/2014 | E73: REPAS | F73: 60
A74: Jérôme FANNIUS | B74: Médecin | C74: SANOFI AVENTIS FRANCE | D74: 2014-09-04 | E74: Repas | F74: 40
A75: Jérôme FANNIUS | B75: Médecin | C75: PRECIPHAR | D75: 18/09/2014 | E75: Repas | F75: 39
A76: Jérôme FANNIUS | B76: Médecin | C76: PIERRE FABRE MEDICAMENT | D76: 25/09/2014 | E76: RESTAURATION | F76: 33
A77: Jérôme FANNIUS | B77: Médecin | C77: TRB CHEMEDICA | D77: 25/09/2014 | E77: REPAS | F77: 49
A78: Jérôme FANNIUS | B78: Médecin | C78: AbbVie | D78: 2014-10-09 | E78: REPAS | F78: 60
A79: Jérôme FANNIUS | B79: Médecin | C79: BRISTOL-MYERS SQUIBB | D79: 2014-10-09 | E79: Repas | F79: 38
A80: Jérôme FANNIUS | B80: Médecin | C80: BRISTOL-MYERS SQUIBB | D80: 14/10/2014 | E80: Repas | F80: 60
A81: Jérôme FANNIUS | B81: Médecin | C81: CROMA | D81: 16/10/2014 | E81: REPAS | F81: 29
A82: Jérôme FANNIUS | B82: Médecin | C82: AbbVie | D82: 2014-11-07 | E82: REPAS | F82: 60
A83: Jérôme FANNIUS | B83: Médecin | C83: AbbVie | D83: 2014-11-07 | E83: HEBERGEMENT | F83: 220
A84: Jérôme FANNIUS | B84: Médecin | C84: AbbVie | D84: 2014-11-08 | E84: REPAS | F84: 60
A85: Jérôme FANNIUS | B85: Médecin | C85: BIOCODEX | D85: 13/11/2014 | E85: REPAS | F85: 49
A86: Jérôme FANNIUS | B86: Médecin | C86: Lilly France SAS | D86: 20/11/2014 | E86: REPAS | F86: 40
A87: Jérôme FANNIUS | B87: Médecin | C87: Laboratoires Expanscience | D87: 28/11/2014 | E87: Repas | F87: 39
A88: Jérôme FANNIUS | B88: Médecin | C88: BRISTOL-MYERS SQUIBB | D88: 2014-12-04 | E88: Repas | F88: 32
A89: Jérôme FANNIUS | B89: Médecin | C89: BIOCODEX | D89: 2014-12-07 | E89: INSCRIPTION | F89: 450
A90: Jérôme FANNIUS | B90: Médecin | C90: PIERRE FABRE MEDICAMENT | D90: 29/01/2015 | E90: RESTAURATION | F90: 49
A91: Jérôme FANNIUS | B91: Médecin | C91: LABORATOIRES MAYOLY SPINDLER | D91: 29/01/2015 | E91: FRAIS DE BOUCHE | F91: 41
A92: Jérôme FANNIUS | B92: Médecin | C92: Lilly France SAS | D92: 2015-02-05 | E92: REPAS | F92: 42
A93: Jérôme FANNIUS | B93: Médecin | C93: AbbVie | D93: 2015-02-10 | E93: REPAS | F93: 60
A94: Jérôme FANNIUS | B94: Médecin | C94: PIERRE FABRE MEDICAMENT | D94: 2015-02-12 | E94: RESTAURATION | F94: 29
A95: Jérôme FANNIUS | B95: Médecin | C95: BRISTOL-MYERS SQUIBB | D95: 2015-03-05 | E95: Repas | F95: 57
A96: Jérôme FANNIUS | B96: Médecin | C96: MYLAN MEDICAL SAS | D96: 2015-03-12 | E96: REPAS | F96: 40
A97: Jérôme FANNIUS | B97: Médecin | C97: ROCHE SAS | D97: 2015-04-01 | E97: Repas | F97: 50
A98: Jérôme FANNIUS | B98: Médecin | C98: ROCHE SAS | D98: 2015-04-01 | E98: Repas | F98: 42
A99: Jérôme FANNIUS | B99: Médecin | C99: TRB CHEMEDICA | D99: 2015-04-02 | E99: REPAS | F99: 49
A100: Jérôme FANNIUS | B100: Médecin | C100: SANOFI AVENTIS FRANCE | D100: 2015-04-02 | E100: Repas | F100: 40
A101: Jérôme FANNIUS | B101: Médecin | C101: PFIZER SAS | D101: 2015-04-05 | E101: Repas | F101: 34
A102: Jérôme FANNIUS | B102: Médecin | C102: PIERRE FABRE MEDICAMENT | D102: 23/04/2015 | E102: RESTAURATION | F102: 36
A103: Jérôme FANNIUS | B103: Médecin | C103: NORDIC PHARMA SAS | D103: 2015-05-01 | E103: Inscription | F103: 150
A104: Jérôme FANNIUS | B104: Médecin | C104: NORDIC PHARMA SAS | D104: 2015-05-01 | E104: Hébergement | F104: 514
A105: Jérôme FANNIUS | B105: Médecin | C105: NORDIC PHARMA SAS | D105: 2015-05-01 | E105: Repas | F105: 93
A106: Jérôme FANNIUS | B106: Médecin | C106: NORDIC PHARMA SAS | D106: 2015-05-01 | E106: Transport | F106: 325
A107: Jérôme FANNIUS | B107: Médecin | C107: CROMA | D107: 21/05/2015 | E107: Repas | F107: 33
A108: Jérôme FANNIUS | B108: Médecin | C108: BRISTOL-MYERS SQUIBB | D108: 2015-06-02 | E108: Hospitalité | F108: 60
A109: Jérôme FANNIUS | B109: Médecin | C109: BIOCODEX | D109: 2015-06-04 | E109: REPAS | F109: 39
A110: Jérôme FANNIUS | B110: Médecin | C110: PFIZER SAS | D110: 2015-06-07 | E110: Repas | F110: 59
A111: Jérôme FANNIUS | B111: Médecin | C111: PIERRE FABRE MEDICAMENT | D111: 2015-06-11 | E111: RESTAURATION | F111: 48
A112: Jérôme FANNIUS | B112: Médecin | C112: GILEAD SCIENCES | D112: 16/06/2015 | E112: REPAS | F112: 51
A113: Jérôme FANNIUS | B113: Médecin | C113: AbbVie | D113: 22/06/2015 | E113: REPAS | F113: 59
A114: Jérôme FANNIUS | B114: Médecin | C114: UPSA SAS | D114: 23/06/2015 | E114: Repas | F114: 55
A115: Jérôme FANNIUS | B115: Médecin | C115: MYLAN MEDICAL SAS | D115: 25/06/2015 | E115: REPAS | F115: 48
A116: Jérôme FANNIUS | B116: Médecin | C116: PIERRE FABRE MEDICAMENT | D116: 2015-07-02 | E116: RESTAURATION | F116: 38
A117: Jérôme FANNIUS | B117: Médecin | C117: CROMA | D117: 2015-07-08 | E117: Repas | F117: 33
A118: Jérôme FANNIUS | B118: Médecin | C118: AbbVie | D118: 16/07/2015 | E118: REPAS | F118: 44
A119: Jérôme FANNIUS | B119: Médecin | C119: PFIZER SAS | D119: 2015-09-11 | E119: Repas | F119: 128
A120: Jérôme FANNIUS | B120: Médecin | C120: PFIZER SAS | D120: 2015-09-11 | E120: Hébergement | F120: 171
A121: Jérôme FANNIUS | B121: Médecin | C121: PIERRE FABRE MEDICAMENT | D121: 17/09/2015 | E121: RESTAURATION | F121: 38
A122: Jérôme FANNIUS | B122: Médecin | C122: BIOCODEX | D122: 24/09/2015 | E122: REPAS | F122: 58
A123: Jérôme FANNIUS | B123: Médecin | C123: Lilly France SAS | D123: 2015-10-01 | E123: REPAS | F123: 29
A124: Jérôme FANNIUS | B124: Médecin | C124: UCB Pharma SA | D124: 2015-10-09 | E124: REPAS | F124: 27
A125: Jérôme FANNIUS | B125: Médecin | C125: SANOFI PASTEUR MSD SNC | D125: 13/10/2015 | E125: Repas | F125: 51
A126: Jérôme FANNIUS | B126: Médecin | C126: CROMA | D126: 29/10/2015 | E126: Repas | F126: 28
A127: Jérôme FANNIUS | B127: Médecin | C127: BIOCODEX | D127: 19/11/2015 | E127: REPAS | F127: 18
A128: Jérôme FANNIUS | B128: Médecin | C128: AMGEN SAS | D128: 2015-12-03 | E128: REPAS IMPROMPTU | F128: 44
A129: Jérôme FANNIUS | B129: Médecin | C129: BRISTOL-MYERS SQUIBB | D129: 2015-12-10 | E129: Hospitalité | F129: 63
A130: Jérôme FANNIUS | B130: Médecin | C130: AbbVie | D130: 15/12/2015 | E130: REPAS | F130: 54
A131: Benoît DE LA TOUR | B131: Médecin | C131: PIERRE FABRE MEDICAMENT | D131: 2012-09-06 | E131: Restauration | F131: 27
A132: Benoît DE LA TOUR | B132: Médecin | C132: PIERRE FABRE MEDICAMENT | D132: 31/01/2013 | E132: Restauration | F132: 18
A133: Benoît DE LA TOUR | B133: Médecin | C133: ICOMED | D133: 21/05/2013 | E133: Autre: [Enquête] | F133: 25
A134: Benoît DE LA TOUR | B134: Médecin | C134: LEO Pharma | D134: 17/06/2013 | E134: REPAS | F134: 19
A135: Benoît DE LA TOUR | B135: Médecin | C135: BIOCODEX | D135: 2013-10-03 | E135: REPAS | F135: 55
A136: Benoît DE LA TOUR | B136: Médecin | C136: ABBOTT PRODUCTS SAS | D136: 2014-02-06 | E136: REPAS | F136: 58
A137: Benoît DE LA TOUR | B137: Médecin | C137: AMGEN SAS | D137: 2014-03-06 | E137: REPAS IMPROMPTU | F137: 38
A138: Benoît DE LA TOUR | B138: Médecin | C138: ICOMED | D138: 2014-06-05 | E138: Autre: [Enquête] | F138: 25
A139: Benoît DE LA TOUR | B139: Médecin | C139: BRISTOL-MYERS SQUIBB | D139: 19/06/2014 | E139: Repas | F139: 35
A140: Benoît DE LA TOUR | B140: Médecin | C140: SANOFI AVENTIS FRANCE | D140: 2014-09-04 | E140: Repas | F140: 40
A141: Benoît DE LA TOUR | B141: Médecin | C141: TRB CHEMEDICA | D141: 25/09/2014 | E141: REPAS | F141: 49
A142: Benoît DE LA TOUR | B142: Médecin | C142: PIERRE FABRE MEDICAMENT | D142: 25/09/2014 | E142: RESTAURATION | F142: 33
A143: Benoît DE LA TOUR | B143: Médecin | C143: BRISTOL-MYERS SQUIBB | D143: 2014-10-09 | E143: Repas | F143: 38
A144: Benoît DE LA TOUR | B144: Médecin | C144: Lilly France SAS | D144: 20/11/2014 | E144: REPAS | F144: 40
A145: Benoît DE LA TOUR | B145: Médecin | C145: BRISTOL-MYERS SQUIBB | D145: 2014-12-04 | E145: Repas | F145: 32
A146: Benoît DE LA TOUR | B146: Médecin | C146: MEDEXACT | D146: 2014-12-05 | E146: Autre: [Enquête] | F146: 19
A147: Benoît DE LA TOUR | B147: Médecin | C147: LABORATOIRES MAYOLY SPINDLER | D147: 29/01/2015 | E147: FRAIS DE BOUCHE | F147: 41
A148: Benoît DE LA TOUR | B148: Médecin | C148: Lilly France SAS | D148: 2015-02-05 | E148: REPAS | F148: 42
A149: Benoît DE LA TOUR | B149: Médecin | C149: PIERRE FABRE MEDICAMENT | D149: 2015-02-12 | E149: RESTAURATION | F149: 29
A150: Benoît DE LA TOUR | B150: Médecin | C150: MYLAN MEDICAL SAS | D150: 2015-03-12 | E150: REPAS | F150: 40
A151: Benoît DE LA TOUR | B151: Médecin | C151: SANOFI AVENTIS FRANCE | D151: 2015-04-02 | E151: Repas | F151: 40
A152: Benoît DE LA TOUR | B152: Médecin | C152: BIOCODEX | D152: 2015-06-04 | E152: REPAS | F152: 39
A153: Benoît DE LA TOUR | B153: Médecin | C153: PIERRE FABRE MEDICAMENT | D153: 2015-06-11 | E153: RESTAURATION | F153: 48
A154: Benoît DE LA TOUR | B154: Médecin | C154: ICOMED | D154: 15/06/2015 | E154: Autre: [Enquête] | F154: 31
A155: Benoît DE LA TOUR | B155: Médecin | C155: PIERRE FABRE MEDICAMENT | D155: 2015-07-02 | E155: RESTAURATION | F155: 38
A156: Benoît DE LA TOUR | B156: Médecin | C156: PIERRE FABRE MEDICAMENT | D156: 17/09/2015 | E156: RESTAURATION | F156: 38
A157: Benoît DE LA TOUR | B157: Médecin | C157: BIOCODEX | D157: 24/09/2015 | E157: REPAS | F157: 58
A158: Benoît DE LA TOUR | B158: Médecin | C158: Lilly France SAS | D158: 2015-10-01 | E158: REPAS | F158: 29
A159: Benoît DE LA TOUR | B159: Médecin | C159: BIOCODEX | D159: 19/11/2015 | E159: REPAS | F159: 18
A160: Benoît DE LA TOUR | B160: Médecin | C160: AMGEN SAS | D160: 2015-12-03 | E160: REPAS IMPROMPTU | F160: 44
A161: Jean-Yves PERIER | B161: Médecin | C161: MSD France | D161: 18/06/2013 | E161: HOSPITALITÉ | F161: 36
A162: Jean-Yves PERIER | B162: Médecin | C162: UCB Pharma SA | D162: 2013-10-08 | E162: Repas | F162: 24
A163: Jean-Yves PERIER | B163: Médecin | C163: AbbVie | D163: 2013-12-10 | E163: Repas | F163: 29
A164: Jean-Yves PERIER | B164: Médecin | C164: ABBOTT PRODUCTS SAS | D164: 2014-02-06 | E164: REPAS | F164: 58
A165: Jean-Yves PERIER | B165: Médecin | C165: ROCHE SAS | D165: 2014-04-08 | E165: Repas | F165: 16
A166: Jean-Yves PERIER | B166: Médecin | C166: BRISTOL-MYERS SQUIBB | D166: 14/05/2014 | E166: Repas | F166: 53
A167: Jean-Yves PERIER | B167: Médecin | C167: MSD France | D167: 17/06/2014 | E167: REPAS | F167: 50
A168: Jean-Yves PERIER | B168: Médecin | C168: TRB CHEMEDICA | D168: 25/09/2014 | E168: REPAS | F168: 49
A169: Jean-Yves PERIER | B169: Médecin | C169: BRISTOL-MYERS SQUIBB | D169: 14/10/2014 | E169: Repas | F169: 60
A170: Jean-Yves PERIER | B170: Médecin | C170: AbbVie | D170: 16/12/2014 | E170: REPAS | F170: 26
A171: Jean-Yves PERIER | B171: Médecin | C171: BRISTOL-MYERS SQUIBB | D171: 2015-03-05 | E171: Repas | F171: 57
A172: Jean-Yves PERIER | B172: Médecin | C172: ROCHE SAS | D172: 14/04/2015 | E172: Repas | F172: 88
A173: Jean-Yves PERIER | B173: Médecin | C173: BIOCODEX | D173: 24/09/2015 | E173: REPAS | F173: 58
A174: Monique BENVENUTO | B174: Médecin | C174: PIERRE FABRE MEDICAMENT | D174: 2012-03-08 | E174: Restauration | F174: 30
A175: Monique BENVENUTO | B175: Médecin | C175: MSD France | D175: 21/06/2012 | E175: REPAS | F175: 36
A176: Monique BENVENUTO | B176: Médecin | C176: PIERRE FABRE MEDICAMENT | D176: 2013-05-02 | E176: Restauration | F176: 40
A177: Monique BENVENUTO | B177: Médecin | C177: ICOMED | D177: 22/05/2013 | E177: Autre: [Enquête] | F177: 30
A178: Monique BENVENUTO | B178: Médecin | C178: PIERRE FABRE MEDICAMENT | D178: 24/10/2013 | E178: RESTAURATION | F178: 39
A179: Monique BENVENUTO | B179: Médecin | C179: AMGEN SAS | D179: 25/10/2013 | E179: REPAS IMPROMPTU | F179: 60
A180: Monique BENVENUTO | B180: Médecin | C180: ICOMED | D180: 28/04/2014 | E180: Autre: [Enquête] | F180: 27
A181: Monique BENVENUTO | B181: Médecin | C181: ICOMED | D181: 13/05/2015 | E181: Autre: [Enquête] | F181: 31
A182: Monique BENVENUTO | B182: Médecin | C182: BOIRON | D182: 24/07/2015 | E182: [REPAS] | F182: 24
A183: Monique BENVENUTO | B183: Médecin | C183: BOIRON | D183: 24/07/2015 | E183: [REPAS] | F183: 36
A184: Caroline COLLANGE | B184: Médecin | C184: PIERRE FABRE MEDICAMENT | D184: 22/03/2012 | E184: Restauration | F184: 19
A185: Caroline COLLANGE | B185: Médecin | C185: AbbVie | D185: 2013-02-07 | E185: AUTRE : [HOSPITALITE] | F185: 48
A186: Caroline COLLANGE | B186: Médecin | C186: AbbVie | D186: 2013-04-04 | E186: AUTRE : [HOSPITALITE] | F186: 58
A187: Caroline COLLANGE | B187: Médecin | C187: AbbVie | D187: 28/05/2013 | E187: AUTRE : [HOSPITALITE] | F187: 60
A188: Caroline COLLANGE | B188: Médecin | C188: AbbVie | D188: 27/06/2013 | E188: AUTRE : [HOSPITALITE] | F188: 63
A189: Caroline COLLANGE | B189: Médecin | C189: AbbVie | D189: 2013-07-04 | E189: Repas | F189: 48
A190: Caroline COLLANGE | B190: Médecin | C190: PIERRE FABRE MEDICAMENT | D190: 2013-09-05 | E190: RESTAURATION | F190: 36
A191: Caroline COLLANGE | B191: Médecin | C191: PFIZER SAS | D191: 15/10/2013 | E191: Repas | F191: 60
A192: Caroline COLLANGE | B192: Médecin | C192: AbbVie | D192: 17/12/2013 | E192: REPAS | F192: 53
A193: Caroline COLLANGE | B193: Médecin | C193: MSD France | D193: 19/12/2013 | E193: REPAS | F193: 39
A194: Caroline COLLANGE | B194: Médecin | C194: ABBOTT PRODUCTS SAS | D194: 2014-02-06 | E194: REPAS | F194: 58
A195: Caroline COLLANGE | B195: Médecin | C195: AbbVie | D195: 2014-03-06 | E195: REPAS | F195: 31
A196: Caroline COLLANGE | B196: Médecin | C196: ROTTAPHARM SAS | D196: 27/03/2014 | E196: DEJEUNER | F196: 33
A197: Caroline COLLANGE | B197: Médecin | C197: CROMA | D197: 22/05/2014 | E197: Restauration | F197: 42
A198: Caroline COLLANGE | B198: Médecin | C198: TRB CHEMEDICA | D198: 25/09/2014 | E198: REPAS | F198: 49
A199: Caroline COLLANGE | B199: Médecin | C199: AbbVie | D199: 2014-11-07 | E199: HEBERGEMENT | F199: 220
A200: Caroline COLLANGE | B200: Médecin | C200: AbbVie | D200: 2014-11-07 | E200: REPAS | F200: 60
... 1936 more rows

Sheet Conventions signées
A1: Bénéficiaire | B1: Type de bénéficiaire | C1: Entreprise | D1: Date | E1: Période | F1: Objet
A2: Jérôme FANNIUS | B2: Médecin | C2: MSD France | D2: 14/02/2012 | E2: 14/02/2012 - | F2: CONVENTION D’HOSPITALITÉ
A3: Jérôme FANNIUS | B3: Médecin | C3: MSD France | D3: 16/05/2013 | E3: 16/05/2013 - | F3: CONVENTION D HOSPITALITE
A4: Jérôme FANNIUS | B4: Médecin | C4: PIERRE FABRE MEDICAMENT | D4: 05/09/2013 | E4: 05/09/2013 - | F4: CONVENTION D'HOSPITALITE
A5: Jérôme FANNIUS | B5: Médecin | C5: SANDOZ | D5: 24/09/2013 | E5: 24/09/2013 - 24/09/2013 | F5: CONGRÈS / SYMPOSIUM/ RP
A6: Jérôme FANNIUS | B6: Médecin | C6: PIERRE FABRE MEDICAMENT | D6: 07/11/2013 | E6: 07/11/2013 - | F6: CONVENTION D'HOSPITALITE
A7: Jérôme FANNIUS | B7: Médecin | C7: PIERRE FABRE MEDICAMENT | D7: 21/11/2013 | E7: 21/11/2013 - | F7: CONVENTION D'HOSPITALITE
A8: Jérôme FANNIUS | B8: Médecin | C8: PFIZER SAS | D8: 01/12/2013 | E8: 01/12/2013 - 03/12/2013 | F8: HOSPITALITE RP/CONGRES / SYMPO
A9: Jérôme FANNIUS | B9: Médecin | C9: AbbVie | D9: 02/12/2013 | E9: 02/12/2013 - | F9: AUTRE: [CONVENTION HOSPITALITE]
A10: Jérôme FANNIUS | B10: Médecin | C10: AbbVie | D10: 12/12/2013 | E10: 12/12/2013 - | F10: RECHERCHE
A11: Jérôme FANNIUS | B11: Médecin | C11: MSD France | D11: 19/12/2013 | E11: 19/12/2013 - | F11: CONVENTION D HOSPITALITE
A12: Jérôme FANNIUS | B12: Médecin | C12: Lilly France SAS | D12: 15/03/2014 | E12: 14/03/2014 - 15/03/2014 | F12: AUTRE : [PARTICIPATION RÉUNION SCIENTIFIQUE]
A13: Jérôme FANNIUS | B13: Médecin | C13: MSD France | D13: 20/03/2014 | E13: 20/03/2014 - | F13: CONVENTION D HOSPITALITE
A14: Jérôme FANNIUS | B14: Médecin | C14: Lilly France SAS | D14: 29/03/2014 | E14: 28/03/2014 - 29/03/2014 | F14: AUTRE : [PARTICIPATION RÉUNION SCIENTIFIQUE]
A15: Jérôme FANNIUS | B15: Médecin | C15: PFIZER SAS | D15: 11/04/2014 | E15: 11/04/2014 - 12/04/2014 | F15: HOSPITALITE RP/CONGRES / SYMPO
A16: Jérôme FANNIUS | B16: Médecin | C16: PFIZER SAS | D16: 11/04/2014 | E16: 11/04/2014 - 12/04/2014 | F16: HOSPITALITE RP/CONGRES / SYMPO
A17: Jérôme FANNIUS | B17: Médecin | C17: PIERRE FABRE MEDICAMENT | D17: 24/04/2014 | E17: 24/04/2014 - | F17: CONVENTION D'HOSPITALITE
A18: Jérôme FANNIUS | B18: Médecin | C18: AbbVie | D18: 23/05/2014 | E18: 23/05/2014 - | F18: AUTRE : [CONVENTION D HOSPITALITE]
A19: Jérôme FANNIUS | B19: Médecin | C19: BOSTON SCIENTIFIC SAS | D19: 11/06/2014 | E19: 11/06/2014 - 11/06/2014 | F19: CONGRES / SYMPOSIUM
A20: Jérôme FANNIUS | B20: Médecin | C20: AbbVie | D20: 16/07/2014 | E20: 16/07/2014 - | F20: AUTRE : [CONVENTION D HOSPITALITE]
A21: Jérôme FANNIUS | B21: Médecin | C21: MSD France | D21: 17/09/2014 | E21: 17/09/2014 - | F21: CONVENTION D’HOSPITALITÉ
A22: Jérôme FANNIUS | B22: Médecin | C22: PIERRE FABRE MEDICAMENT | D22: 25/09/2014 | E22: 25/09/2014 - | F22: CONVENTION D'HOSPITALITE
A23: Jérôme FANNIUS | B23: Médecin | C23: MENARINI FRANCE | D23: 26/09/2014 | E23: 26/09/2014 - 26/09/2014 | F23: Autre : Prestation de service
A24: Jérôme FANNIUS | B24: Médecin | C24: AbbVie | D24: 09/10/2014 | E24: 09/10/2014 - | F24: AUTRE : [CONVENTION D HOSPITALITE]
A25: Jérôme FANNIUS | B25: Médecin | C25: AbbVie | D25: 07/11/2014 | E25: 07/11/2014 - | F25: AUTRE : [CONVENTION D HOSPITALITE]
A26: Jérôme FANNIUS | B26: Médecin | C26: AbbVie | D26: 08/11/2014 | E26: 08/11/2014 - | F26: AUTRE : [CONVENTION D HOSPITALITE]
A27: Jérôme FANNIUS | B27: Médecin | C27: BIOCODEX | D27: 07/12/2014 | E27: 07/12/2014 - 09/12/2014 | F27: CONGRES
A28: Jérôme FANNIUS | B28: Médecin | C28: PIERRE FABRE MEDICAMENT | D28: 29/01/2015 | E28: 29/01/2015 - | F28: CONVENTION D'HOSPITALITE
A29: Jérôme FANNIUS | B29: Médecin | C29: AbbVie | D29: 10/02/2015 | E29: 10/02/2015 - | F29: AUTRE: [CONVENTION HOSPITALITE]
A30: Jérôme FANNIUS | B30: Médecin | C30: ROCHE SAS | D30: 01/04/2015 | E30: 01/04/2015 - 01/04/2015 | F30: Autre : [ Runion professionnelle ]
A31: Jérôme FANNIUS | B31: Médecin | C31: NORDIC PHARMA SAS | D31: 30/04/2015 | E31: 30/04/2015 - 02/05/2015 | F31: congrès / symposium
A32: Jérôme FANNIUS | B32: Médecin | C32: PFIZER SAS | D32: 26/05/2015 | E32: 26/05/2015 - 26/05/2015 | F32: Autre : Reunion professionnelle ou scientifique
A33: Jérôme FANNIUS | B33: Médecin | C33: PFIZER SAS | D33: 26/06/2015 | E33: 26/06/2015 - 27/06/2015 | F33: Autre : Reunion professionnelle ou scientifique
A34: Jérôme FANNIUS | B34: Médecin | C34: PFIZER SAS | D34: 11/09/2015 | E34: 11/09/2015 - 12/09/2015 | F34: Autre : Réunion professionnelle ou scientifique
A35: Jérôme FANNIUS | B35: Médecin | C35: PIERRE FABRE MEDICAMENT | D35: 17/09/2015 | E35: 17/09/2015 - | F35: CONVENTION D'HOSPITALITE
A36: Jérôme FANNIUS | B36: Médecin | C36: BIOCODEX | D36: 24/09/2015 | E36: 24/09/2015 - 24/09/2015 | F36: FORMATION
A37: Jérôme FANNIUS | B37: Médecin | C37: UCB Pharma SA | D37: 09/10/2015 | E37: 09/10/2015 - 09/10/2015 | F37: CONVENTION D'HOSPITALITÉ
A38: Jérôme FANNIUS | B38: Médecin | C38: SANOFI PASTEUR MSD SNC | D38: 13/10/2015 | E38: 13/10/2015 - | F38: Autre : [RP Prédéclarée Hospitalité]
A39: Jérôme FANNIUS | B39: Médecin | C39: AbbVie | D39: 15/12/2015 | E39: 15/12/2015 - | F39: AUTRE: [CONVENTION HOSPITALITE]
A40: Benoît DE LA TOUR | B40: Médecin | C40: MSD France | D40: 16/05/2013 | E40: 16/05/2013 - | F40: CONVENTION D’HOSPITALITÉ
A41: Benoît DE LA TOUR | B41: Médecin | C41: PIERRE FABRE MEDICAMENT | D41: 25/09/2014 | E41: 25/09/2014 - | F41: CONVENTION D'HOSPITALITE
A42: Benoît DE LA TOUR | B42: Médecin | C42: PIERRE FABRE MEDICAMENT | D42: 17/09/2015 | E42: 17/09/2015 - | F42: CONVENTION D'HOSPITALITE
A43: Benoît DE LA TOUR | B43: Médecin | C43: BIOCODEX | D43: 24/09/2015 | E43: 24/09/2015 - 24/09/2015 | F43: FORMATION
A44: Jean-Yves PERIER | B44: Médecin | C44: MSD France | D44: 18/06/2013 | E44: 18/06/2013 - | F44: CONVENTION D’HOSPITALITÉ
A45: Jean-Yves PERIER | B45: Médecin | C45: MSD France | D45: 18/06/2013 | E45: 18/06/2013 - | F45: CONVENTION D’HOSPITALITÉ
A46: Jean-Yves PERIER | B46: Médecin | C46: UCB Pharma SA | D46: 08/10/2013 | E46: 08/10/2013 - 08/10/2013 | F46: Autre : [ hospitalité liée à une manifestation scientifique ]
A47: Jean-Yves PERIER | B47: Médecin | C47: AbbVie | D47: 10/12/2013 | E47: 10/12/2013 - | F47: AUTRE: [CONVENTION HOSPITALITE]
A48: Jean-Yves PERIER | B48: Médecin | C48: MSD France | D48: 20/03/2014 | E48: 20/03/2014 - | F48: CONVENTION D’HOSPITALITÉ
A49: Jean-Yves PERIER | B49: Médecin | C49: MSD France | D49: 17/06/2014 | E49: 17/06/2014 - | F49: CONVENTION D’HOSPITALITÉ
A50: Jean-Yves PERIER | B50: Médecin | C50: AbbVie | D50: 16/12/2014 | E50: 16/12/2014 - | F50: AUTRE : [CONVENTION D HOSPITALITE]
A51: Jean-Yves PERIER | B51: Médecin | C51: ROCHE SAS | D51: 14/04/2015 | E51: 14/04/2015 - 14/04/2015 | F51: Autre : [ Runion professionnelle ]
A52: Jean-Yves PERIER | B52: Médecin | C52: BIOCODEX | D52: 24/09/2015 | E52: 24/09/2015 - 24/09/2015 | F52: FORMATION
A53: Monique BENVENUTO | B53: Médecin | C53: PIERRE FABRE MEDICAMENT | D53: 24/10/2013 | E53: 24/10/2013 - | F53: CONVENTION D'HOSPITALITE
A54: Caroline COLLANGE | B54: Médecin | C54: PIERRE FABRE MEDICAMENT | D54: 05/09/2013 | E54: 05/09/2013 - | F54: CONVENTION D'HOSPITALITE
A55: Caroline COLLANGE | B55: Médecin | C55: MSD France | D55: 19/12/2013 | E55: 19/12/2013 - | F55: CONVENTION D’HOSPITALITÉ
A56: Caroline COLLANGE | B56: Médecin | C56: AbbVie | D56: 07/11/2014 | E56: 07/11/2014 - | F56: AUTRE : [CONVENTION D HOSPITALITE]
A57: Caroline COLLANGE | B57: Médecin | C57: PIERRE FABRE MEDICAMENT | D57: 04/12/2014 | E57: 04/12/2014 - | F57: CONVENTION D'HOSPITALITE
A58: Caroline COLLANGE | B58: Médecin | C58: NORDIC PHARMA SAS | D58: 07/12/2014 | E58: 07/12/2014 - 09/12/2014 | F58: congrès / symposium
A59: Caroline COLLANGE | B59: Médecin | C59: PIERRE FABRE MEDICAMENT | D59: 29/01/2015 | E59: 29/01/2015 - | F59: CONVENTION D'HOSPITALITE
A60: Caroline COLLANGE | B60: Médecin | C60: BIOCODEX | D60: 24/09/2015 | E60: 24/09/2015 - 24/09/2015 | F60: FORMATION
A61: Caroline COLLANGE | B61: Médecin | C61: PFIZER SAS | D61: 13/12/2015 | E61: 13/12/2015 - 15/12/2015 | F61: Congrès / Symposium
A62: Mathilde BENHAMOU | B62: Médecin | C62: A+A | D62: 19/03/2012 | E62: 19/03/2012 - | F62: ETUDE DE MARCHE
A63: Mathilde BENHAMOU | B63: Médecin | C63: A+A | D63: 14/06/2012 | E63: 13/06/2012 - | F63: ETUDE DE MARCHE
A64: Mathilde BENHAMOU | B64: Médecin | C64: A+A | D64: 12/09/2012 | E64: 11/09/2012 - | F64: ETUDE DE MARCHE
A65: Mathilde BENHAMOU | B65: Médecin | C65: A+A | D65: 10/06/2013 | E65: 07/06/2013 - | F65: ETUDE DE MARCHE
A66: Mathilde BENHAMOU | B66: Médecin | C66: PFIZER SAS | D66: 12/06/2013 | E66: 12/06/2013 - 15/06/2013 | F66: HOSPITALITE RP/CONGRES / SYMPO
A67: Mathilde BENHAMOU | B67: Médecin | C67: MSD France | D67: 23/10/2013 | E67: 23/10/2013 - | F67: CONVENTION D’HOSPITALITÉ
A68: Mathilde BENHAMOU | B68: Médecin | C68: PFIZER SAS | D68: 01/12/2013 | E68: 01/12/2013 - 03/12/2013 | F68: HOSPITALITE RP/CONGRES / SYMPO
A69: Mathilde BENHAMOU | B69: Médecin | C69: ROCHE SAS | D69: 05/02/2014 | E69: 05/02/2014 - 05/02/2014 | F69: Autre : [ R‚union professionnelle ]
A70: Mathilde BENHAMOU | B70: Médecin | C70: AbbVie | D70: 10/04/2014 | E70: 10/04/2014 - | F70: AUTRE: [CONVENTION HOSPITALITE]
A71: Mathilde BENHAMOU | B71: Médecin | C71: PFIZER SAS | D71: 07/12/2014 | E71: 07/12/2014 - 09/12/2014 | F71: Congrès / Symposium
A72: Mathilde BENHAMOU | B72: Médecin | C72: PIERRE FABRE MEDICAMENT | D72: 29/01/2015 | E72: 29/01/2015 - | F72: CONVENTION D'HOSPITALITE
A73: Mathilde BENHAMOU | B73: Médecin | C73: PFIZER SAS | D73: 11/09/2015 | E73: 11/09/2015 - 12/09/2015 | F73: Autre : Réunion professionnelle ou scientifique
A74: Mathilde BENHAMOU | B74: Médecin | C74: MSD France | D74: 16/09/2015 | E74: 16/09/2015 - | F74: CONVENTION D’HOSPITALITÉ
A75: Mathilde BENHAMOU | B75: Médecin | C75: BIOCODEX | D75: 24/09/2015 | E75: 24/09/2015 - 24/09/2015 | F75: FORMATION
A76: Mathilde BENHAMOU | B76: Médecin | C76: BRISTOL-MYERS SQUIBB | D76: 30/10/2015 | E76: 10/12/2015 - | F76: Autre : [Orateur]
A77: Mathilde BENHAMOU | B77: Médecin | C77: LABORATOIRES GENEVRIER | D77: 17/11/2015 | E77: 17/11/2015 - 17/11/2015 | F77: Formation
A78: Mathilde BENHAMOU | B78: Médecin | C78: PFIZER SAS | D78: 13/12/2015 | E78: 13/12/2015 - 15/12/2015 | F78: Congrès / Symposium
A79: Alix GREDER-BELAN | B79: Médecin | C79: AbbVie | D79: 07/09/2015 | E79: 08/10/2015 - 08/10/2015 | F79: AUTRE: [CONVENTION HOSPITALITE]
A80: Alix GREDER-BELAN | B80: Médecin | C80: JANSSEN-CILAG | D80: 03/03/2014 | E80: 03/03/2014 - 06/03/2014 | F80: CONGRES / SYMPOSIUM
A81: Alix GREDER-BELAN | B81: Médecin | C81: MSD France | D81: 27/05/2014 | E81: 27/05/2014 - | F81: CONVENTION D HOSPITALITE
A82: Alix GREDER-BELAN | B82: Médecin | C82: JANSSEN-CILAG | D82: 06/09/2014 | E82: 06/09/2014 - 09/09/2014 | F82: CONGRES / SYMPOSIUM
A83: Alix GREDER-BELAN | B83: Médecin | C83: ASTELLAS PHARMA | D83: 12/06/2013 | E83: 12/06/2013 - 14/06/2013 | F83: CONGRES / SYMPOSIUM
A84: Alix GREDER-BELAN | B84: Médecin | C84: JANSSEN-CILAG | D84: 29/04/2013 | E84: 20/06/2013 - 20/06/2013 | F84: CONGRES / SYMPOSIUM
A85: Alix GREDER-BELAN | B85: Médecin | C85: MSD France | D85: 03/12/2014 | E85: 03/12/2014 - | F85: CONVENTION D’HOSPITALITÉ
A86: Alix GREDER-BELAN | B86: Médecin | C86: MSD France | D86: 21/10/2015 | E86: 21/10/2015 - | F86: CONVENTION D’HOSPITALITÉ
A87: Alix GREDER-BELAN | B87: Médecin | C87: ViiV HEALTHCARE SAS | D87: 16/09/2013 | E87: 03/10/2013 - 04/10/2013 | F87: [AUTRE] : [CONVENTION HOSPITALITE]
A88: Alix GREDER-BELAN | B88: Médecin | C88: MSD France | D88: 11/06/2014 | E88: 11/06/2014 - | F88: CONVENTION D HOSPITALITE
A89: Alix GREDER-BELAN | B89: Médecin | C89: MSD France | D89: 26/06/2014 | E89: 26/06/2014 - | F89: CONVENTION D HOSPITALITE
A90: Yves POLACK | B90: Médecin | C90: MSD France | D90: 17/09/2014 | E90: 17/09/2014 - | F90: CONVENTION D’HOSPITALITÉ
A91: Yves POLACK | B91: Médecin | C91: LABORATOIRES GENEVRIER | D91: 16/10/2014 | E91: 07/12/2014 - 09/12/2014 | F91: Congrès / Symposium
A92: Yves POLACK | B92: Médecin | C92: ROCHE SAS | D92: 16/12/2014 | E92: 16/12/2014 - 16/12/2014 | F92: Autre : [ Réunion professionnelle ]
A93: Jean-Philippe D'ORNANO | B93: Médecin | C93: A+A | D93: 14/06/2012 | E93: 13/06/2012 - | F93: ETUDE DE MARCHE
A94: Jean-Philippe D'ORNANO | B94: Médecin | C94: MSD France | D94: 19/12/2013 | E94: 19/12/2013 - | F94: CONVENTION D’HOSPITALITÉ
A95: Jean-Philippe D'ORNANO | B95: Médecin | C95: MSD France | D95: 20/03/2014 | E95: 20/03/2014 - | F95: CONVENTION D’HOSPITALITÉ
A96: Jean-Philippe D'ORNANO | B96: Médecin | C96: PIERRE FABRE MEDICAMENT | D96: 09/10/2014 | E96: 09/10/2014 - | F96: CONVENTION D'HOSPITALITE
A97: Jean-Philippe D'ORNANO | B97: Médecin | C97: A+A | D97: 17/10/2014 | E97: 15/10/2014 - | F97: ETUDE DE MARCHE
A98: Jean-Philippe D'ORNANO | B98: Médecin | C98: A+A | D98: 23/10/2014 | E98: 23/10/2014 - | F98: ETUDE DE MARCHE
A99: Jean-Philippe D'ORNANO | B99: Médecin | C99: A+A | D99: 09/12/2014 | E99: 09/12/2014 - | F99: ETUDE DE MARCHE
A100: Jean-Philippe D'ORNANO | B100: Médecin | C100: PIERRE FABRE MEDICAMENT | D100: 29/01/2015 | E100: 29/01/2015 - | F100: CONVENTION D'HOSPITALITE
A101: Jean-Philippe D'ORNANO | B101: Médecin | C101: BIOCODEX | D101: 24/09/2015 | E101: 24/09/2015 - 24/09/2015 | F101: FORMATION
A102: Jean-Philippe D'ORNANO | B102: Médecin | C102: MENARINI FRANCE | D102: 19/11/2015 | E102: 19/11/2015 - 19/11/2015 | F102: Autre : Réunion scientifique
A103: Jean-François WINTREBERT | B103: Médecin | C103: MSD France | D103: 16/05/2013 | E103: 16/05/2013 - | F103: CONVENTION D HOSPITALITE
A104: Jean-François WINTREBERT | B104: Médecin | C104: PIERRE FABRE MEDICAMENT | D104: 05/09/2013 | E104: 05/09/2013 - | F104: CONVENTION D'HOSPITALITE
A105: Jean-François WINTREBERT | B105: Médecin | C105: PIERRE FABRE MEDICAMENT | D105: 24/09/2013 | E105: 24/09/2013 - | F105: CONVENTION D'HOSPITALITE
A106: Jean-François WINTREBERT | B106: Médecin | C106: PIERRE FABRE MEDICAMENT | D106: 07/11/2013 | E106: 07/11/2013 - | F106: CONVENTION D'HOSPITALITE
A107: Jean-François WINTREBERT | B107: Médecin | C107: PIERRE FABRE MEDICAMENT | D107: 21/11/2013 | E107: 21/11/2013 - | F107: CONVENTION D'HOSPITALITE
A108: Jean-François WINTREBERT | B108: Médecin | C108: Lilly France SAS | D108: 15/03/2014 | E108: 14/03/2014 - 15/03/2014 | F108: AUTRE : [PARTICIPATION RÉUNION SCIENTIFIQUE]
A109: Jean-François WINTREBERT | B109: Médecin | C109: MSD France | D109: 20/03/2014 | E109: 20/03/2014 - | F109: CONVENTION D HOSPITALITE
A110: Jean-François WINTREBERT | B110: Médecin | C110: PIERRE FABRE MEDICAMENT | D110: 24/04/2014 | E110: 24/04/2014 - | F110: CONVENTION D'HOSPITALITE
A111: Jean-François WINTREBERT | B111: Médecin | C111: AbbVie | D111: 23/05/2014 | E111: 23/05/2014 - | F111: AUTRE : [CONVENTION D HOSPITALITE]
A112: Jean-François WINTREBERT | B112: Médecin | C112: PIERRE FABRE MEDICAMENT | D112: 19/06/2014 | E112: 19/06/2014 - | F112: CONVENTION D'HOSPITALITE
A113: Jean-François WINTREBERT | B113: Médecin | C113: PIERRE FABRE MEDICAMENT | D113: 25/09/2014 | E113: 25/09/2014 - | F113: CONVENTION D'HOSPITALITE
A114: Jean-François WINTREBERT | B114: Médecin | C114: AbbVie | D114: 07/11/2014 | E114: 07/11/2014 - | F114: AUTRE : [CONVENTION D HOSPITALITE]
A115: Jean-François WINTREBERT | B115: Médecin | C115: PIERRE FABRE MEDICAMENT | D115: 04/12/2014 | E115: 04/12/2014 - | F115: CONVENTION D'HOSPITALITE
A116: Jean-François WINTREBERT | B116: Médecin | C116: PIERRE FABRE MEDICAMENT | D116: 29/01/2015 | E116: 29/01/2015 - | F116: CONVENTION D'HOSPITALITE
A117: Jean-François WINTREBERT | B117: Médecin | C117: NORDIC PHARMA SAS | D117: 30/04/2015 | E117: 30/04/2015 - 02/05/2015 | F117: congrès / symposium
A118: Jean-François WINTREBERT | B118: Médecin | C118: PIERRE FABRE MEDICAMENT | D118: 17/09/2015 | E118: 17/09/2015 - | F118: CONVENTION D'HOSPITALITE
A119: Jean-François WINTREBERT | B119: Médecin | C119: BIOCODEX | D119: 24/09/2015 | E119: 24/09/2015 - 24/09/2015 | F119: FORMATION
A120: Jean-François WINTREBERT | B120: Médecin | C120: UCB Pharma SA | D120: 09/10/2015 | E120: 09/10/2015 - 09/10/2015 | F120: CONVENTION D'HOSPITALITÉ
A121: Eric CHOSSAT | B121: Médecin | C121: ROTTAPHARM SAS | D121: 28/03/2013 | E121: 28/03/2013 - 29/03/2013 | F121: VIGGO PETERSEN
A122: Eric CHOSSAT | B122: Médecin | C122: ROTTAPHARM SAS | D122: 03/04/2014 | E122: 03/04/2014 - 04/04/2014 | F122: VIGGO PETERSEN
A123: Eric CHOSSAT | B123: Médecin | C123: PIERRE FABRE MEDICAMENT | D123: 04/12/2014 | E123: 04/12/2014 - | F123: CONVENTION D'HOSPITALITE
A124: Eric CHOSSAT | B124: Médecin | C124: PIERRE FABRE MEDICAMENT | D124: 18/12/2014 | E124: 18/12/2014 - | F124: CONVENTION D'HOSPITALITE
A125: Eric CHOSSAT | B125: Médecin | C125: BIOCODEX | D125: 26/03/2015 | E125: 26/03/2015 - 26/03/2015 | F125: CONGRES
A126: Jean-Jacques GIRARD | B126: Médecin | C126: MSD France | D126: 03/05/2012 | E126: 03/05/2012 - | F126: CONVENTION D’HOSPITALITÉ
A127: Jean-Jacques GIRARD | B127: Médecin | C127: A+A | D127: 19/12/2012 | E127: 19/12/2012 - | F127: ETUDE DE MARCHE
A128: Jean-Jacques GIRARD | B128: Médecin | C128: PFIZER SAS | D128: 28/06/2013 | E128: 28/06/2013 - 29/06/2013 | F128: Hospitalite RP/Congres / Sympo
A129: Jean-Jacques GIRARD | B129: Médecin | C129: PFIZER SAS | D129: 20/09/2013 | E129: 20/09/2013 - 21/09/2013 | F129: Hospitalite RP/Congres / Sympo
A130: Jean-Jacques GIRARD | B130: Médecin | C130: PIERRE FABRE MEDICAMENT | D130: 25/10/2013 | E130: 25/10/2013 - | F130: CONVENTION D'HOSPITALITE
A131: Jean-Jacques GIRARD | B131: Médecin | C131: Lilly France SAS | D131: 03/12/2013 | E131: 01/12/2013 - 03/12/2013 | F131: INVITATION
A132: Jean-Jacques GIRARD | B132: Médecin | C132: MSD France | D132: 19/12/2013 | E132: 19/12/2013 - | F132: CONVENTION D’HOSPITALITÉ
A133: Jean-Jacques GIRARD | B133: Médecin | C133: Lilly France SAS | D133: 29/03/2014 | E133: 28/03/2014 - 29/03/2014 | F133: AUTRE : [PARTICIPATION RÉUNION SCIENTIFIQUE]
A134: Jean-Jacques GIRARD | B134: Médecin | C134: PIERRE FABRE MEDICAMENT | D134: 25/09/2014 | E134: 25/09/2014 - | F134: CONVENTION D'HOSPITALITE
A135: Jean-Jacques GIRARD | B135: Médecin | C135: Lilly France SAS | D135: 28/09/2014 | E135: 27/09/2014 - 28/09/2014 | F135: AUTRE : [PARTICIPATION R�ION SCIENTIFIQUE]
A136: Jean-Jacques GIRARD | B136: Médecin | C136: PIERRE FABRE MEDICAMENT | D136: 29/01/2015 | E136: 29/01/2015 - | F136: CONVENTION D'HOSPITALITE
A137: Jean-Jacques GIRARD | B137: Médecin | C137: PFIZER SAS | D137: 26/06/2015 | E137: 26/06/2015 - 27/06/2015 | F137: Autre : Reunion professionnelle ou scientifique
A138: Jean-Jacques GIRARD | B138: Médecin | C138: PIERRE FABRE MEDICAMENT | D138: 17/09/2015 | E138: 17/09/2015 - | F138: CONVENTION D'HOSPITALITE
A139: Jean-Jacques GIRARD | B139: Médecin | C139: BIOCODEX | D139: 24/09/2015 | E139: 24/09/2015 - 24/09/2015 | F139: FORMATION
A140: Saad ROUAGHE | B140: Médecin | C140: ROCHE SAS | D140: 19/03/2012 | E140: 19/03/2012 - | F140: RECHERCHE
A141: Saad ROUAGHE | B141: Médecin | C141: Inter-View Partners France | D141: 13/04/2012 | E141: 13/04/2012 - | F141: AUTRE ETUDE DE MARCHE
A142: Saad ROUAGHE | B142: Médecin | C142: LABORATOIRE GLAXOSMITHKLINE | D142: 19/05/2012 | E142: 19/05/2012 - | F142: Autre : [Convention d hospitalite]
A143: Saad ROUAGHE | B143: Médecin | C143: AbbVie | D143: 09/12/2012 | E143: 09/12/2012 - | F143: AUTRE : [CONTRAT DE COLLABORATION SCIENTIFIQUE]
A144: Saad ROUAGHE | B144: Médecin | C144: AbbVie | D144: 14/12/2012 | E144: 14/12/2012 - | F144: AUTRE : [CONTRAT DE COLLABORATION SCIENTIFIQUE]
A145: Saad ROUAGHE | B145: Médecin | C145: AbbVie | D145: 22/05/2013 | E145: 22/05/2013 - | F145: AUTRE: [CONVENTION HOSPITALITE]
A146: Saad ROUAGHE | B146: Médecin | C146: AbbVie | D146: 22/05/2013 | E146: 22/05/2013 - | F146: AUTRE: [CONVENTION HOSPITALITE]
A147: Saad ROUAGHE | B147: Médecin | C147: AbbVie | D147: 22/05/2013 | E147: 22/05/2013 - | F147: AUTRE: [CONVENTION HOSPITALITE]
A148: Saad ROUAGHE | B148: Médecin | C148: AbbVie | D148: 22/05/2013 | E148: 22/05/2013 - | F148: AUTRE: [CONVENTION HOSPITALITE]
A149: Saad ROUAGHE | B149: Médecin | C149: AbbVie | D149: 22/05/2013 | E149: 22/05/2013 - | F149: AUTRE: [CONVENTION HOSPITALITE]
A150: Saad ROUAGHE | B150: Médecin | C150: AbbVie | D150: 22/05/2013 | E150: 22/05/2013 - | F150: AUTRE: [CONVENTION HOSPITALITE]
A151: Saad ROUAGHE | B151: Médecin | C151: AbbVie | D151: 22/05/2013 | E151: 22/05/2013 - | F151: AUTRE: [CONVENTION HOSPITALITE]
A152: Saad ROUAGHE | B152: Médecin | C152: LES LABORATOIRES SERVIER | D152: 17/09/2013 | E152: 17/09/2013 - | F152: Autre : Manifestation scientifique
A153: Saad ROUAGHE | B153: Médecin | C153: ROCHE SAS | D153: 11/10/2013 | E153: 25/10/2013 - 30/10/2013 | F153: congrès / symposium
A154: Saad ROUAGHE | B154: Médecin | C154: ROCHE SAS | D154: 17/11/2013 | E154: 01/12/2013 - 03/12/2013 | F154: congrès / symposium
A155: Saad ROUAGHE | B155: Médecin | C155: MENARINI FRANCE | D155: 17/04/2014 | E155: 17/04/2014 - 17/04/2014 | F155: Autre : Prestation de service
A156: Saad ROUAGHE | B156: Médecin | C156: PFIZER SAS | D156: 16/05/2014 | E156: 16/05/2014 - 16/05/2014 | F156: HOSPITALITE RP/CONGRES/SYMPO
A157: Saad ROUAGHE | B157: Médecin | C157: ROCHE SAS | D157: 11/06/2014 | E157: 11/06/2014 - 14/06/2014 | F157: CongrÃ¨s / Symposium
A158: Saad ROUAGHE | B158: Médecin | C158: Inter-View Partners France | D158: 18/06/2014 | E158: 18/06/2014 - | F158: AUTRE ETUDE DE MARCHE
A159: Saad ROUAGHE | B159: Médecin | C159: UCB Pharma SA | D159: 20/06/2014 | E159: 20/06/2014 - 20/06/2014 | F159: Autre : [ hospitalité liée à une manifestation scientifique ]
A160: Saad ROUAGHE | B160: Médecin | C160: ROCHE SAS | D160: 25/06/2014 | E160: 25/06/2014 - 25/06/2014 | F160: Autre : [ Réunion professionnelle ]
A161: Saad ROUAGHE | B161: Médecin | C161: Inter-View Partners France | D161: 02/07/2014 | E161: 02/07/2014 - | F161: AUTRE ETUDE DE MARCHE
A162: Saad ROUAGHE | B162: Médecin | C162: MSD France | D162: 17/09/2014 | E162: 17/09/2014 - | F162: CONVENTION D’HOSPITALITÉ
A163: Saad ROUAGHE | B163: Médecin | C163: Inter-View Partners France | D163: 14/01/2015 | E163: 14/01/2015 - | F163: AUTRE ETUDE DE MARCHE
A164: Frédérique DURIEZ | B164: Médecin | C164: ROTTAPHARM SAS | D164: 06/06/2012 | E164: 06/06/2012 - 09/06/2012 | F164: EULAR
A165: Frédérique DURIEZ | B165: Médecin | C165: ROTTAPHARM SAS | D165: 24/10/2013 | E165: 01/12/2013 - 03/12/2013 | F165: 26E CONGRES FRANÇAIS DE RHUMATOLOGIE
A166: Frédérique DURIEZ | B166: Médecin | C166: NORDIC PHARMA SAS | D166: 07/12/2014 | E166: 07/12/2014 - 09/12/2014 | F166: congrès / symposium
A167: Carole SALOMON | B167: Médecin | C167: MSD France | D167: 20/03/2014 | E167: 20/03/2014 - | F167: CONVENTION D HOSPITALITE
A168: Carole SALOMON | B168: Médecin | C168: MSD France | D168: 17/09/2014 | E168: 17/09/2014 - | F168: CONVENTION D’HOSPITALITÉ
A169: Carole SALOMON | B169: Médecin | C169: NORDIC PHARMA SAS | D169: 07/12/2014 | E169: 07/12/2014 - 09/12/2014 | F169: congrès / symposium
A170: Carole SALOMON | B170: Médecin | C170: ROCHE SAS | D170: 16/12/2014 | E170: 16/12/2014 - 16/12/2014 | F170: Autre : [ Réunion professionnelle ]
A171: Carole SALOMON | B171: Médecin | C171: Laboratoires Expanscience | D171: 13/12/2015 | E171: 13/12/2015 - 15/12/2015 | F171: Congrès / Symposium
A172: Carole SALOMON | B172: Médecin | C172: Laboratoires Expanscience | D172: 13/12/2015 | E172: 13/12/2015 - 13/12/2015 | F172: Formation
A173: Catherine STRAUS | B173: Médecin | C173: MSD France | D173: 14/02/2012 | E173: 14/02/2012 - | F173: CONVENTION D’HOSPITALITÉ
A174: Catherine STRAUS | B174: Médecin | C174: UCB Pharma SA | D174: 08/10/2013 | E174: 08/10/2013 - 08/10/2013 | F174: Autre : [ hospitalité liée à une manifestation scientifique ]
A175: Catherine STRAUS | B175: Médecin | C175: MSD France | D175: 20/03/2014 | E175: 20/03/2014 - | F175: CONVENTION D HOSPITALITE
A176: Catherine STRAUS | B176: Médecin | C176: UCB Pharma SA | D176: 14/10/2014 | E176: 14/10/2014 - 14/10/2014 | F176: Autre : [ hospitalité liée à une manifestation scientifique ]
A177: Catherine STRAUS | B177: Médecin | C177: Arthritis Fondation Courtin | D177: 15/12/2014 | E177: 15/12/2014 - | F177: CONVENTION RECHERCHE
A178: Catherine STRAUS | B178: Médecin | C178: AbbVie | D178: 16/12/2014 | E178: 16/12/2014 - | F178: AUTRE : [CONVENTION D HOSPITALITE]
A179: Catherine STRAUS | B179: Médecin | C179: PIERRE FABRE MEDICAMENT | D179: 29/01/2015 | E179: 29/01/2015 - | F179: CONVENTION D'HOSPITALITE
A180: Catherine STRAUS | B180: Médecin | C180: ROCHE SAS | D180: 14/04/2015 | E180: 14/04/2015 - 14/04/2015 | F180: Autre : [ Runion professionnelle ]
A181: Catherine STRAUS | B181: Médecin | C181: UCB Pharma SA | D181: 13/10/2015 | E181: 13/10/2015 - 13/10/2015 | F181: CONVENTION D'HOSPITALITÉ
A182: Catherine STRAUS | B182: Médecin | C182: AbbVie | D182: 10/12/2015 | E182: 10/12/2015 - | F182: AUTRE: [CONVENTION HOSPITALITE]
A183: Hélène AMSELLEM | B183: Médecin | C183: MSD France | D183: 17/09/2014 | E183: 17/09/2014 - | F183: CONVENTION D’HOSPITALITÉ
A184: Louis DARBON | B184: Médecin | C184: AbbVie | D184: 09/12/2012 | E184: 09/12/2012 - | F184: AUTRE : [CONTRAT DE COLLABORATION SCIENTIFIQUE]
A185: Louis DARBON | B185: Médecin | C185: AbbVie | D185: 14/12/2012 | E185: 14/12/2012 - | F185: AUTRE : [CONTRAT DE COLLABORATION SCIENTIFIQUE]
A186: Louis DARBON | B186: Médecin | C186: MSD France | D186: 18/06/2013 | E186: 18/06/2013 - | F186: CONVENTION D HOSPITALITE
A187: Louis DARBON | B187: Médecin | C187: MSD France | D187: 18/06/2013 | E187: 18/06/2013 - | F187: CONVENTION D HOSPITALITE
A188: Louis DARBON | B188: Médecin | C188: IPSEN PHARMA | D188: 12/12/2013 | E188: 12/12/2013 - 12/12/2013 | F188: CONGRES/SYMPOSIUM
A189: Louis DARBON | B189: Médecin | C189: IPSEN PHARMA | D189: 20/03/2014 | E189: 05/04/2014 - 06/04/2014 | F189: CONGRES/SYMPOSIUM
A190: Louis DARBON | B190: Médecin | C190: MSD France | D190: 20/03/2014 | E190: 20/03/2014 - | F190: CONVENTION D HOSPITALITE
A191: Louis DARBON | B191: Médecin | C191: IPSEN PHARMA | D191: 25/04/2014 | E191: 24/05/2014 - 25/05/2014 | F191: CONGRES/SYMPOSIUM
A192: Louis DARBON | B192: Médecin | C192: UCB Pharma SA | D192: 14/10/2014 | E192: 14/10/2014 - 14/10/2014 | F192: Autre : [ hospitalité liée à une manifestation scientifique ]
A193: Louis DARBON | B193: Médecin | C193: IPSEN PHARMA | D193: 03/03/2015 | E193: 06/06/2015 - 07/06/2015 | F193: CONGRES/SYMPOSIUM
A194: Louis DARBON | B194: Médecin | C194: ROCHE SAS | D194: 01/04/2015 | E194: 01/04/2015 - 01/04/2015 | F194: Autre : [ Runion professionnelle ]
A195: Louis DARBON | B195: Médecin | C195: MSD France | D195: 16/06/2015 | E195: 16/06/2015 - | F195: CONVENTION D’HOSPITALITÉ
A196: Louis DARBON | B196: Médecin | C196: UCB Pharma SA | D196: 13/10/2015 | E196: 13/10/2015 - 13/10/2015 | F196: CONVENTION D'HOSPITALITÉ
A197: Louis DARBON | B197: Médecin | C197: AbbVie | D197: 10/12/2015 | E197: 10/12/2015 - | F197: AUTRE: [CONVENTION HOSPITALITE]
A198: Alain-Jean KARNEFF | B198: Médecin | C198: ROTTAPHARM SAS | D198: 24/10/2013 | E198: 01/12/2013 - 03/12/2013 | F198: 26E CONGRES FRANÇAIS DE RHUMATOLOGIE
A199: Alain-Jean KARNEFF | B199: Médecin | C199: Lilly France SAS | D199: 22/11/2013 | E199: 22/11/2013 - 22/11/2013 | F199: INVITATION
A200: Alain-Jean KARNEFF | B200: Médecin | C200: AbbVie | D200: 02/12/2013 | E200: 02/12/2013 - | F200: AUTRE: [CONVENTION HOSPITALITE]
... 601 more rows

Sheet AVANTAGES
A1: TYPE_AVTG dans Transparence.sante.gouv.fr | B1: TYPE_AVTG (libellé de regroupement)
A2: [Autre] inscription congrès | B2: Inscription
A3: [HOSPITALITE] | B3: Hospitalité
A4: [REPAS] | B4: Repas
A5: AUTRE | B5: Autre
A6: Autre : [ Forfait journée détude ] | B6: Autre
A7: Autre : [ Forfait journée détude ou forfait congrès ] | B7: Congrès
A8: Autre : [ Inscription ] | B8: Inscription
A9: AUTRE : [DEDOMMAGEMENT] | B9: Autre
A10: Autre : [ECHANTILLON] | B10: Autre
A11: Autre : [HONORAIRE] | B11: Autre
A12: Autre : [Hospitalité Evenement Scientifique] | B12: Hospitalité
A13: AUTRE : [HOSPITALITE] | B13: Hospitalité
A14: AUTRE : [INSCRIPTION CONGRÈS SCIENTIFIQUE] | B14: Inscription
A15: Autre : [Inscription Evenement Scientifique] | B15: Inscription
A16: Autre : [Inscription] | B16: Inscription
A17: Autre : [note de frais] | B17: Autre
A18: AUTRE : [PARTICIPATION EVENEMENT SCIENTIFIQUE] | B18: Congrès
A19: AUTRE : [PAUSE] | B19: Autre
A20: Autre : [Remboursement de frais] | B20: Autre
A21: AUTRE : [REMBOURSEMENT FRAIS LOGISTIQUE] | B21: Autre
A22: Autre : [Restauration] | B22: Repas
A23: AUTRE : CONGRES | B23: Autre
A24: AUTRE : DEJEUNER | B24: Repas
A25: AUTRE : DEUX PAUSES | B25: Repas
A26: AUTRE : DINER | B26: Repas
A27: AUTRE : FORMATION MEDICALE CONTINUE | B27: Autre
A28: Autre : Frais d'inscription Congrès | B28: Inscription
A29: AUTRE : HONORAIRE | B29: Autre
A30: AUTRE : HONORAIRE CONFERENCE TELEPHONIQUE | B30: Autre
A31: AUTRE : HONORAIRES | B31: Autre
A32: AUTRE : HONORAIRES CONFERENCE TELEPHONIQUE | B32: Autre
A33: AUTRE : HONORAIRES REUNION | B33: Autre
A34: AUTRE : HOSPITALITE CONGRES | B34: Congrès
A35: Autre : Indemnite | B35: Autre
A36: Autre : Inscription | B36: Inscription
A37: AUTRE : RELATIONS NORMALES DE TRAVAIL | B37: Autre
A38: AUTRE : REMBOURSEMENT DE FRAIS | B38: Autre
A39: AUTRE : REPAS PROFESSIONNEL | B39: Repas
A40: AUTRE : REUNION | B40: Autre
A41: AUTRE : RNT | B41: Autre
A42: AUTRE [ENQUETE] | B42: Autre
A43: AUTRE [FRAIS D INSCRIPTION] | B43: Inscription
A44: AUTRE [INSCRIPTION] | B44: Inscription
A45: AUTRE [PAUSE] | B45: Autre
A46: AUTRE [RESTAURATION STAFF] | B46: Repas
A47: Autre: [Enquête] | B47: Autre
A48: AUTRE: [HEBERGEMENT ET RESTAURATIONS] | B48: Hébergement
A49: AUTRE: [INSCRIPTION] | B49: Inscription
A50: AUTRE: DEJEUNER | B50: Repas
A51: AUTRE: DEJEUNER/RESTO ITALIEN BON | B51: Repas
A52: AUTRE: HOSPITALITE | B52: Hospitalité
A53: AUTRE: INSCRIPTION | B53: Inscription
A54: AUTRE: SOIREE | B54: Hospitalité
A55: AUTRE: SOIREE/SOIREE | B55: Autre
A56: AUTRES | B56: Autre
A57: AUTRES: INSCRIPTION | B57: Inscription
A58: CADEAUX | B58: Autre
A59: COLLATION | B59: Repas
A60: CONGRES/HEBERGEMENT (1 NUITEES) | B60: Hébergement
A61: CONGRES/HEBERGEMENT 3 NUITS | B61: Hébergement
A62: CONGRES/INSCRIPTION | B62: Inscription
A63: CONGRES/REPAS X3 | B63: Repas
A64: conseil | B64: Conseil
A65: Conseil - Intervention Ponctuelle | B65: Autre
A66: Dédommagement | B66: Autre
A67: DEJEUNER | B67: Repas
A68: déjeuner | B68: Repas
A69: DEJEUNER/DEJEUNER | B69: Repas
A70: DEJEUNER/REPAS | B70: Repas
A71: Déplacement | B71: Transport
A72: Dons de fonctionnement | B72: Autre
A73: DONS DE MATERIEL | B73: Autre
A74: Droits d'auteur pris en charge par UCB | B74: Autre
A75: enquête | B75: Autre
A76: EPU | B76: Repas
A77: EPU/DINER | B77: Repas
A78: FRAIS DE BOUCHE | B78: Repas
A79: Frais de dÃƒÂ©placement | B79: Transport
A80: FRAIS DE DEPLACEMENT | B80: Transport
A81: Frais d'inscription à une réunion scientifique | B81: A définir
A82: Frais remboursés (transport) | B82: Transport
A83: H‚bergement | B83: Hébergement
A84: HÃ©bergement | B84: Hébergement
A85: HÃ‰BERGEMENT | B85: Hébergement
A86: HEBERGEMENT | B86: Hébergement
A87: Hébergement | B87: Hébergement
A88: Hébérgement | B88: Hébergement
A89: HEBERGEMENT SUR TOUTE LA DUREE DU CONGRES | B89: Hébergement
A90: Hébergement, restauration, transport | B90: Hospitalité
A91: HOSPITALITE | B91: Hospitalité
A92: HOSPITALITÉ | B92: Hospitalité
A93: HOSPITALITE - RELATIONS NORMALES DE TRAVAIL | B93: Hospitalité
A94: HOSPITALITE CONGRES | B94: Hospitalité
A95: HOSPITALITE REUNION PROFESSIONNELLE | B95: Hospitalité
A96: HOSPITALITE SITES PIERRE FABRE | B96: Hospitalité
A97: HOSPITALITE STAFF | B97: Hospitalité
A98: INCRIPTION | B98: Inscription
A99: INDEMNITE | B99: Autre
A100: INSCRIPTION | B100: Inscription
A101: INSCRIPTION CONGRES | B101: Inscription
A102: INVITATIONS | B102: Autre
A103: Logement | B103: Hébergement
A104: Prestation en tant que formateur et orateur | B104: Autre
A105: Repas | B105: Repas
A106: REPAS CONGRES | B106: Repas
A107: REPAS IMPROMPTU | B107: Repas
A108: REPAS MANIFESTATION DE FORMATION | B108: Repas
A109: REPAS PROFESSIONNEL | B109: Repas
A110: REPAS RELATION NORMALE DE TRAVAIL | B110: Repas
A111: REPAS REUNION | B111: Repas
A112: REPAS REUNION HOSPITALIERE | B112: Repas
A113: REPAS RÉUNION HOSPITALIÈRE | B113: Repas
A114: REPAS REUNION SCIENTIFIQUE | B114: Repas
A115: REPAS SUR TOUTE LA DUREE DU CONGRES | B115: Repas
A116: Restauration | B116: Repas
A117: SOIREE | B117: Repas
A118: SOIREE/REPAS | B118: Repas
A119: SOIREE/RP | B119: Autre
A120: STAFF | B120: Autre
A121: Taxonomie EFPIA | B121: Autre
A122: TRANBSPORT | B122: Transport
A123: TRANSFERT-REPAS(DINER) | B123: Repas
A124: Transport | B124: Transport
A125: TRANSPORT ALLER/RETOUR -REPAS(DINERS-DEJEUNERS-PAUSES)-HEBERGEMENT-TRANSFERT | B125: Hospitalité
A126: Transport pris en charge par UCB | B126: Transport
A127: VISITE/(2 X GO-ON 25MG) | B127: Autre
A128: VISITE/(3 X GO-ON 25MG) | B128: Autre
A129: VISITE/GO-ON 25MG | B129: Autre
A130: FRAIS D'HOSPITALITÉ | B130: Hospitalité
A131: AUTRE: STAFF | B131: Repas

Sheet CONVENTIONS
A1: TYPE_CONVENTION dans Transparence.sante.gouv.fr | B1: TYPE_CONVENTION (libellé de regroupement)
A2: [AUTRE] : [COLLABORATION SCIENTIFIQUE] | B2: Expert
A3: [AUTRE] : [CONVENTION HOSPITALITE] | B3: Hospitalité
A4: [BOARD EXPERTS] | B4: Réunion de « Board »
A5: [MARKETING] | B5: Etude de marché
A6: [MARKETING] | B6: Etude de marché
A7: [ORATEUR] | B7: Orateur
A8: [ORATEURS MODERATEURS] | B8: Orateur
A9: [REUNION INFORMATION MEDICALE] | B9: Réunion professionnelle
A10: 26E CONGRES FRANÇAIS DE RHUMATOLOGIE | B10: Réunion professionnelle
A11: AMERICAN COLLEGE OF RHEUMATHOLOGY ACR/ARHP ANNUAL MEETING 2012 | B11: Réunion professionnelle
A12: ASSISES BARCELONE | B12: Réunion professionnelle
A13: AUTRE | B13: Autre
A14: AUTRE | B14: Autre
A15: Autre : [ Collaboration Scientifique ] | B15: Expert
A16: Autre : [ Collaboration Scientifique ] | B16: Expert
A17: Autre : [ EPU ] | B17: Réunion professionnelle
A18: Autre : [ EPU ] | B18: Réunion professionnelle
A19: Autre : [ Expert ] | B19: Expert
A20: Autre : [ Expert ] | B20: Expert
A21: Autre : [ hospitalité liée à une manifestation scientifique ] | B21: Hospitalité
A22: Autre : [ hospitalité liée à une manifestation scientifique ] | B22: Hospitalité
A23: Autre : [ Manifestation professionnelle ] | B23: Réunion professionnelle
A24: Autre : [ Manifestation professionnelle ] | B24: Réunion professionnelle
A25: Autre : [ Orateur / Intervenant ] | B25: Orateur
A26: Autre : [ Orateur ] | B26: Orateur
A27: Autre : [ Prestation ] | B27: Conseil
A28: Autre : [ R‚union professionnelle ] | B28: Réunion professionnelle
A29: Autre : [ R‚union professionnelle ] | B29: Réunion professionnelle
A30: Autre : [ Runion professionnelle ] | B30: Réunion professionnelle
A31: Autre : [ Runion professionnelle ] | B31: Réunion professionnelle
A32: Autre : [ Reunion professionnelle ] | B32: Réunion professionnelle
A33: Autre : [ Réunion professionnelle ] | B33: Réunion professionnelle
A34: Autre : [ Reunion professionnelle ] | B34: Réunion professionnelle
A35: Autre : [ Réunion professionnelle ] | B35: Réunion professionnelle
A36: Autre : [collaboration scientifique] | B36: Expert
A37: Autre : [Communication scientifique] | B37: Expert
A38: Autre : [Communication scientifique] | B38: Conseil
A39: Autre : [Consultant (HCP)] | B39: Conseil
A40: Autre : [Consultant (HCP)] | B40: Conseil
A41: Autre : [Consultant] | B41: Conseil
A42: Autre : [Contrat autre] | B42: Autre
A43: Autre : [Contrat autre] | B43: Autre
A44: AUTRE : [CONTRAT DE COLLABORATION SCIENTIFIQUE] | B44: Expert
A45: AUTRE : [CONTRAT DE COLLABORATION SCIENTIFIQUE] | B45: Expert
A46: AUTRE : [CONTRAT DE CONSEIL & PRESTATION] | B46: Conseil
A47: AUTRE : [CONTRAT DE CONSEIL & PRESTATION] | B47: Conseil
A48: AUTRE : [CONTRAT D'ORATEUR] | B48: Orateur
A49: AUTRE : [CONTRAT D'ORATEUR] | B49: Orateur
A50: Autre : [CONTRAT_DE_PRESTATIONS_DE_SERVICES] | B50: Conseil
A51: AUTRE : [CONVENTION D HOSPITALITE] | B51: Hospitalité
A52: AUTRE : [CONVENTION D HOSPITALITE] | B52: Hospitalité
A53: Autre : [Convention d’Hospitalité] | B53: Hospitalité
A54: Autre : [CONVENTION D'HOSPITALITE] | B54: Hospitalité
A55: Autre : [CONVENTION D'HOSPITALITE] | B55: Hospitalité
A56: Autre : [Convention d'hospitalité] | B56: Hospitalité
A57: AUTRE : [CONVENTION HOSPITALITE] | B57: Hospitalité
A58: AUTRE : [CONVENTION SANS REMUNERATION]. | B58: Autre
A59: Autre : [entretien] | B59: Etude de marché
A60: Autre : [Espace publicitaire] | B60: Autre
A61: AUTRE : [ETUDE CLINIQUE] | B61: Recherche Clinique
A62: Autre : [EXPERT CONSULTANT] | B62: Expert
A63: Autre : [Expertise] | B63: Expert
A64: Autre : [Face face] | B64: Autre
A65: AUTRE : [HOSPITALITÉ EVENEMENT SCIENTIFIQUE] | B65: Hospitalité
A66: Autre : [Hospitalité Evenement] | B66: Hospitalité
A67: Autre : [Hospitalité Evenement] | B67: Hospitalité
A68: Autre : [Hospitalité Genzyme] | B68: Hospitalité
A69: Autre : [Hospitalité] | B69: Hospitalité
A70: AUTRE : [INTERVENANT] | B70: A définir
A71: Autre : [Invitation individuelle] | B71: Autre
A72: Autre : [Invitation individuelle] | B72: Autre
A73: Autre : [Opération SA/Journée-Soirée] | B73: Autre
A74: Autre : [Opérations Genzyme] | B74: Autre
A75: Autre : [Orateur] | B75: Orateur
A76: Autre : [Orateur] | B76: Orateur
A77: AUTRE : [PARTICIPATION RÉUNION SCIENTIFIQUE] | B77: Réunion professionnelle
A78: AUTRE : [PARTICIPATION RÉUNION SCIENTIFIQUE] | B78: Réunion professionnelle
A79: AUTRE : [PARTICIPATION R�ION SCIENTIFIQUE] | B79: Réunion professionnelle
A80: AUTRE : [PARTICIPATION R�ION SCIENTIFIQUE] | B80: Réunion professionnelle
A81: Autre : [Recherche biomédicale] | B81: Recherche Clinique
A82: Autre : [Recherche biomédicale] | B82: Recherche Clinique
A83: Autre : [Recherche/Développement] | B83: Recherche Clinique
A84: Autre : [Recherche/Développement] | B84: Recherche Clinique
A85: Autre : [Réunion] | B85: Réunion professionnelle
A86: Autre : [Réunion] | B86: Réunion professionnelle
A87: Autre : [RP Prédéclarée Hospitalité] | B87: Hospitalité
A88: AUTRE : [RP Table ronde actu Rhumatologie] | B88: Réunion professionnelle
A89: AUTRE : [RP TFI] | B89: Orateur
A90: Autre : [STAFF] | B90: Réunion professionnelle
A91: Autre : [STAFF] | B91: Réunion professionnelle
A92: Autre : Auteur - rédacteur | B92: Rédacteur
A93: Autre : Contrat consultant | B93: Conseil
A94: Autre : Contrat consultant | B94: Conseil
A95: Autre : Contrat intervenant | B95: Orateur
A96: Autre : Contrat intervenant | B96: Orateur
A97: AUTRE : CONVENTION DE COLLABORATION SCIENTIFIQUE | B97: Expert
A98: AUTRE : CONVENTION D'HOSPITALITE | B98: Hospitalité
A99: AUTRE : CONVENTION D'HOSPITALITE ET DE COLLABORATION SCIENTIFIQUE | B99: Expert
A100: autre : enquête téléphonique | B100: Etude de marché
A101: autre : enquête téléphonique | B101: Etude de marché
A102: autre : enquête téléphonique | B102: Etude de marché
A103: autre : enquête web | B103: Etude de marché
A104: autre : enquête web | B104: Etude de marché
A105: autre : ETUDE | B105: Etude de marché
A106: Autre : ETUDE DE MARCHE | B106: Etude de marché
A107: Autre : Etude de marché | B107: Etude de marché
A108: Autre : ETUDE DE MARCHE | B108: Etude de marché
A109: Autre : Etude de marché | B109: Etude de marché
A110: AUTRE : EXPERT INTERVENANT | B110: Expert
A111: AUTRE : EXPERTISE PARTAGEE | B111: Expert
A112: Autre : Intervenant (Orateur/ ModÃ©rateur/ PrÃ©sident...) | B112: Orateur
A113: Autre : Intervenant (Orateur/ Modérateur/ Président...) | B113: Orateur
A114: AUTRE : MANIFESTATION DE PROMOTION | B114: Autre
A115: Autre : Manifestation scientifique | B115: Réunion professionnelle
A116: Autre : ORATEUR REUNION POST EULAR MONTPELLIER | B116: Orateur
A117: AUTRE : PARTICIPATION A MANIFESTATION SCIENTIFIQUE | B117: Réunion professionnelle
A118: AUTRE : PARTICIPATION A MANIFESTATION SCIENTIFIQUE | B118: Orateur
A119: Autre : Prestation de service | B119: Conseil
A120: Autre : Prestation de service | B120: Conseil
A121: AUTRE : REFLEXION SCIENTFIQUE EVENEMENT INTERDISCIPLINAIRE | B121: Conseil
A122: Autre : Reunion professionnelle ou scientifique | B122: Réunion professionnelle
A123: Autre : Réunion professionnelle ou scientifique | B123: Réunion professionnelle
A124: Autre : Reunion professionnelle ou scientifique | B124: Réunion professionnelle
A125: Autre : Réunion professionnelle ou scientifique | B125: Réunion professionnelle
A126: Autre : Réunion scientifique | B126: Réunion professionnelle
A127: Autre : Réunion scientifique | B127: Réunion professionnelle
A128: Autre : RP de type EPU (2007-01) | B128: Réunion professionnelle
A129: Autre : RP de type EPU (2007-01) | B129: Réunion professionnelle
A130: AUTRE [CONNEXION] | B130: Autre
A131: AUTRE [CONNEXION] | B131: Autre
A132: AUTRE [CONTRAT D ORATEUR] | B132: Orateur
A133: AUTRE [CONTRAT D ORATEUR] | B133: Orateur
A134: AUTRE [CONTRAT DE CONSULTANT] | B134: Conseil
A135: AUTRE [CONTRAT DE CONSULTANT] | B135: Conseil
A136: AUTRE [CONTRAT ORATEUR] | B136: Orateur
A137: AUTRE [CONTRAT ORATEUR] | B137: Orateur
A138: AUTRE [CONVENTION D EXPERT] | B138: Expert
A139: AUTRE [CONVENTION D EXPERT] | B139: Expert
A140: Autre [CONVENTION D HOSPITALITE] | B140: Hospitalité
A141: AUTRE [CONVENTION D HOSPITALITE] | B141: Hospitalité
A142: AUTRE [CONVENTION D ORATEUR] | B142: Orateur
A143: AUTRE [CONVENTION D ORATEUR] | B143: Orateur
A144: AUTRE [CONVENTION HOSPITALITE] | B144: Hospitalité
A145: AUTRE [EXPERT] | B145: Expert
A146: AUTRE [EXPERT] | B146: Expert
A147: AUTRE ETUDE DE MARCHE | B147: Etude de marché
A148: AUTRE ETUDE DE MARCHE | B148: Etude de marché
A149: AUTRE: [CONTRAT DE COLLABORATION SCENTIFIQUE] | B149: Expert
A150: AUTRE: [CONTRAT DE COLLABORATION SCENTIFIQUE] | B150: Expert
A151: AUTRE: [CONTRAT DE COLLABORATION SCIENTIFIQUE] | B151: Expert
A152: AUTRE: [CONTRAT DE COLLABORATION SCIENTIFIQUE] | B152: Expert
A153: AUTRE: [CONTRAT INVESTIGATEUR] | B153: Recherche Clinique
A154: AUTRE: [CONVENTION HOSPITALITE] | B154: Hospitalité
A155: AUTRE: [CONVENTION HOSPITALITE] | B155: Hospitalité
A156: AUTRE: [CONVENTION] | B156: Autre
A157: AUTRE: [ETUDE DE MARCHE] | B157: Etude de marché
A158: AUTRE: [ETUDE DE MARCHE] | B158: Etude de marché
A159: AUTRE: [HOSPITALITE] | B159: Hospitalité
A160: AUTRE: 27EME JOURNEE SCIENTIFIQUE DU GRIO | B160: Réunion professionnelle
A161: Autre: Collaboration pour une Etude de Marché | B161: Etude de marché
A162: Autre: Collaboration pour une Etude de Marché | B162: Etude de marché
A163: AUTRE: COLLABORATION POUR UNE ETUDE DE MARCHÉ | B163: Etude de marché
A164: AUTRE: CONVENTION D'HOSPITALITE | B164: Hospitalité
A165: autre: ETUDE | B165: Etude de marché
A166: AUTRE: ETUDES DE MARCHE SONDAGES | B166: Etude de marché
A167: Autre: Intervenant | B167: Orateur
A168: autre: REDACTION D'ARTICLES | B168: Rédacteur
A169: AUTRE:[CONVENTION HOSPITALITE] | B169: Hospitalité
A170: AUTRE[EXPERTISE] | B170: Expert
A171: Autre[INTERVENTION EPU LIMOGES 13/01/2015] | B171: Orateur
A172: Autre[INTERVENTION REUNION BEZIERS 21 MAI] | B172: Réunion professionnelle
A173: Autre[INTERVENTION REUNION P EULAR LIMOGES 8 OCTOBRE 15] | B173: Orateur
A174: Autre[INTERVENTION REUNION P EULAR LYON LE 2 JUILLET] | B174: Orateur
A175: Autre[ORATEUR REUNION POST EULAR AGEN] | B175: Orateur
A176: Autre[ORATEUR REUNION POST EULAR BORDEAUX] | B176: Orateur
A177: Autre[ORATEUR REUNION POST EULAR PARIS] | B177: Orateur
A178: Autre[ORATEUR REUNION POST EULAR ROUEN] | B178: Orateur
A179: Autre[ORATEUR REUNION POST EULAR TOULOUSE] | B179: Orateur
A180: Autre[ORATEUR REUNION POST EULAR TOURS] | B180: Orateur
A181: Board | B181: Réunion de « Board »
A182: Collaboration Editions Scientifiques | B182: Rédacteur
A183: Collaboration Scientifique - Conseil | B183: Conseil
A184: COLLABORATION SCIENTIFIQUE ET PROFESSIONNELLE | B184: Expert
A185: Comite Echange scientifique | B185: Expert
A186: Comite Expert | B186: Expert
A187: COMITE SCIENTIFIQUE | B187: Expert
A188: CONFÉRENCE PRESSE | B188: Autre
A189: Congrs / Symposium | B189: Réunion professionnelle
A190: Congrs / Symposium | B190: Réunion professionnelle
A191: CongrÃ¨s / Symposium | B191: Réunion professionnelle
A192: CONGRES | B192: Réunion professionnelle
A193: Congrès | B193: Réunion professionnelle
A194: CONGRES | B194: Réunion professionnelle
A195: CONGRES / SYMPOSIUM | B195: Réunion professionnelle
A196: Congrès / symposium | B196: Réunion professionnelle
A197: Congres / Symposium | B197: Réunion professionnelle
A198: Congrès / Symposium | B198: Réunion professionnelle
A199: CONGRÈS / SYMPOSIUM/ RP | B199: Réunion professionnelle
A200: CONGRES REUNION SCIENTIFIQUE STRASBOURG | B200: Réunion professionnelle
... 118 more rows

Sheet FIRMES
A1: FIRME dans Transparence.sante.gouv.fr | B1: FIRME (libellé de regroupement)
A2: 22 Juillet Conseil | B2: 22 Juillet Conseil
A3: 3-D Matrix Europe SAS | B3: 3-D Matrix Europe SAS
A4: 3M Belgium bvba/sprl | B4: 3M Belgium bvba/sprl
A5: 3M Deutschland GmbH | B5: 3M Deutschland GmbH
A6: 3M France | B6: 3M France
A7: 3M MAROC | B7: 3M MAROC
A8: 3M United Kingdom PLC | B8: 3M United Kingdom PLC
A9: 3S ORTHO | B9: 3S ORTHO
A10: 4Tech Cardio Ltd | B10: 4Tech Cardio Ltd
A11: 7 MED INDUSTRIE | B11: 7 MED INDUSTRIE
A12: A a Z SANTE | B12: A a Z SANTE
A13: A DEC INTERNATIONAL INC | B13: A DEC INTERNATIONAL INC
A14: A.I.R. | B14: A.I.R.
A15: A.MENARINI diagnostics | B15: A.MENARINI diagnostics
A16: A.R.C. Pharma | B16: A.R.C. Pharma
A17: A+A | B17: A+A
A18: a2m rehateam | B18: a2m rehateam
A19: AADAIRC | B19: AADAIRC
A20: ABBOTT FRANCE | B20: ABBOTT
A21: ABBOTT HEALTHCARE SAS | B21: ABBOTT
A22: ABBOTT PRODUCTS SAS | B22: ABBOTT
A23: AbbVie | B23: AbbVie
A24: ABENA-FRANTEX | B24: ABENA-FRANTEX
A25: Abiomed GmbH | B25: Abiomed GmbH
A26: ABM | B26: ABM
A27: abmedica | B27: abmedica
A28: ABS-Bolton Medical | B28: ABS-Bolton Medical
A29: accomed | B29: accomed
A30: ACCOVION SARL | B30: ACCOVION SARL
A31: Accuray Europe | B31: Accuray Europe
A32: ACIST Europe BV | B32: ACIST Europe BV
A33: ACM | B33: ACM
A34: Acorda Therapeutics, Inc. | B34: Acorda Therapeutics, Inc.
A35: ACOUSTIQUE MEDICAL DU LITTORAL | B35: ACOUSTIQUE MEDICAL DU LITTORAL
A36: ACS-Agence Conseil Santé | B36: ACS-Agence Conseil Santé
A37: ACT+ Consulting | B37: ACT+ Consulting
A38: ACTAVIS GROUP PTC EHF | B38: ACTAVIS GROUP PTC EHF
A39: Actelion Pharmaceuticals France | B39: Actelion
A40: Actelion Pharmaceuticals Ltd | B40: Actelion
A41: ACTION D'ECLAT | B41: ACTION D'ECLAT
A42: ADAIR | B42: ADAIR
A43: ADAPSIA | B43: ADAPSIA
A44: ADDMEDICA | B44: ADDMEDICA
A45: ADEP ASSISTANCE | B45: ADEP ASSISTANCE
A46: Adept Field Solutions | B46: Adept Field Solutions
A47: ADIR ASSISTANCE | B47: ADIR ASSISTANCE
A48: Adiral Assistance | B48: Adiral Assistance
A49: ADIRAL Association d'Aide aux Traitements Ã Domicile | B49: ADIRAL Association d'Aide aux Traitements Ã Domicile
A50: ADLER ORTHO France | B50: ADLER ORTHO France
A51: Adler Ortho srl | B51: Adler Ortho srl
A52: ADS ALSACE | B52: ADS ALSACE
A53: ADS CHAMPAGNE ARDENNE | B53: ADS CHAMPAGNE ARDENNE
A54: ADS LORRAINE | B54: ADS LORRAINE
A55: ADVANCE SAS | B55: ADVANCE SAS
A56: Advanced Accelerator Applications | B56: Advanced Accelerator Applications
A57: Advanced Accelerator Applications International SA | B57: Advanced Accelerator Applications International SA
A58: ADVANCED BIONICS SARL | B58: ADVANCED BIONICS SARL
A59: Advanced Medical Services, AMS GmbH | B59: Advanced Medical Services, AMS GmbH
A60: ADVICENNE | B60: ADVICENNE
A61: Aegerion Pharmaceuticals | B61: Aegerion Pharmaceuticals
A62: AERIS Medical SAS | B62: AERIS Medical SAS
A63: AEROGEN | B63: AEROGEN
A64: AFFINITES SANTE | B64: AFFINITES SANTE
A65: Agence Conseil 3P | B65: Agence Conseil 3P
A66: Agfa HealthCare France SA | B66: Agfa HealthCare France SA
A67: AGFA Healthcare Imaging Agents France | B67: AGFA Healthcare Imaging Agents France
A68: AGILENT TECHNOLOGIES FRANCE | B68: AGILENT TECHNOLOGIES FRANCE
A69: AGIR Ã dom Assistance | B69: AGIR Ã dom Assistance
A70: Aide aux Insuffisants Respiratoires de la Région Auvergne (A.I.R.R.A.) | B70: Aide aux Insuffisants Respiratoires de la Région Auvergne (A.I.R.R.A.)
A71: AIR A DOMICILE | B71: AIR A DOMICILE
A72: AIR DE BRETAGNE | B72: AIR DE BRETAGNE
A73: AIR DOMICILE SANTE ALPES | B73: AIR DOMICILE SANTE ALPES
A74: AIR DOMICILE VALLEE DU RHONE | B74: AIR DOMICILE VALLEE DU RHONE
A75: Air Liquide European Homecare Operations Services | B75: Air Liquide European Homecare Operations Services
A76: AIR LIQUIDE MEDICAL SYSTEMS | B76: AIR LIQUIDE MEDICAL SYSTEMS
A77: AIR LIQUIDE SANTE (INTERNATIONAL) | B77: AIR LIQUIDE SANTE (INTERNATIONAL)
A78: AIR LIQUIDE SANTE FRANCE | B78: AIR LIQUIDE SANTE FRANCE
A79: AIR SANTE | B79: AIR SANTE
A80: AIRE | B80: AIRE
A81: AIREL | B81: AIREL
A82: AIXPER'F | B82: AIXPER'F
A83: AJ4MED | B83: AJ4MED
A84: ALAIN AFFLELOU FRANCHISEUR | B84: ALAIN AFFLELOU FRANCHISEUR
A85: ALAIR & AVD | B85: ALAIR & AVD
A86: Alcimed GmbH | B86: Alcimed GmbH
A87: Alcimed Inc | B87: Alcimed Inc
A88: Alcimed SARL | B88: Alcimed SARL
A89: Alcimed SAS | B89: Alcimed SAS
A90: Alcimed Sprl | B90: Alcimed Sprl
A91: Alcura France | B91: Alcura France
A92: ALERE E-SANTE SAS | B92: ALERE E-SANTE SAS
A93: ALERE SAS | B93: ALERE SAS
A94: Alexion Pharma France | B94: Alexion Pharma France
A95: ALFA WASSERMANN PHARMA | B95: ALFA WASSERMANN PHARMA
A96: Align Technology SAS | B96: Align Technology SAS
A97: Alimera Sciences France | B97: Alimera Sciences France
A98: ALISEO | B98: ALISEO
A99: Alizé Pharma SAS | B99: Alizé Pharma SAS
A100: Alizé Santé | B100: Alizé Santé
A101: ALK-Abelló | B101: ALK-Abelló
A102: ALKAPHARM | B102: ALKAPHARM
A103: All Global | B103: All Global
A104: ALLERGAN FRANCE | B104: ALLERGAN FRANCE
A105: alliance healthcare repartition | B105: alliance healthcare repartition
A106: ALLIANCE'PERF | B106: ALLIANCE'PERF
A107: ALLP MEDITEC | B107: ALLP MEDITEC
A108: ALMIRALL SAS | B108: ALMIRALL SAS
A109: ALMUS | B109: ALMUS
A110: ALPHATEC SPINE INC | B110: ALPHATEC SPINE INC
A111: ALPHEGA | B111: ALPHEGA
A112: ALPINE SCIENTIFIC | B112: ALPINE SCIENTIFIC
A113: ALSANZA sarl | B113: ALSANZA sarl
A114: ALTEOR | B114: ALTEOR
A115: alveol'air | B115: alveol'air
A116: ALVIMEDICA Medical Technologie France | B116: ALVIMEDICA Medical Technologie France
A117: AM AUDITION | B117: AM AUDITION
A118: AMADEUS SANTE | B118: AMADEUS SANTE
A119: AMC APPAREILLAGE ET MATERIEL DE CARDIOLOGIE | B119: AMC APPAREILLAGE ET MATERIEL DE CARDIOLOGIE
A120: American Medical Systems France | B120: American Medical Systems France
A121: American Orthodontics | B121: American Orthodontics
A122: AMGEN SAS | B122: Amgen
A123: AMICUS THERAPEUTICS SAS | B123: AMICUS THERAPEUTICS SAS
A124: AMO FRANCE SAS | B124: AMO FRANCE SAS
A125: AMO Germany GmbH | B125: AMO Germany GmbH
A126: AMO INC USA | B126: AMO INC USA
A127: Amplifon Groupe France | B127: Amplifon Groupe France
A128: AMPLITUDE | B128: AMPLITUDE
A129: AMS 25 | B129: AMS 25
A130: AMS 70 | B130: AMS 70
A131: AMS 88 | B131: AMS 88
A132: ANERA | B132: ANERA
A133: ANNAYAKE | B133: ANNAYAKE
A134: ANTADIR | B134: ANTADIR
A135: Antadir Assistance SAS | B135: Antadir Assistance SAS
A136: ANTHOGYR | B136: ANTHOGYR
A137: ANTILLES AUDITION GUADELOUPE | B137: ANTILLES AUDITION GUADELOUPE
A138: AOTI Ltd | B138: AOTI Ltd
A139: APARD | B139: APARD
A140: apol | B140: apol
A141: APOLLO ENDOSURGERY UK LTD | B141: APOLLO ENDOSURGERY UK LTD
A142: Applied Medical France | B142: Applied Medical France
A143: APROVA | B143: APROVA
A144: APTALIS PHARMA SAS | B144: APTALIS PHARMA SAS
A145: Aptiv Solutions | B145: Aptiv Solutions
A146: AQUILAB | B146: AQUILAB
A147: ARAIR Assistance | B147: ARAIR Assistance
A148: ARAIR Assistance S.A. | B148: ARAIR Assistance S.A.
A149: ARAIRCHAR | B149: ARAIRCHAR
A150: arard | B150: arard
A151: ARCHIMEDES PHARMA France | B151: ARCHIMEDES PHARMA France
A152: ARCOS | B152: ARCOS
A153: ARGON MEDICAL DEVICES | B153: ARGON MEDICAL DEVICES
A154: ARIAD Pharmaceuticals (France) | B154: ARIAD Pharmaceuticals (France)
A155: ARJOHUNTLEIGH | B155: ARJOHUNTLEIGH
A156: ARROW GENERIQUES SAS | B156: ARROW GENERIQUES SAS
A157: ARSENAL-CDM | B157: ARSENAL-CDM
A158: ART&COS | B158: ART&COS
A159: ARTHES | B159: ARTHES
A160: Arthrex SAS | B160: Arthrex SAS
A161: Arthritis Fondation Courtin | B161: Arthritis Fondation Courtin
A162: ArthroCare France | B162: ArthroCare France
A163: Artialis | B163: Artialis
A164: ARX SAS | B164: ARX SAS
A165: ASAHI INTECC CO., LTD. | B165: ASAHI INTECC CO., LTD.
A166: ASDIA | B166: ASDIA
A167: Asept InMed | B167: Asept InMed
A168: ASKLE SANTE | B168: ASKLE SANTE
A169: ASPEN FRANCE | B169: ASPEN FRANCE
A170: ASPIDE AESTHETIC | B170: ASPIDE AESTHETIC
A171: ASPIDE MEDICAL | B171: ASPIDE MEDICAL
A172: ASSISTANCE DU GRAND EST | B172: ASSISTANCE DU GRAND EST
A173: ASSISTANCES MEDICALES SPECIALISEES | B173: ASSISTANCES MEDICALES SPECIALISEES
A174: Association Françoise et Eugène MINKOWSKI pour la santé mentale des migrants | B174: Association Françoise et Eugène MINKOWSKI pour la santé mentale des migrants
A175: Association pour le Développement de lâ€™Enseignement et des Recherches auprès des universités des centres de recherches et des entreprises dâ€™Aquitaine (ADERA) | B175: Association pour le Développement de lâ€™Enseignement et des Recherches auprès des universités des centres de recherches et des entreprises dâ€™Aquitaine (ADERA)
A176: ASTELLAS PHARMA | B176: ASTELLAS PHARMA
A177: ASTELLAS PHARMA B.V. | B177: ASTELLAS PHARMA B.V.
A178: ASTELLAS PHARMA GLOBAL DEVELOPMENT | B178: ASTELLAS PHARMA GLOBAL DEVELOPMENT
A179: ASTELLAS PHARMA GmbH | B179: ASTELLAS PHARMA GmbH
A180: ASTELLAS PHARMA Inc | B180: ASTELLAS PHARMA Inc
A181: ASTELLAS PHARMA Ltd | B181: ASTELLAS PHARMA Ltd
A182: ASTELLAS PHARMA S.A. | B182: ASTELLAS PHARMA S.A.
A183: Astellas Pharma Singapore Pte. Ltd. | B183: Astellas Pharma Singapore Pte. Ltd.
A184: ASTELLAS PHARMACEUTICALS AE | B184: ASTELLAS PHARMACEUTICALS AE
A185: ASTON MEDICAL Anciennement SOCIETE DE GENIE MEDICAL - S.G.M. | B185: ASTON MEDICAL Anciennement SOCIETE DE GENIE MEDICAL - S.G.M.
A186: ASTRAZENECA | B186: ASTRAZENECA
A187: Athersys, Inc. | B187: Athersys, Inc.
A188: Atlantic Pharmacetuicals Ltd | B188: Atlantic Pharmacetuicals Ltd
A189: ATLANTIC SURDITE | B189: ATLANTIC SURDITE
A190: ATLANTIS DIFFUSION | B190: ATLANTIS DIFFUSION
A191: ATLANTIS DIFFUSION SAM | B191: ATLANTIS DIFFUSION SAM
A192: ATOS MEDICAL SAS | B192: ATOS MEDICAL SAS
A193: AtriCure, Inc. | B193: AtriCure, Inc.
A194: AUDARMOR | B194: AUDARMOR
A195: Audika Groupe SA | B195: Audika Groupe SA
A196: audio acoustique sud | B196: audio acoustique sud
A197: AUDIOCONSULTING | B197: AUDIOCONSULTING
A198: AUDIOELYSCAU | B198: AUDIOELYSCAU
A199: AUDIOMEDI SAS | B199: AUDIOMEDI SAS
A200: AudioNova France SAS | B200: AudioNova France SAS
... 1715 more rows

Sheet Conception
B2: Concepteur :
D4: François PESTY
D5: Pharmacien, Ancien Interne des Hôpitaux de Paris, Institut Supérieur de Gestion,
D6: Consultant indépendant,
D7: Expert-Conseil en organisation et informatisation du circuit du médicament / Optimisation des approvisionnements et des stocks pharmaceutiques / Pilotage « médico-économique » des médicaments et dispositifs médicaux / Campagne « pilotes » de visites médicalisées des délégués de l’assurance maladie sur le médicament / Pertinence des traitements médicamenteux
D12: 2, square Gay Lussac
D13: 78330 Fontenay le Fleury
D14: Francois.PESTY@Wanadoo.fr
D15: 01 30 45 03 59 / 06 88 89 53 51
B18: François PESTY est membre de l'association FORMINDEP,

Sheet Tableaux de synthèse
C3: Synthèse | F3: Avantages perçus | N3: Conventions signées | Y3: Montants des avantages versés par les entreprises - Montants des avantages versés par les entreprises - Montants des avantages versés par les entreprises - Montants des avantages versés | CS3: Nombres d'avantages versés par les entreprises - Nombres d'avantages versés par les entreprises - Nombres d'avantages versés par les entreprises - Nombres d'avantages versés par les entreprises - Nombres d'avantages versés par les entreprises - | FM3: Nombres de conventions signées avec les entreprises - Nombres de conventions signées avec les entreprises - Nombres de conventions signées avec les entreprises - Nombres de conventions signées avec les entreprises - Nombres de conventions signées avec les entreprises -
B4: Bénéficiaire | C4: Total avantages perçus (€) | D4: Nombre d'avantages perçus | E4: Nombre de conventions signées | F4: Transport | G4: Hébergement | H4: Repas | I4: Hospitalité | J4: Inscription | K4: Conseil | L4: Congrès | M4: Autre | N4: Hospitalité | O4: Orateur | P4: Réunion professionnelle | Q4: Expert | R4: Conseil | S4: Recherche Clinique | T4: Etude de marché | U4: Formateur | V4: Rédacteur | W4: Réunion de « Board » | X4: Autre | Y4: AbbVie | Z4: Pfizer | AA4: Roche | AB4: Bristol -Myers Squibb | AC4: MSD France | AD4: Expanscience | AE4: Lilly | AF4: Nordic Pharma | AG4: PIERRE FABRE MEDICAMENT | AH4: ROTTAPHARM | AI4: BIOCODEX | AJ4: TRB CHEMEDICA | AK4: Janssen-Cilag | AL4: GSK | AM4: GENEVRIER | AN4: Amgen | AO4: GILEAD SCIENCES | AP4: CHUGAI | AQ4: SANOFI AVENTIS FRANCE | AR4: IPSEN PHARMA | AS4: UCB Pharma | AT4: MYLAN | AU4: Icomed | AV4: ABBOTT | AW4: PRECIPHAR | AX4: Grünenthal | AY4: ViiV HEALTHCARE SAS | AZ4: LCA S.A. | BA4: LIVE ! BY GL EVENTS | BB4: CROMA | BC4: A+A | BD4: ASTELLAS PHARMA | BE4: Genzyme | BF4: ROCHE DIAGNOSTICS FRANCE | BG4: MENARINI | BH4: UPSA SAS | BI4: MEDEXACT | BJ4: LES SERVIER | BK4: MAYOLY SPINDLER | BL4: Takeda France | BM4: VIFOR FRANCE SA | BN4: Actelion | BO4: QualWorld | BP4: NOVARTIS | BQ4: BAUERFEIND FRANCE | BR4: LEO Pharma | BS4: ProStrakan Pharma | BT4: MUNDIPHARMA | BU4: BOIRON | BV4: GE HEALTHCARE SAS | BW4: MEDTRONIC France S.A.S | BX4: SANOFI PASTEUR MSD SNC | BY4: SANDOZ | BZ4: Integra LifeSciences Services (France) | CA4: SWEDISH ORPHAN BIOVITRUM | CB4: BOSTON SCIENTIFIC SAS | CC4: ASTRAZENECA | CD4: MEDA PHARMA | CE4: GE Medical Systems SCS | CF4: BAYER SANTE FAMILIALE | CG4: THERABEL LUCIEN PHARMA | CH4: GIBAUD | CI4: MARIE AMELIE LENOIR CONSULTING - VICTA CONSEIL | CJ4: BOEHRINGER INGELHEIM FRANCE | CK4: BIOGARAN | CL4: APTALIS PHARMA SAS | CM4: HOSPIRA | CN4: MERCK SERONO | CO4: BIOVENTUS | CP4: DINNO SANTE | CQ4: CHIESI SAS | CR4: FRESENIUS KABI FRANCE | CS4: AbbVie | CT4: Bristol -Myers Squibb | CU4: PIERRE FABRE MEDICAMENT | CV4: Pfizer | CW4: MSD France | CX4: Roche | CY4: Lilly | CZ4: BIOCODEX | DA4: Icomed | DB4: Amgen | DC4: TRB CHEMEDICA | DD4: ROTTAPHARM | DE4: Expanscience | DF4: MYLAN | DG4: UCB Pharma | DH4: SANOFI AVENTIS FRANCE | DI4: CHUGAI | DJ4: Grünenthal | DK4: ABBOTT | DL4: PRECIPHAR | DM4: IPSEN PHARMA | DN4: CROMA | DO4: Nordic Pharma | DP4: GENEVRIER | DQ4: MEDEXACT | DR4: MENARINI | DS4: GSK | DT4: A+A | DU4: LIVE ! BY GL EVENTS | DV4: Janssen-Cilag | DW4: ASTELLAS PHARMA | DX4: GILEAD SCIENCES | DY4: UPSA SAS | DZ4: LES SERVIER | EA4: ViiV HEALTHCARE SAS | EB4: Takeda France | EC4: ROCHE DIAGNOSTICS FRANCE | ED4: VIFOR FRANCE SA | EE4: NOVARTIS | EF4: MAYOLY SPINDLER | EG4: LEO Pharma | EH4: Actelion | EI4: MUNDIPHARMA | EJ4: BAUERFEIND FRANCE | EK4: ProStrakan Pharma | EL4: Genzyme | EM4: BOIRON | EN4: MEDTRONIC France S.A.S | EO4: THERABEL LUCIEN PHARMA | EP4: MEDA PHARMA | EQ4: GE HEALTHCARE SAS | ER4: LCA S.A. | ES4: ASTRAZENECA | ET4: SANDOZ | EU4: BOSTON SCIENTIFIC SAS | EV4: SANOFI PASTEUR MSD SNC | EW4: QualWorld | EX4: MERCK SERONO | EY4: GIBAUD | EZ4: BAYER SANTE FAMILIALE | FA4: MARIE AMELIE LENOIR CONSULTING - VICTA CONSEIL | FB4: BIOVENTUS | FC4: Integra LifeSciences Services (France) | FD4: GE Medical Systems SCS | FE4: APTALIS PHARMA SAS | FF4: FRESENIUS KABI FRANCE | FG4: BOEHRINGER INGELHEIM FRANCE | FH4: DINNO SANTE | FI4: HOSPIRA | FJ4: BIOGARAN | FK4: CHIESI SAS | FL4: SWEDISH ORPHAN BIOVITRUM | FM4: AbbVie | FN4: MSD France | FO4: PIERRE FABRE MEDICAMENT | FP4: Pfizer | FQ4: A+A | FR4: Roche | FS4: Grünenthal | FT4: Expanscience | FU4: Lilly | FV4: UCB Pharma | FW4: BIOCODEX | FX4: Genactis SAS | FY4: Amgen | FZ4: ROTTAPHARM | GA4: Nordic Pharma | GB4: Bristol -Myers Squibb | GC4: GENEVRIER | GD4: LES SERVIER | GE4: WorldOne Group B.V. | GF4: MENARINI | GG4: IPSEN PHARMA | GH4: MYLAN | GI4: Inter-View Partners France | GJ4: SANOFI AVENTIS FRANCE | GK4: Zeste Research | GL4: Actelion | GM4: M3 Global Research Ltd | GN4: Janssen-Cilag | GO4: CHUGAI | GP4: SANDOZ | GQ4: BOSTON SCIENTIFIC SAS | GR4: SANOFI PASTEUR MSD SNC | GS4: ASTELLAS PHARMA | GT4: ViiV HEALTHCARE SAS | GU4: GSK | GV4: Arthritis Fondation Courtin | GW4: STETHOS | GX4: QualWorld | GY4: All Global | GZ4: EXAFIELD | HA4: Axess Research | HB4: UPSA SAS | HC4: GLOBAL MEDIA SANTE | HD4: MEDTRONIC France S.A.S | HE4: BIOGARAN | HF4: SWEDISH ORPHAN BIOVITRUM | HG4: Second Stage Pharma
B5: Alix GREDER-BELAN | C5: =SUMPRODUCT(('Avantages perçus'!$A$2:$A$30000=B5)*('Avantages perçus'!$F$2:$F$30000)) -> 14421 | D5: =COUNTIFS('Avantages perçus'!$A$2:$A$30000,B5,'Avantages perçus'!$F$2:$F$30000,">0") -> 56 | E5: =COUNTIFS('Conventions signées'!$A$2:$A$15000,B5,'Conventions signées'!$A$2:$A$15000,"*") -> 11 | F5: 3665 | G5: 4891 | H5: 1793 | I5: 70 | J5: 3951 | K5: 0 | L5: 0 | M5: 51 | N5: 7 | O5: 0 | P5: 4 | Q5: 0 | R5: 0 | S5: 0 | T5: 0 | U5: 0 | V5: 0 | W5: 0 | X5: 0 | Y5: 788 | Z5: 0 | AA5: 0 | AB5: 1499 | AC5: 3163 | AD5: 0 | AE5: 0 | AF5: 0 | AG5: 0 | AH5: 0 | AI5: 0 | AJ5: 0 | AK5: 4751 | AL5: 0 | AM5: 0 | AN5: 0 | AO5: 2477 | AP5: 0 | AQ5: 0 | AR5: 0 | AS5: 0 | AT5: 0 | AU5: 21 | AV5: 0 | AW5: 0 | AX5: 0 | AY5: 975 | AZ5: 0 | BA5: 0 | BB5: 0 | BC5: 0 | BD5: 747 | BE5: 0 | BF5: 0 | BG5: 0 | BH5: 0 | BI5: 0 | BJ5: 0 | BK5: 0 | BL5: 0 | BM5: 0 | BN5: 0 | BO5: 0 | BP5: 0 | BQ5: 0 | BR5: 0 | BS5: 0 | BT5: 0 | BU5: 0 | BV5: 0 | BW5: 0 | BX5: 0 | BY5: 0 | BZ5: 0 | CA5: 0 | CB5: 0 | CC5: 0 | CD5: 0 | CE5: 0 | CF5: 0 | CG5: 0 | CH5: 0 | CI5: 0 | CJ5: 0 | CK5: 0 | CL5: 0 | CM5: 0 | CN5: 0 | CO5: 0 | CP5: 0 | CQ5: 0 | CR5: 0 | CS5: 6 | CT5: 8 | CU5: 0 | CV5: 0 | CW5: 12 | CX5: 0 | CY5: 0 | CZ5: 0 | DA5: 1 | DB5: 0 | DC5: 0 | DD5: 0 | DE5: 0 | DF5: 0 | DG5: 0 | DH5: 0 | DI5: 0 | DJ5: 0 | DK5: 0 | DL5: 0 | DM5: 0 | DN5: 0 | DO5: 0 | DP5: 0 | DQ5: 0 | DR5: 0 | DS5: 0 | DT5: 0 | DU5: 0 | DV5: 9 | DW5: 9 | DX5: 5 | DY5: 0 | DZ5: 0 | EA5: 6 | EB5: 0 | EC5: 0 | ED5: 0 | EE5: 0 | EF5: 0 | EG5: 0 | EH5: 0 | EI5: 0 | EJ5: 0 | EK5: 0 | EL5: 0 | EM5: 0 | EN5: 0 | EO5: 0 | EP5: 0 | EQ5: 0 | ER5: 0 | ES5: 0 | ET5: 0 | EU5: 0 | EV5: 0 | EW5: 0 | EX5: 0 | EY5: 0 | EZ5: 0 | FA5: 0 | FB5: 0 | FC5: 0 | FD5: 0 | FE5: 0 | FF5: 0 | FG5: 0 | FH5: 0 | FI5: 0 | FJ5: 0 | FK5: 0 | FL5: 0 | FM5: 1 | FN5: 5 | FO5: 0 | FP5: 0 | FQ5: 0 | FR5: 0 | FS5: 0 | FT5: 0 | FU5: 0 | FV5: 0 | FW5: 0 | FX5: 0 | FY5: 0 | FZ5: 0 | GA5: 0 | GB5: 0 | GC5: 0 | GD5: 0 | GE5: 0 | GF5: 0 | GG5: 0 | GH5: 0 | GI5: 0 | GJ5: 0 | GK5: 0 | GL5: 0 | GM5: 0 | GN5: 3 | GO5: 0 | GP5: 0 | GQ5: 0 | GR5: 0 | GS5: 1 | GT5: 1 | GU5: 0 | GV5: 0 | GW5: 0 | GX5: 0 | GY5: 0 | GZ5: 0 | HA5: 0 | HB5: 0 | HC5: 0 | HD5: 0 | HE5: 0 | HF5: 0 | HG5: 0
B6: Henri NATAF | C6: =SUMPRODUCT(('Avantages perçus'!$A$2:$A$30000=B6)*('Avantages perçus'!$F$2:$F$30000)) -> 13543 | D6: =COUNTIFS('Avantages perçus'!$A$2:$A$30000,B6,'Avantages perçus'!$F$2:$F$30000,">0") -> 125 | E6: =COUNTIFS('Conventions signées'!$A$2:$A$15000,B6,'Conventions signées'!$A$2:$A$15000,"*") -> 50 | F6: 1579 | G6: 3658 | H6: 4662 | I6: 1739 | J6: 1845 | K6: 0 | L6: 0 | M6: 60 | N6: 24 | O6: 5 | P6: 10 | Q6: 6 | R6: 0 | S6: 0 | T6: 0 | U6: 2 | V6: 0 | W6: 0 | X6: 3 | Y6: 4713 | Z6: 4553 | AA6: 140 | AB6: 2051 | AC6: 410 | AD6: 38 | AE6: 85 | AF6: 0 | AG6: 128 | AH6: 0 | AI6: 50 | AJ6: 0 | AK6: 0 | AL6: 0 | AM6: 0 | AN6: 0 | AO6: 0 | AP6: 825 | AQ6: 0 | AR6: 0 | AS6: 325 | AT6: 0 | AU6: 0 | AV6: 0 | AW6: 0 | AX6: 80 | AY6: 0 | AZ6: 0 | BA6: 0 | BB6: 0 | BC6: 0 | BD6: 0 | BE6: 0 | BF6: 0 | BG6: 40 | BH6: 60 | BI6: 0 | BJ6: 0 | BK6: 0 | BL6: 0 | BM6: 0 | BN6: 45 | BO6: 0 | BP6: 0 | BQ6: 0 | BR6: 0 | BS6: 0 | BT6: 0 | BU6: 0 | BV6: 0 | BW6: 0 | BX6: 0 | BY6: 0 | BZ6: 0 | CA6: 0 | CB6: 0 | CC6: 0 | CD6: 0 | CE6: 0 | CF6: 0 | CG6: 0 | CH6: 0 | CI6: 0 | CJ6: 0 | CK6: 0 | CL6: 0 | CM6: 0 | CN6: 0 | CO6: 0 | CP6: 0 | CQ6: 0 | CR6: 0 | CS6: 57 | CT6: 13 | CU6: 3 | CV6: 24 | CW6: 8 | CX6: 4 | CY6: 2 | CZ6: 1 | DA6: 0 | DB6: 0 | DC6: 0 | DD6: 0 | DE6: 2 | DF6: 0 | DG6: 4 | DH6: 0 | DI6: 2 | DJ6: 2 | DK6: 0 | DL6: 0 | DM6: 0 | DN6: 0 | DO6: 0 | DP6: 0 | DQ6: 0 | DR6: 1 | DS6: 0 | DT6: 0 | DU6: 0 | DV6: 0 | DW6: 0 | DX6: 0 | DY6: 1 | DZ6: 0 | EA6: 0 | EB6: 0 | EC6: 0 | ED6: 0 | EE6: 0 | EF6: 0 | EG6: 0 | EH6: 1 | EI6: 0 | EJ6: 0 | EK6: 0 | EL6: 0 | EM6: 0 | EN6: 0 | EO6: 0 | EP6: 0 | EQ6: 0 | ER6: 0 | ES6: 0 | ET6: 0 | EU6: 0 | EV6: 0 | EW6: 0 | EX6: 0 | EY6: 0 | EZ6: 0 | FA6: 0 | FB6: 0 | FC6: 0 | FD6: 0 | FE6: 0 | FF6: 0 | FG6: 0 | FH6: 0 | FI6: 0 | FJ6: 0 | FK6: 0 | FL6: 0 | FM6: 17 | FN6: 5 | FO6: 3 | FP6: 10 | FQ6: 0 | FR6: 2 | FS6: 2 | FT6: 1 | FU6: 3 | FV6: 0 | FW6: 0 | FX6: 0 | FY6: 0 | FZ6: 0 | GA6: 0 | GB6: 3 | GC6: 0 | GD6: 0 | GE6: 0 | GF6: 0 | GG6: 0 | GH6: 0 | GI6: 0 | GJ6: 0 | GK6: 0 | GL6: 1 | GM6: 0 | GN6: 0 | GO6: 2 | GP6: 0 | GQ6: 0 | GR6: 0 | GS6: 0 | GT6: 0 | GU6: 0 | GV6: 0 | GW6: 0 | GX6: 0 | GY6: 0 | GZ6: 0 | HA6: 0 | HB6: 0 | HC6: 1 | HD6: 0 | HE6: 0 | HF6: 0 | HG6: 0
B7: Saad ROUAGHE | C7: =SUMPRODUCT(('Avantages perçus'!$A$2:$A$30000=B7)*('Avantages perçus'!$F$2:$F$30000)) -> 10794 | D7: =COUNTIFS('Avantages perçus'!$A$2:$A$30000,B7,'Avantages perçus'!$F$2:$F$30000,">0") -> 53 | E7: =COUNTIFS('Conventions signées'!$A$2:$A$15000,B7,'Conventions signées'!$A$2:$A$15000,"*") -> 24 | F7: 2325 | G7: 1704 | H7: 1135 | I7: 2566 | J7: 3007 | K7: 0 | L7: 0 | M7: 57 | N7: 11 | O7: 0 | P7: 5 | Q7: 2 | R7: 1 | S7: 1 | T7: 4 | U7: 0 | V7: 0 | W7: 0 | X7: 0 | Y7: 3378 | Z7: 151 | AA7: 3674 | AB7: 0 | AC7: 47 | AD7: 0 | AE7: 0 | AF7: 0 | AG7: 0 | AH7: 0 | AI7: 0 | AJ7: 0 | AK7: 47 | AL7: 3072 | AM7: 0 | AN7: 0 | AO7: 0 | AP7: 305 | AQ7: 0 | AR7: 0 | AS7: 40 | AT7: 0 | AU7: 57 | AV7: 0 | AW7: 0 | AX7: 0 | AY7: 0 | AZ7: 0 | BA7: 0 | BB7: 0 | BC7: 0 | BD7: 0 | BE7: 0 | BF7: 0 | BG7: 0 | BH7: 0 | BI7: 0 | BJ7: 23 | BK7: 0 | BL7: 0 | BM7: 0 | BN7: 0 | BO7: 0 | BP7: 0 | BQ7: 0 | BR7: 0 | BS7: 0 | BT7: 0 | BU7: 0 | BV7: 0 | BW7: 0 | BX7: 0 | BY7: 0 | BZ7: 0 | CA7: 0 | CB7: 0 | CC7: 0 | CD7: 0 | CE7: 0 | CF7: 0 | CG7: 0 | CH7: 0 | CI7: 0 | CJ7: 0 | CK7: 0 | CL7: 0 | CM7: 0 | CN7: 0 | CO7: 0 | CP7: 0 | CQ7: 0 | CR7: 0 | CS7: 11 | CT7: 0 | CU7: 0 | CV7: 3 | CW7: 2 | CX7: 21 | CY7: 0 | CZ7: 0 | DA7: 2 | DB7: 0 | DC7: 0 | DD7: 0 | DE7: 0 | DF7: 0 | DG7: 1 | DH7: 0 | DI7: 7 | DJ7: 0 | DK7: 0 | DL7: 0 | DM7: 0 | DN7: 0 | DO7: 0 | DP7: 0 | DQ7: 0 | DR7: 0 | DS7: 4 | DT7: 0 | DU7: 0 | DV7: 1 | DW7: 0 | DX7: 0 | DY7: 0 | DZ7: 1 | EA7: 0 | EB7: 0 | EC7: 0 | ED7: 0 | EE7: 0 | EF7: 0 | EG7: 0 | EH7: 0 | EI7: 0 | EJ7: 0 | EK7: 0 | EL7: 0 | EM7: 0 | EN7: 0 | EO7: 0 | EP7: 0 | EQ7: 0 | ER7: 0 | ES7: 0 | ET7: 0 | EU7: 0 | EV7: 0 | EW7: 0 | EX7: 0 | EY7: 0 | EZ7: 0 | FA7: 0 | FB7: 0 | FC7: 0 | FD7: 0 | FE7: 0 | FF7: 0 | FG7: 0 | FH7: 0 | FI7: 0 | FJ7: 0 | FK7: 0 | FL7: 0 | FM7: 9 | FN7: 1 | FO7: 0 | FP7: 1 | FQ7: 0 | FR7: 5 | FS7: 0 | FT7: 0 | FU7: 0 | FV7: 1 | FW7: 0 | FX7: 0 | FY7: 0 | FZ7: 0 | GA7: 0 | GB7: 0 | GC7: 0 | GD7: 1 | GE7: 0 | GF7: 1 | GG7: 0 | GH7: 0 | GI7: 4 | GJ7: 0 | GK7: 0 | GL7: 0 | GM7: 0 | GN7: 0 | GO7: 0 | GP7: 0 | GQ7: 0 | GR7: 0 | GS7: 0 | GT7: 0 | GU7: 1 | GV7: 0 | GW7: 0 | GX7: 0 | GY7: 0 | GZ7: 0 | HA7: 0 | HB7: 0 | HC7: 0 | HD7: 0 | HE7: 0 | HF7: 0 | HG7: 0
B8: Patricia LE DEVIC | C8: =SUMPRODUCT(('Avantages perçus'!$A$2:$A$30000=B8)*('Avantages perçus'!$F$2:$F$30000)) -> 10611 | D8: =COUNTIFS('Avantages perçus'!$A$2:$A$30000,B8,'Avantages perçus'!$F$2:$F$30000,">0") -> 130 | E8: =COUNTIFS('Conventions signées'!$A$2:$A$15000,B8,'Conventions signées'!$A$2:$A$15000,"*") -> 46 | F8: 1874 | G8: 2224 | H8: 4523 | I8: 1430 | J8: 150 | K8: 0 | L8: 0 | M8: 410 | N8: 23 | O8: 1 | P8: 15 | Q8: 2 | R8: 1 | S8: 1 | T8: 0 | U8: 2 | V8: 0 | W8: 0 | X8: 1 | Y8: 1971 | Z8: 1461 | AA8: 245 | AB8: 319 | AC8: 387 | AD8: 1380 | AE8: 473 | AF8: 1195 | AG8: 406 | AH8: 775 | AI8: 819 | AJ8: 194 | AK8: 0 | AL8: 60 | AM8: 0 | AN8: 263 | AO8: 0 | AP8: 0 | AQ8: 80 | AR8: 0 | AS8: 0 | AT8: 48 | AU8: 91 | AV8: 58 | AW8: 80 | AX8: 0 | AY8: 0 | AZ8: 0 | BA8: 0 | BB8: 0 | BC8: 0 | BD8: 0 | BE8: 0 | BF8: 0 | BG8: 109 | BH8: 58 | BI8: 19 | BJ8: 0 | BK8: 0 | BL8: 0 | BM8: 0 | BN8: 0 | BO8: 0 | BP8: 0 | BQ8: 60 | BR8: 0 | BS8: 0 | BT8: 0 | BU8: 0 | BV8: 60 | BW8: 0 | BX8: 0 | BY8: 0 | BZ8: 0 | CA8: 0 | CB8: 0 | CC8: 0 | CD8: 0 | CE8: 0 | CF8: 0 | CG8: 0 | CH8: 0 | CI8: 0 | CJ8: 0 | CK8: 0 | CL8: 0 | CM8: 0 | CN8: 0 | CO8: 0 | CP8: 0 | CQ8: 0 | CR8: 0 | CS8: 34 | CT8: 5 | CU8: 11 | CV8: 12 | CW8: 6 | CX8: 5 | CY8: 5 | CZ8: 9 | DA8: 3 | DB8: 6 | DC8: 3 | DD8: 7 | DE8: 5 | DF8: 1 | DG8: 0 | DH8: 2 | DI8: 0 | DJ8: 0 | DK8: 1 | DL8: 2 | DM8: 0 | DN8: 0 | DO8: 4 | DP8: 0 | DQ8: 1 | DR8: 2 | DS8: 1 | DT8: 0 | DU8: 0 | DV8: 0 | DW8: 0 | DX8: 0 | DY8: 1 | DZ8: 0 | EA8: 0 | EB8: 0 | EC8: 0 | ED8: 0 | EE8: 0 | EF8: 0 | EG8: 0 | EH8: 0 | EI8: 0 | EJ8: 2 | EK8: 0 | EL8: 0 | EM8: 0 | EN8: 0 | EO8: 0 | EP8: 0 | EQ8: 2 | ER8: 0 | ES8: 0 | ET8: 0 | EU8: 0 | EV8: 0 | EW8: 0 | EX8: 0 | EY8: 0 | EZ8: 0 | FA8: 0 | FB8: 0 | FC8: 0 | FD8: 0 | FE8: 0 | FF8: 0 | FG8: 0 | FH8: 0 | FI8: 0 | FJ8: 0 | FK8: 0 | FL8: 0 | FM8: 12 | FN8: 6 | FO8: 5 | FP8: 10 | FQ8: 0 | FR8: 4 | FS8: 0 | FT8: 1 | FU8: 1 | FV8: 0 | FW8: 2 | FX8: 0 | FY8: 0 | FZ8: 1 | GA8: 2 | GB8: 0 | GC8: 0 | GD8: 0 | GE8: 0 | GF8: 1 | GG8: 0 | GH8: 1 | GI8: 0 | GJ8: 0 | GK8: 0 | GL8: 0 | GM8: 0 | GN8: 0 | GO8: 0 | GP8: 0 | GQ8: 0 | GR8: 0 | GS8: 0 | GT8: 0 | GU8: 0 | GV8: 0 | GW8: 0 | GX8: 0 | GY8: 0 | GZ8: 0 | HA8: 0 | HB8: 0 | HC8: 0 | HD8: 0 | HE8: 0 | HF8: 0 | HG8: 0
B9: Jérôme FANNIUS | C9: =SUMPRODUCT(('Avantages perçus'!$A$2:$A$30000=B9)*('Avantages perçus'!$F$2:$F$30000)) -> 9612 | D9: =COUNTIFS('Avantages perçus'!$A$2:$A$30000,B9,'Avantages perçus'!$F$2:$F$30000,">0") -> 129 | E9: =COUNTIFS('Conventions signées'!$A$2:$A$15000,B9,'Conventions signées'!$A$2:$A$15000,"*") -> 38 | F9: 1510 | G9: 1658 | H9: 4819 | I9: 438 | J9: 1050 | K9: 0 | L9: 0 | M9: 137 | N9: 25 | O9: 0 | P9: 10 | Q9: 0 | R9: 1 | S9: 1 | T9: 0 | U9: 1 | V9: 0 | W9: 0 | X9: 0 | Y9: 1571 | Z9: 1727 | AA9: 92 | AB9: 345 | AC9: 126 | AD9: 39 | AE9: 1542 | AF9: 1082 | AG9: 513 | AH9: 65 | AI9: 798 | AJ9: 215 | AK9: 0 | AL9: 0 | AM9: 0 | AN9: 128 | AO9: 51 | AP9: 0 | AQ9: 120 | AR9: 0 | AS9: 51 | AT9: 88 | AU9: 0 | AV9: 58 | AW9: 39 | AX9: 0 | AY9: 0 | AZ9: 0 | BA9: 0 | BB9: 198 | BC9: 0 | BD9: 0 | BE9: 490 | BF9: 0 | BG9: 30 | BH9: 55 | BI9: 0 | BJ9: 0 | BK9: 41 | BL9: 0 | BM9: 0 | BN9: 0 | BO9: 0 | BP9: 0 | BQ9: 0 | BR9: 0 | BS9: 0 | BT9: 0 | BU9: 0 | BV9: 0 | BW9: 0 | BX9: 51 | BY9: 50 | BZ9: 0 | CA9: 0 | CB9: 47 | CC9: 0 | CD9: 0 | CE9: 0 | CF9: 0 | CG9: 0 | CH9: 0 | CI9: 0 | CJ9: 0 | CK9: 0 | CL9: 0 | CM9: 0 | CN9: 0 | CO9: 0 | CP9: 0 | CQ9: 0 | CR9: 0 | CS9: 25 | CT9: 7 | CU9: 15 | CV9: 10 | CW9: 4 | CX9: 2 | CY9: 21 | CZ9: 9 | DA9: 0 | DB9: 3 | DC9: 3 | DD9: 2 | DE9: 1 | DF9: 2 | DG9: 2 | DH9: 3 | DI9: 0 | DJ9: 0 | DK9: 1 | DL9: 1 | DM9: 0 | DN9: 6 | DO9: 4 | DP9: 0 | DQ9: 0 | DR9: 1 | DS9: 0 | DT9: 0 | DU9: 0 | DV9: 0 | DW9: 0 | DX9: 1 | DY9: 1 | DZ9: 0 | EA9: 0 | EB9: 0 | EC9: 0 | ED9: 0 | EE9: 0 | EF9: 1 | EG9: 0 | EH9: 0 | EI9: 0 | EJ9: 0 | EK9: 0 | EL9: 1 | EM9: 0 | EN9: 0 | EO9: 0 | EP9: 0 | EQ9: 0 | ER9: 0 | ES9: 0 | ET9: 1 | EU9: 1 | EV9: 1 | EW9: 0 | EX9: 0 | EY9: 0 | EZ9: 0 | FA9: 0 | FB9: 0 | FC9: 0 | FD9: 0 | FE9: 0 | FF9: 0 | FG9: 0 | FH9: 0 | FI9: 0 | FJ9: 0 | FK9: 0 | FL9: 0 | FM9: 9 | FN9: 5 | FO9: 7 | FP9: 6 | FQ9: 0 | FR9: 1 | FS9: 0 | FT9: 0 | FU9: 2 | FV9: 1 | FW9: 2 | FX9: 0 | FY9: 0 | FZ9: 0 | GA9: 1 | GB9: 0 | GC9: 0 | GD9: 0 | GE9: 0 | GF9: 1 | GG9: 0 | GH9: 0 | GI9: 0 | GJ9: 0 | GK9: 0 | GL9: 0 | GM9: 0 | GN9: 0 | GO9: 0 | GP9: 1 | GQ9: 1 | GR9: 1 | GS9: 0 | GT9: 0 | GU9: 0 | GV9: 0 | GW9: 0 | GX9: 0 | GY9: 0 | GZ9: 0 | HA9: 0 | HB9: 0 | HC9: 0 | HD9: 0 | HE9: 0 | HF9: 0 | HG9: 0
B10: Antoinette SACCHI | C10: =SUMPRODUCT(('Avantages perçus'!$A$2:$A$30000=B10)*('Avantages perçus'!$F$2:$F$30000)) -> 8725 | D10: =COUNTIFS('Avantages perçus'!$A$2:$A$30000,B10,'Avantages perçus'!$F$2:$F$30000,">0") -> 77 | E10: =COUNTIFS('Conventions signées'!$A$2:$A$15000,B10,'Conventions signées'!$A$2:$A$15000,"*") -> 33 | F10: 1172 | G10: 2083 | H10: 2589 | I10: 1231 | J10: 1630 | K10: 0 | L10: 0 | M10: 20 | N10: 21 | O10: 2 | P10: 7 | Q10: 2 | R10: 1 | S10: 0 | T10: 0 | U10: 0 | V10: 0 | W10: 0 | X10: 0 | Y10: 1972 | Z10: 2679 | AA10: 139 | AB10: 2425 | AC10: 1050 | AD10: 0 | AE10: 0 | AF10: 0 | AG10: 88 | AH10: 0 | AI10: 0 | AJ10: 0 | AK10: 0 | AL10: 25 | AM10: 0 | AN10: 0 | AO10: 0 | AP10: 117 | AQ10: 0 | AR10: 60 | AS10: 45 | AT10: 0 | AU10: 0 | AV10: 0 | AW10: 0 | AX10: 58 | AY10: 0 | AZ10: 0 | BA10: 0 | BB10: 0 | BC10: 0 | BD10: 0 | BE10: 0 | BF10: 0 | BG10: 0 | BH10: 0 | BI10: 0 | BJ10: 0 | BK10: 0 | BL10: 0 | BM10: 26 | BN10: 0 | BO10: 0 | BP10: 0 | BQ10: 0 | BR10: 0 | BS10: 0 | BT10: 0 | BU10: 0 | BV10: 0 | BW10: 0 | BX10: 0 | BY10: 0 | BZ10: 0 | CA10: 0 | CB10: 0 | CC10: 0 | CD10: 22 | CE10: 0 | CF10: 0 | CG10: 0 | CH10: 0 | CI10: 0 | CJ10: 0 | CK10: 0 | CL10: 0 | CM10: 0 | CN10: 19 | CO10: 0 | CP10: 0 | CQ10: 0 | CR10: 0 | CS10: 29 | CT10: 8 | CU10: 2 | CV10: 12 | CW10: 10 | CX10: 4 | CY10: 0 | CZ10: 0 | DA10: 0 | DB10: 0 | DC10: 0 | DD10: 0 | DE10: 0 | DF10: 0 | DG10: 2 | DH10: 0 | DI10: 3 | DJ10: 2 | DK10: 0 | DL10: 0 | DM10: 1 | DN10: 0 | DO10: 0 | DP10: 0 | DQ10: 0 | DR10: 0 | DS10: 1 | DT10: 0 | DU10: 0 | DV10: 0 | DW10: 0 | DX10: 0 | DY10: 0 | DZ10: 0 | EA10: 0 | EB10: 0 | EC10: 0 | ED10: 1 | EE10: 0 | EF10: 0 | EG10: 0 | EH10: 0 | EI10: 0 | EJ10: 0 | EK10: 0 | EL10: 0 | EM10: 0 | EN10: 0 | EO10: 0 | EP10: 1 | EQ10: 0 | ER10: 0 | ES10: 0 | ET10: 0 | EU10: 0 | EV10: 0 | EW10: 0 | EX10: 1 | EY10: 0 | EZ10: 0 | FA10: 0 | FB10: 0 | FC10: 0 | FD10: 0 | FE10: 0 | FF10: 0 | FG10: 0 | FH10: 0 | FI10: 0 | FJ10: 0 | FK10: 0 | FL10: 0 | FM10: 11 | FN10: 7 | FO10: 2 | FP10: 7 | FQ10: 0 | FR10: 1 | FS10: 2 | FT10: 0 | FU10: 0 | FV10: 0 | FW10: 0 | FX10: 0 | FY10: 0 | FZ10: 0 | GA10: 0 | GB10: 3 | GC10: 0 | GD10: 0 | GE10: 0 | GF10: 0 | GG10: 0 | GH10: 0 | GI10: 0 | GJ10: 0 | GK10: 0 | GL10: 0 | GM10: 0 | GN10: 0 | GO10: 0 | GP10: 0 | GQ10: 0 | GR10: 0 | GS10: 0 | GT10: 0 | GU10: 0 | GV10: 0 | GW10: 0 | GX10: 0 | GY10: 0 | GZ10: 0 | HA10: 0 | HB10: 0 | HC10: 0 | HD10: 0 | HE10: 0 | HF10: 0 | HG10: 0
B11: Caroline DELAUNAY | C11: =SUMPRODUCT(('Avantages perçus'!$A$2:$A$30000=B11)*('Avantages perçus'!$F$2:$F$30000)) -> 8209 | D11: =COUNTIFS('Avantages perçus'!$A$2:$A$30000,B11,'Avantages perçus'!$F$2:$F$30000,">0") -> 68 | E11: =COUNTIFS('Conventions signées'!$A$2:$A$15000,B11,'Conventions signées'!$A$2:$A$15000,"*") -> 28 | F11: 2118 | G11: 1400 | H11: 2344 | I11: 1098 | J11: 1050 | K11: 0 | L11: 0 | M11: 199 | N11: 15 | O11: 0 | P11: 8 | Q11: 1 | R11: 1 | S11: 0 | T11: 3 | U11: 0 | V11: 0 | W11: 0 | X11: 0 | Y11: 60 | Z11: 960 | AA11: 195 | AB11: 1270 | AC11: 491 | AD11: 540 | AE11: 0 | AF11: 1349 | AG11: 988 | AH11: 141 | AI11: 60 | AJ11: 968 | AK11: 0 | AL11: 0 | AM11: 450 | AN11: 122 | AO11: 0 | AP11: 60 | AQ11: 0 | AR11: 0 | AS11: 90 | AT11: 0 | AU11: 30 | AV11: 84 | AW11: 251 | AX11: 0 | AY11: 0 | AZ11: 0 | BA11: 0 | BB11: 0 | BC11: 80 | BD11: 0 | BE11: 20 | BF11: 0 | BG11: 0 | BH11: 0 | BI11: 0 | BJ11: 0 | BK11: 0 | BL11: 0 | BM11: 0 | BN11: 0 | BO11: 0 | BP11: 0 | BQ11: 0 | BR11: 0 | BS11: 0 | BT11: 0 | BU11: 0 | BV11: 0 | BW11: 0 | BX11: 0 | BY11: 0 | BZ11: 0 | CA11: 0 | CB11: 0 | CC11: 0 | CD11: 0 | CE11: 0 | CF11: 0 | CG11: 0 | CH11: 0 | CI11: 0 | CJ11: 0 | CK11: 0 | CL11: 0 | CM11: 0 | CN11: 0 | CO11: 0 | CP11: 0 | CQ11: 0 | CR11: 0 | CS11: 1 | CT11: 11 | CU11: 4 | CV11: 7 | CW11: 9 | CX11: 5 | CY11: 0 | CZ11: 2 | DA11: 1 | DB11: 3 | DC11: 3 | DD11: 4 | DE11: 1 | DF11: 0 | DG11: 2 | DH11: 0 | DI11: 1 | DJ11: 0 | DK11: 2 | DL11: 5 | DM11: 0 | DN11: 0 | DO11: 4 | DP11: 1 | DQ11: 0 | DR11: 0 | DS11: 0 | DT11: 1 | DU11: 0 | DV11: 0 | DW11: 0 | DX11: 0 | DY11: 0 | DZ11: 0 | EA11: 0 | EB11: 0 | EC11: 0 | ED11: 0 | EE11: 0 | EF11: 0 | EG11: 0 | EH11: 0 | EI11: 0 | EJ11: 0 | EK11: 0 | EL11: 1 | EM11: 0 | EN11: 0 | EO11: 0 | EP11: 0 | EQ11: 0 | ER11: 0 | ES11: 0 | ET11: 0 | EU11: 0 | EV11: 0 | EW11: 0 | EX11: 0 | EY11: 0 | EZ11: 0 | FA11: 0 | FB11: 0 | FC11: 0 | FD11: 0 | FE11: 0 | FF11: 0 | FG11: 0 | FH11: 0 | FI11: 0 | FJ11: 0 | FK11: 0 | FL11: 0 | FM11: 2 | FN11: 8 | FO11: 2 | FP11: 4 | FQ11: 1 | FR11: 3 | FS11: 0 | FT11: 1 | FU11: 0 | FV11: 3 | FW11: 0 | FX11: 0 | FY11: 0 | FZ11: 0 | GA11: 1 | GB11: 0 | GC11: 1 | GD11: 0 | GE11: 0 | GF11: 0 | GG11: 0 | GH11: 0 | GI11: 0 | GJ11: 0 | GK11: 2 | GL11: 0 | GM11: 0 | GN11: 0 | GO11: 0 | GP11: 0 | GQ11: 0 | GR11: 0 | GS11: 0 | GT11: 0 | GU11: 0 | GV11: 0 | GW11: 0 | GX11: 0 | GY11: 0 | GZ11: 0 | HA11: 0 | HB11: 0 | HC11: 0 | HD11: 0 | HE11: 0 | HF11: 0 | HG11: 0
B12: Alain-Jean KARNEFF | C12: =SUMPRODUCT(('Avantages perçus'!$A$2:$A$30000=B12)*('Avantages perçus'!$F$2:$F$30000)) -> 7775 | D12: =COUNTIFS('Avantages perçus'!$A$2:$A$30000,B12,'Avantages perçus'!$F$2:$F$30000,">0") -> 82 | E12: =COUNTIFS('Conventions signées'!$A$2:$A$15000,B12,'Conventions signées'!$A$2:$A$15000,"*") -> 30 | F12: 1285 | G12: 1335 | H12: 2405 | I12: 504 | J12: 2246 | K12: 0 | L12: 0 | M12: 0 | N12: 16 | O12: 4 | P12: 6 | Q12: 3 | R12: 1 | S12: 0 | T12: 0 | U12: 0 | V12: 0 | W12: 0 | X12: 0 | Y12: 1957 | Z12: 0 | AA12: 2009 | AB12: 976 | AC12: 39 | AD12: 0 | AE12: 1094 | AF12: 0 | AG12: 0 | AH12: 450 | AI12: 0 | AJ12: 49 | AK12: 0 | AL12: 50 | AM12: 0 | AN12: 524 | AO12: 0 | AP12: 23 | AQ12: 20 | AR12: 0 | AS12: 0 | AT12: 48 | AU12: 0 | AV12: 58 | AW12: 0 | AX12: 0 | AY12: 0 | AZ12: 0 | BA12: 0 | BB12: 0 | BC12: 0 | BD12: 0 | BE12: 0 | BF12: 478 | BG12: 0 | BH12: 0 | BI12: 0 | BJ12: 0 | BK12: 0 | BL12: 0 | BM12: 0 | BN12: 0 | BO12: 0 | BP12: 0 | BQ12: 0 | BR12: 0 | BS12: 0 | BT12: 0 | BU12: 0 | BV12: 0 | BW12: 0 | BX12: 0 | BY12: 0 | BZ12: 0 | CA12: 0 | CB12: 0 | CC12: 0 | CD12: 0 | CE12: 0 | CF12: 0 | CG12: 0 | CH12: 0 | CI12: 0 | CJ12: 0 | CK12: 0 | CL12: 0 | CM12: 0 | CN12: 0 | CO12: 0 | CP12: 0 | CQ12: 0 | CR12: 0 | CS12: 24 | CT12: 11 | CU12: 0 | CV12: 0 | CW12: 1 | CX12: 11 | CY12: 11 | CZ12: 0 | DA12: 0 | DB12: 12 | DC12: 1 | DD12: 1 | DE12: 0 | DF12: 1 | DG12: 0 | DH12: 1 | DI12: 1 | DJ12: 0 | DK12: 1 | DL12: 0 | DM12: 0 | DN12: 0 | DO12: 0 | DP12: 0 | DQ12: 0 | DR12: 0 | DS12: 1 | DT12: 0 | DU12: 0 | DV12: 0 | DW12: 0 | DX12: 0 | DY12: 0 | DZ12: 0 | EA12: 0 | EB12: 0 | EC12: 5 | ED12: 0 | EE12: 0 | EF12: 0 | EG12: 0 | EH12: 0 | EI12: 0 | EJ12: 0 | EK12: 0 | EL12: 0 | EM12: 0 | EN12: 0 | EO12: 0 | EP12: 0 | EQ12: 0 | ER12: 0 | ES12: 0 | ET12: 0 | EU12: 0 | EV12: 0 | EW12: 0 | EX12: 0 | EY12: 0 | EZ12: 0 | FA12: 0 | FB12: 0 | FC12: 0 | FD12: 0 | FE12: 0 | FF12: 0 | FG12: 0 | FH12: 0 | FI12: 0 | FJ12: 0 | FK12: 0 | FL12: 0 | FM12: 8 | FN12: 3 | FO12: 0 | FP12: 0 | FQ12: 0 | FR12: 3 | FS12: 0 | FT12: 0 | FU12: 3 | FV12: 0 | FW12: 0 | FX12: 0 | FY12: 8 | FZ12: 1 | GA12: 0 | GB12: 4 | GC12: 0 | GD12: 0 | GE12: 0 | GF12: 0 | GG12: 0 | GH12: 0 | GI12: 0 | GJ12: 0 | GK12: 0 | GL12: 0 | GM12: 0 | GN12: 0 | GO12: 0 | GP12: 0 | GQ12: 0 | GR12: 0 | GS12: 0 | GT12: 0 | GU12: 0 | GV12: 0 | GW12: 0 | GX12: 0 | GY12: 0 | GZ12: 0 | HA12: 0 | HB12: 0 | HC12: 0 | HD12: 0 | HE12: 0 | HF12: 0 | HG12: 0
B13: Fatiha SADJI | C13: =SUMPRODUCT(('Avantages perçus'!$A$2:$A$30000=B13)*('Avantages perçus'!$F$2:$F$30000)) -> 7130 | D13: =COUNTIFS('Avantages perçus'!$A$2:$A$30000,B13,'Avantages perçus'!$F$2:$F$30000,">0") -> 70 | E13: =COUNTIFS('Conventions signées'!$A$2:$A$15000,B13,'Conventions signées'!$A$2:$A$15000,"*") -> 58 | F13: 1099 | G13: 2767 | H13: 1139 | I13: 332 | J13: 1490 | K13: 0 | L13: 0 | M13: 303 | N13: 3 | O13: 0 | P13: 8 | Q13: 1 | R13: 0 | S13: 1 | T13: 44 | U13: 0 | V13: 0 | W13: 0 | X13: 1 | Y13: 423 | Z13: 46 | AA13: 4726 | AB13: 64 | AC13: 166 | AD13: 0 | AE13: 1147 | AF13: 0 | AG13: 45 | AH13: 48 | AI13: 0 | AJ13: 0 | AK13: 0 | AL13: 0 | AM13: 0 | AN13: 0 | AO13: 0 | AP13: 143 | AQ13: 0 | AR13: 0 | AS13: 83 | AT13: 0 | AU13: 30 | AV13: 0 | AW13: 0 | AX13: 0 | AY13: 0 | AZ13: 0 | BA13: 0 | BB13: 0 | BC13: 45 | BD13: 0 | BE13: 0 | BF13: 0 | BG13: 0 | BH13: 0 | BI13: 30 | BJ13: 0 | BK13: 0 | BL13: 0 | BM13: 0 | BN13: 24 | BO13: 110 | BP13: 0 | BQ13: 0 | BR13: 0 | BS13: 0 | BT13: 0 | BU13: 0 | BV13: 0 | BW13: 0 | BX13: 0 | BY13: 0 | BZ13: 0 | CA13: 0 | CB13: 0 | CC13: 0 | CD13: 0 | CE13: 0 | CF13: 0 | CG13: 0 | CH13: 0 | CI13: 0 | CJ13: 0 | CK13: 0 | CL13: 0 | CM13: 0 | CN13: 0 | CO13: 0 | CP13: 0 | CQ13: 0 | CR13: 0 | CS13: 10 | CT13: 2 | CU13: 1 | CV13: 2 | CW13: 5 | CX13: 25 | CY13: 11 | CZ13: 0 | DA13: 1 | DB13: 0 | DC13: 0 | DD13: 1 | DE13: 0 | DF13: 0 | DG13: 4 | DH13: 0 | DI13: 4 | DJ13: 0 | DK13: 0 | DL13: 0 | DM13: 0 | DN13: 0 | DO13: 0 | DP13: 0 | DQ13: 1 | DR13: 0 | DS13: 0 | DT13: 1 | DU13: 0 | DV13: 0 | DW13: 0 | DX13: 0 | DY13: 0 | DZ13: 0 | EA13: 0 | EB13: 0 | EC13: 0 | ED13: 0 | EE13: 0 | EF13: 0 | EG13: 0 | EH13: 1 | EI13: 0 | EJ13: 0 | EK13: 0 | EL13: 0 | EM13: 0 | EN13: 0 | EO13: 0 | EP13: 0 | EQ13: 0 | ER13: 0 | ES13: 0 | ET13: 0 | EU13: 0 | EV13: 0 | EW13: 1 | EX13: 0 | EY13: 0 | EZ13: 0 | FA13: 0 | FB13: 0 | FC13: 0 | FD13: 0 | FE13: 0 | FF13: 0 | FG13: 0 | FH13: 0 | FI13: 0 | FJ13: 0 | FK13: 0 | FL13: 0 | FM13: 1 | FN13: 3 | FO13: 1 | FP13: 1 | FQ13: 19 | FR13: 3 | FS13: 0 | FT13: 0 | FU13: 3 | FV13: 0 | FW13: 0 | FX13: 14 | FY13: 0 | FZ13: 1 | GA13: 0 | GB13: 0 | GC13: 0 | GD13: 0 | GE13: 3 | GF13: 0 | GG13: 0 | GH13: 0 | GI13: 0 | GJ13: 0 | GK13: 2 | GL13: 1 | GM13: 4 | GN13: 0 | GO13: 0 | GP13: 0 | GQ13: 0 | GR13: 0 | GS13: 0 | GT13: 0 | GU13: 0 | GV13: 0 | GW13: 1 | GX13: 1 | GY13: 0 | GZ13: 0 | HA13: 0 | HB13: 0 | HC13: 0 | HD13: 0 | HE13: 0 | HF13: 0 | HG13: 0
B14: Marie-Ange LE PORHO | C14: =SUMPRODUCT(('Avantages perçus'!$A$2:$A$30000=B14)*('Avantages perçus'!$F$2:$F$30000)) -> 6572 | D14: =COUNTIFS('Avantages perçus'!$A$2:$A$30000,B14,'Avantages perçus'!$F$2:$F$30000,">0") -> 56 | E14: =COUNTIFS('Conventions signées'!$A$2:$A$15000,B14,'Conventions signées'!$A$2:$A$15000,"*") -> 18 | F14: 1067 | G14: 674 | H14: 1811 | I14: 1966 | J14: 840 | K14: 0 | L14: 0 | M14: 214 | N14: 9 | O14: 0 | P14: 8 | Q14: 0 | R14: 0 | S14: 0 | T14: 0 | U14: 1 | V14: 0 | W14: 0 | X14: 0 | Y14: 93 | Z14: 0 | AA14: 60 | AB14: 239 | AC14: 257 | AD14: 1305 | AE14: 1201 | AF14: 1305 | AG14: 1219 | AH14: 62 | AI14: 113 | AJ14: 49 | AK14: 0 | AL14: 0 | AM14: 0 | AN14: 225 | AO14: 0 | AP14: 0 | AQ14: 0 | AR14: 0 | AS14: 0 | AT14: 0 | AU14: 52 | AV14: 58 | AW14: 191 | AX14: 0 | AY14: 0 | AZ14: 0 | BA14: 85 | BB14: 0 | BC14: 0 | BD14: 0 | BE14: 0 | BF14: 0 | BG14: 0 | BH14: 58 | BI14: 0 | BJ14: 0 | BK14: 0 | BL14: 0 | BM14: 0 | BN14: 0 | BO14: 0 | BP14: 0 | BQ14: 0 | BR14: 0 | BS14: 0 | BT14: 0 | BU14: 0 | BV14: 0 | BW14: 0 | BX14: 0 | BY14: 0 | BZ14: 0 | CA14: 0 | CB14: 0 | CC14: 0 | CD14: 0 | CE14: 0 | CF14: 0 | CG14: 0 | CH14: 0 | CI14: 0 | CJ14: 0 | CK14: 0 | CL14: 0 | CM14: 0 | CN14: 0 | CO14: 0 | CP14: 0 | CQ14: 0 | CR14: 0 | CS14: 2 | CT14: 4 | CU14: 9 | CV14: 0 | CW14: 4 | CX14: 1 | CY14: 10 | CZ14: 2 | DA14: 2 | DB14: 5 | DC14: 1 | DD14: 2 | DE14: 2 | DF14: 0 | DG14: 0 | DH14: 0 | DI14: 0 | DJ14: 0 | DK14: 1 | DL14: 4 | DM14: 0 | DN14: 0 | DO14: 4 | DP14: 0 | DQ14: 0 | DR14: 0 | DS14: 0 | DT14: 0 | DU14: 2 | DV14: 0 | DW14: 0 | DX14: 0 | DY14: 1 | DZ14: 0 | EA14: 0 | EB14: 0 | EC14: 0 | ED14: 0 | EE14: 0 | EF14: 0 | EG14: 0 | EH14: 0 | EI14: 0 | EJ14: 0 | EK14: 0 | EL14: 0 | EM14: 0 | EN14: 0 | EO14: 0 | EP14: 0 | EQ14: 0 | ER14: 0 | ES14: 0 | ET14: 0 | EU14: 0 | EV14: 0 | EW14: 0 | EX14: 0 | EY14: 0 | EZ14: 0 | FA14: 0 | FB14: 0 | FC14: 0 | FD14: 0 | FE14: 0 | FF14: 0 | FG14: 0 | FH14: 0 | FI14: 0 | FJ14: 0 | FK14: 0 | FL14: 0 | FM14: 0 | FN14: 4 | FO14: 5 | FP14: 0 | FQ14: 0 | FR14: 1 | FS14: 0 | FT14: 2 | FU14: 4 | FV14: 0 | FW14: 1 | FX14: 0 | FY14: 0 | FZ14: 0 | GA14: 1 | GB14: 0 | GC14: 0 | GD14: 0 | GE14: 0 | GF14: 0 | GG14: 0 | GH14: 0 | GI14: 0 | GJ14: 0 | GK14: 0 | GL14: 0 | GM14: 0 | GN14: 0 | GO14: 0 | GP14: 0 | GQ14: 0 | GR14: 0 | GS14: 0 | GT14: 0 | GU14: 0 | GV14: 0 | GW14: 0 | GX14: 0 | GY14: 0 | GZ14: 0 | HA14: 0 | HB14: 0 | HC14: 0 | HD14: 0 | HE14: 0 | HF14: 0 | HG14: 0
B15: Lahouri BOUHMIDI | C15: =SUMPRODUCT(('Avantages perçus'!$A$2:$A$30000=B15)*('Avantages perçus'!$F$2:$F$30000)) -> 6346 | D15: =COUNTIFS('Avantages perçus'!$A$2:$A$30000,B15,'Avantages perçus'!$F$2:$F$30000,">0") -> 34 | E15: =COUNTIFS('Conventions signées'!$A$2:$A$15000,B15,'Conventions signées'!$A$2:$A$15000,"*") -> 7 | F15: 1957 | G15: 1449 | H15: 799 | I15: 25 | J15: 2061 | K15: 0 | L15: 0 | M15: 55 | N15: 4 | O15: 0 | P15: 2 | Q15: 0 | R15: 0 | S15: 0 | T15: 0 | U15: 0 | V15: 0 | W15: 0 | X15: 1 | Y15: 81 | Z15: 492 | AA15: 1936 | AB15: 0 | AC15: 3133 | AD15: 19 | AE15: 24 | AF15: 0 | AG15: 0 | AH15: 59 | AI15: 0 | AJ15: 0 | AK15: 0 | AL15: 0 | AM15: 0 | AN15: 0 | AO15: 0 | AP15: 111 | AQ15: 33 | AR15: 0 | AS15: 0 | AT15: 0 | AU15: 55 | AV15: 0 | AW15: 0 | AX15: 0 | AY15: 0 | AZ15: 0 | BA15: 337 | BB15: 0 | BC15: 0 | BD15: 0 | BE15: 0 | BF15: 0 | BG15: 21 | BH15: 0 | BI15: 0 | BJ15: 0 | BK15: 0 | BL15: 24 | BM15: 0 | BN15: 21 | BO15: 0 | BP15: 0 | BQ15: 0 | BR15: 0 | BS15: 0 | BT15: 0 | BU15: 0 | BV15: 0 | BW15: 0 | BX15: 0 | BY15: 0 | BZ15: 0 | CA15: 0 | CB15: 0 | CC15: 0 | CD15: 0 | CE15: 0 | CF15: 0 | CG15: 0 | CH15: 0 | CI15: 0 | CJ15: 0 | CK15: 0 | CL15: 0 | CM15: 0 | CN15: 0 | CO15: 0 | CP15: 0 | CQ15: 0 | CR15: 0 | CS15: 3 | CT15: 0 | CU15: 0 | CV15: 3 | CW15: 6 | CX15: 8 | CY15: 1 | CZ15: 0 | DA15: 2 | DB15: 0 | DC15: 0 | DD15: 1 | DE15: 1 | DF15: 0 | DG15: 0 | DH15: 2 | DI15: 2 | DJ15: 0 | DK15: 0 | DL15: 0 | DM15: 0 | DN15: 0 | DO15: 0 | DP15: 0 | DQ15: 0 | DR15: 1 | DS15: 0 | DT15: 0 | DU15: 2 | DV15: 0 | DW15: 0 | DX15: 0 | DY15: 0 | DZ15: 0 | EA15: 0 | EB15: 1 | EC15: 0 | ED15: 0 | EE15: 0 | EF15: 0 | EG15: 0 | EH15: 1 | EI15: 0 | EJ15: 0 | EK15: 0 | EL15: 0 | EM15: 0 | EN15: 0 | EO15: 0 | EP15: 0 | EQ15: 0 | ER15: 0 | ES15: 0 | ET15: 0 | EU15: 0 | EV15: 0 | EW15: 0 | EX15: 0 | EY15: 0 | EZ15: 0 | FA15: 0 | FB15: 0 | FC15: 0 | FD15: 0 | FE15: 0 | FF15: 0 | FG15: 0 | FH15: 0 | FI15: 0 | FJ15: 0 | FK15: 0 | FL15: 0 | FM15: 0 | FN15: 3 | FO15: 0 | FP15: 1 | FQ15: 0 | FR15: 1 | FS15: 0 | FT15: 1 | FU15: 0 | FV15: 0 | FW15: 0 | FX15: 0 | FY15: 0 | FZ15: 0 | GA15: 0 | GB15: 0 | GC15: 0 | GD15: 0 | GE15: 0 | GF15: 0 | GG15: 0 | GH15: 0 | GI15: 0 | GJ15: 0 | GK15: 0 | GL15: 1 | GM15: 0 | GN15: 0 | GO15: 0 | GP15: 0 | GQ15: 0 | GR15: 0 | GS15: 0 | GT15: 0 | GU15: 0 | GV15: 0 | GW15: 0 | GX15: 0 | GY15: 0 | GZ15: 0 | HA15: 0 | HB15: 0 | HC15: 0 | HD15: 0 | HE15: 0 | HF15: 0 | HG15: 0
B16: Jean-François WINTREBERT | C16: =SUMPRODUCT(('Avantages perçus'!$A$2:$A$30000=B16)*('Avantages perçus'!$F$2:$F$30000)) -> 5870 | D16: =COUNTIFS('Avantages perçus'!$A$2:$A$30000,B16,'Avantages perçus'!$F$2:$F$30000,">0") -> 76 | E16: =COUNTIFS('Conventions signées'!$A$2:$A$15000,B16,'Conventions signées'!$A$2:$A$15000,"*") -> 18 | F16: 872 | G16: 1142 | H16: 2519 | I16: 248 | J16: 150 | K16: 0 | L16: 0 | M16: 939 | N16: 15 | O16: 0 | P16: 2 | Q16: 0 | R16: 0 | S16: 0 | T16: 0 | U16: 1 | V16: 0 | W16: 0 | X16: 0 | Y16: 1172 | Z16: 0 | AA16: 0 | AB16: 271 | AC16: 0 | AD16: 39 | AE16: 928 | AF16: 1261 | AG16: 489 | AH16: 65 | AI16: 212 | AJ16: 900 | AK16: 0 | AL16: 0 | AM16: 0 | AN16: 91 | AO16: 0 | AP16: 0 | AQ16: 80 | AR16: 0 | AS16: 51 | AT16: 88 | AU16: 0 | AV16: 58 | AW16: 39 | AX16: 0 | AY16: 0 | AZ16: 0 | BA16: 0 | BB16: 42 | BC16: 0 | BD16: 0 | BE16: 0 | BF16: 0 | BG16: 0 | BH16: 0 | BI16: 19 | BJ16: 0 | BK16: 41 | BL16: 0 | BM16: 0 | BN16: 0 | BO16: 0 | BP16: 0 | BQ16: 0 | BR16: 0 | BS16: 0 | BT16: 0 | BU16: 0 | BV16: 0 | BW16: 24 | BX16: 0 | BY16: 0 | BZ16: 0 | CA16: 0 | CB16: 0 | CC16: 0 | CD16: 0 | CE16: 0 | CF16: 0 | CG16: 0 | CH16: 0 | CI16: 0 | CJ16: 0 | CK16: 0 | CL16: 0 | CM16: 0 | CN16: 0 | CO16: 0 | CP16: 0 | CQ16: 0 | CR16: 0 | CS16: 19 | CT16: 5 | CU16: 14 | CV16: 0 | CW16: 0 | CX16: 0 | CY16: 10 | CZ16: 5 | DA16: 0 | DB16: 2 | DC16: 2 | DD16: 2 | DE16: 1 | DF16: 2 | DG16: 2 | DH16: 2 | DI16: 0 | DJ16: 0 | DK16: 1 | DL16: 1 | DM16: 0 | DN16: 1 | DO16: 4 | DP16: 0 | DQ16: 1 | DR16: 0 | DS16: 0 | DT16: 0 | DU16: 0 | DV16: 0 | DW16: 0 | DX16: 0 | DY16: 0 | DZ16: 0 | EA16: 0 | EB16: 0 | EC16: 0 | ED16: 0 | EE16: 0 | EF16: 1 | EG16: 0 | EH16: 0 | EI16: 0 | EJ16: 0 | EK16: 0 | EL16: 0 | EM16: 0 | EN16: 1 | EO16: 0 | EP16: 0 | EQ16: 0 | ER16: 0 | ES16: 0 | ET16: 0 | EU16: 0 | EV16: 0 | EW16: 0 | EX16: 0 | EY16: 0 | EZ16: 0 | FA16: 0 | FB16: 0 | FC16: 0 | FD16: 0 | FE16: 0 | FF16: 0 | FG16: 0 | FH16: 0 | FI16: 0 | FJ16: 0 | FK16: 0 | FL16: 0 | FM16: 2 | FN16: 2 | FO16: 10 | FP16: 0 | FQ16: 0 | FR16: 0 | FS16: 0 | FT16: 0 | FU16: 1 | FV16: 1 | FW16: 1 | FX16: 0 | FY16: 0 | FZ16: 0 | GA16: 1 | GB16: 0 | GC16: 0 | GD16: 0 | GE16: 0 | GF16: 0 | GG16: 0 | GH16: 0 | GI16: 0 | GJ16: 0 | GK16: 0 | GL16: 0 | GM16: 0 | GN16: 0 | GO16: 0 | GP16: 0 | GQ16: 0 | GR16: 0 | GS16: 0 | GT16: 0 | GU16: 0 | GV16: 0 | GW16: 0 | GX16: 0 | GY16: 0 | GZ16: 0 | HA16: 0 | HB16: 0 | HC16: 0 | HD16: 0 | HE16: 0 | HF16: 0 | HG16: 0
B17: Françoise GONDOUIN | C17: =SUMPRODUCT(('Avantages perçus'!$A$2:$A$30000=B17)*('Avantages perçus'!$F$2:$F$30000)) -> 5615 | D17: =COUNTIFS('Avantages perçus'!$A$2:$A$30000,B17,'Avantages perçus'!$F$2:$F$30000,">0") -> 99 | E17: =COUNTIFS('Conventions signées'!$A$2:$A$15000,B17,'Conventions signées'!$A$2:$A$15000,"*") -> 28 | F17: 512 | G17: 716 | H17: 3752 | I17: 506 | J17: 0 | K17: 0 | L17: 0 | M17: 129 | N17: 18 | O17: 0 | P17: 9 | Q17: 0 | R17: 0 | S17: 0 | T17: 0 | U17: 1 | V17: 0 | W17: 0 | X17: 0 | Y17: 1478 | Z17: 1123 | AA17: 22 | AB17: 295 | AC17: 39 | AD17: 40 | AE17: 691 | AF17: 0 | AG17: 326 | AH17: 121 | AI17: 316 | AJ17: 109 | AK17: 0 | AL17: 60 | AM17: 0 | AN17: 416 | AO17: 0 | AP17: 0 | AQ17: 99 | AR17: 0 | AS17: 0 | AT17: 108 | AU17: 31 | AV17: 58 | AW17: 40 | AX17: 126 | AY17: 0 | AZ17: 0 | BA17: 0 | BB17: 0 | BC17: 0 | BD17: 0 | BE17: 0 | BF17: 0 | BG17: 0 | BH17: 58 | BI17: 0 | BJ17: 59 | BK17: 0 | BL17: 0 | BM17: 0 | BN17: 0 | BO17: 0 | BP17: 0 | BQ17: 0 | BR17: 0 | BS17: 0 | BT17: 0 | BU17: 0 | BV17: 0 | BW17: 0 | BX17: 0 | BY17: 0 | BZ17: 0 | CA17: 0 | CB17: 0 | CC17: 0 | CD17: 0 | CE17: 0 | CF17: 0 | CG17: 0 | CH17: 0 | CI17: 0 | CJ17: 0 | CK17: 0 | CL17: 0 | CM17: 0 | CN17: 0 | CO17: 0 | CP17: 0 | CQ17: 0 | CR17: 0 | CS17: 25 | CT17: 5 | CU17: 8 | CV17: 10 | CW17: 1 | CX17: 1 | CY17: 13 | CZ17: 7 | DA17: 1 | DB17: 9 | DC17: 2 | DD17: 3 | DE17: 1 | DF17: 2 | DG17: 0 | DH17: 3 | DI17: 0 | DJ17: 3 | DK17: 1 | DL17: 1 | DM17: 0 | DN17: 0 | DO17: 0 | DP17: 0 | DQ17: 0 | DR17: 0 | DS17: 1 | DT17: 0 | DU17: 0 | DV17: 0 | DW17: 0 | DX17: 0 | DY17: 1 | DZ17: 1 | EA17: 0 | EB17: 0 | EC17: 0 | ED17: 0 | EE17: 0 | EF17: 0 | EG17: 0 | EH17: 0 | EI17: 0 | EJ17: 0 | EK17: 0 | EL17: 0 | EM17: 0 | EN17: 0 | EO17: 0 | EP17: 0 | EQ17: 0 | ER17: 0 | ES17: 0 | ET17: 0 | EU17: 0 | EV17: 0 | EW17: 0 | EX17: 0 | EY17: 0 | EZ17: 0 | FA17: 0 | FB17: 0 | FC17: 0 | FD17: 0 | FE17: 0 | FF17: 0 | FG17: 0 | FH17: 0 | FI17: 0 | FJ17: 0 | FK17: 0 | FL17: 0 | FM17: 9 | FN17: 1 | FO17: 5 | FP17: 4 | FQ17: 0 | FR17: 1 | FS17: 3 | FT17: 0 | FU17: 1 | FV17: 0 | FW17: 1 | FX17: 0 | FY17: 2 | FZ17: 0 | GA17: 0 | GB17: 0 | GC17: 0 | GD17: 1 | GE17: 0 | GF17: 0 | GG17: 0 | GH17: 0 | GI17: 0 | GJ17: 0 | GK17: 0 | GL17: 0 | GM17: 0 | GN17: 0 | GO17: 0 | GP17: 0 | GQ17: 0 | GR17: 0 | GS17: 0 | GT17: 0 | GU17: 0 | GV17: 0 | GW17: 0 | GX17: 0 | GY17: 0 | GZ17: 0 | HA17: 0 | HB17: 0 | HC17: 0 | HD17: 0 | HE17: 0 | HF17: 0 | HG17: 0
B18: Roger SFAR | C18: =SUMPRODUCT(('Avantages perçus'!$A$2:$A$30000=B18)*('Avantages perçus'!$F$2:$F$30000)) -> 5339 | D18: =COUNTIFS('Avantages perçus'!$A$2:$A$30000,B18,'Avantages perçus'!$F$2:$F$30000,">0") -> 12 | E18: =COUNTIFS('Conventions signées'!$A$2:$A$15000,B18,'Conventions signées'!$A$2:$A$15000,"*") -> 10 | F18: 1782 | G18: 1306 | H18: 532 | I18: 452 | J18: 1237 | K18: 0 | L18: 0 | M18: 30 | N18: 5 | O18: 0 | P18: 4 | Q18: 0 | R18: 0 | S18: 0 | T18: 0 | U18: 0 | V18: 0 | W18: 0 | X18: 1 | Y18: 0 | Z18: 3982 | AA18: 0 | AB18: 0 | AC18: 60 | AD18: 0 | AE18: 0 | AF18: 0 | AG18: 452 | AH18: 0 | AI18: 0 | AJ18: 0 | AK18: 0 | AL18: 0 | AM18: 0 | AN18: 0 | AO18: 0 | AP18: 0 | AQ18: 765 | AR18: 0 | AS18: 0 | AT18: 0 | AU18: 0 | AV18: 0 | AW18: 50 | AX18: 0 | AY18: 0 | AZ18: 0 | BA18: 0 | BB18: 0 | BC18: 0 | BD18: 0 | BE18: 0 | BF18: 0 | BG18: 0 | BH18: 0 | BI18: 30 | BJ18: 0 | BK18: 0 | BL18: 0 | BM18: 0 | BN18: 0 | BO18: 0 | BP18: 0 | BQ18: 0 | BR18: 0 | BS18: 0 | BT18: 0 | BU18: 0 | BV18: 0 | BW18: 0 | BX18: 0 | BY18: 0 | BZ18: 0 | CA18: 0 | CB18: 0 | CC18: 0 | CD18: 0 | CE18: 0 | CF18: 0 | CG18: 0 | CH18: 0 | CI18: 0 | CJ18: 0 | CK18: 0 | CL18: 0 | CM18: 0 | CN18: 0 | CO18: 0 | CP18: 0 | CQ18: 0 | CR18: 0 | CS18: 0 | CT18: 0 | CU18: 1 | CV18: 7 | CW18: 1 | CX18: 0 | CY18: 0 | CZ18: 0 | DA18: 0 | DB18: 0 | DC18: 0 | DD18: 0 | DE18: 0 | DF18: 0 | DG18: 0 | DH18: 1 | DI18: 0 | DJ18: 0 | DK18: 0 | DL18: 1 | DM18: 0 | DN18: 0 | DO18: 0 | DP18: 0 | DQ18: 1 | DR18: 0 | DS18: 0 | DT18: 0 | DU18: 0 | DV18: 0 | DW18: 0 | DX18: 0 | DY18: 0 | DZ18: 0 | EA18: 0 | EB18: 0 | EC18: 0 | ED18: 0 | EE18: 0 | EF18: 0 | EG18: 0 | EH18: 0 | EI18: 0 | EJ18: 0 | EK18: 0 | EL18: 0 | EM18: 0 | EN18: 0 | EO18: 0 | EP18: 0 | EQ18: 0 | ER18: 0 | ES18: 0 | ET18: 0 | EU18: 0 | EV18: 0 | EW18: 0 | EX18: 0 | EY18: 0 | EZ18: 0 | FA18: 0 | FB18: 0 | FC18: 0 | FD18: 0 | FE18: 0 | FF18: 0 | FG18: 0 | FH18: 0 | FI18: 0 | FJ18: 0 | FK18: 0 | FL18: 0 | FM18: 0 | FN18: 3 | FO18: 1 | FP18: 5 | FQ18: 0 | FR18: 0 | FS18: 0 | FT18: 0 | FU18: 0 | FV18: 0 | FW18: 0 | FX18: 0 | FY18: 0 | FZ18: 0 | GA18: 0 | GB18: 0 | GC18: 0 | GD18: 0 | GE18: 0 | GF18: 0 | GG18: 0 | GH18: 0 | GI18: 0 | GJ18: 1 | GK18: 0 | GL18: 0 | GM18: 0 | GN18: 0 | GO18: 0 | GP18: 0 | GQ18: 0 | GR18: 0 | GS18: 0 | GT18: 0 | GU18: 0 | GV18: 0 | GW18: 0 | GX18: 0 | GY18: 0 | GZ18: 0 | HA18: 0 | HB18: 0 | HC18: 0 | HD18: 0 | HE18: 0 | HF18: 0 | HG18: 0
B19: Mathilde BENHAMOU | C19: =SUMPRODUCT(('Avantages perçus'!$A$2:$A$30000=B19)*('Avantages perçus'!$F$2:$F$30000)) -> 4644 | D19: =COUNTIFS('Avantages perçus'!$A$2:$A$30000,B19,'Avantages perçus'!$F$2:$F$30000,">0") -> 30 | E19: =COUNTIFS('Conventions signées'!$A$2:$A$15000,B19,'Conventions signées'!$A$2:$A$15000,"*") -> 17 | F19: 1056 | G19: 846 | H19: 1035 | I19: 363 | J19: 1290 | K19: 0 | L19: 0 | M19: 54 | N19: 6 | O19: 1 | P19: 4 | Q19: 0 | R19: 0 | S19: 0 | T19: 4 | U19: 2 | V19: 0 | W19: 0 | X19: 0 | Y19: 365 | Z19: 3200 | AA19: 83 | AB19: 215 | AC19: 109 | AD19: 0 | AE19: 0 | AF19: 0 | AG19: 49 | AH19: 0 | AI19: 58 | AJ19: 98 | AK19: 0 | AL19: 0 | AM19: 0 | AN19: 0 | AO19: 0 | AP19: 0 | AQ19: 0 | AR19: 0 | AS19: 0 | AT19: 48 | AU19: 54 | AV19: 0 | AW19: 0 | AX19: 0 | AY19: 0 | AZ19: 0 | BA19: 337 | BB19: 28 | BC19: 0 | BD19: 0 | BE19: 0 | BF19: 0 | BG19: 0 | BH19: 0 | BI19: 0 | BJ19: 0 | BK19: 0 | BL19: 0 | BM19: 0 | BN19: 0 | BO19: 0 | BP19: 0 | BQ19: 0 | BR19: 0 | BS19: 0 | BT19: 0 | BU19: 0 | BV19: 0 | BW19: 0 | BX19: 0 | BY19: 0 | BZ19: 0 | CA19: 0 | CB19: 0 | CC19: 0 | CD19: 0 | CE19: 0 | CF19: 0 | CG19: 0 | CH19: 0 | CI19: 0 | CJ19: 0 | CK19: 0 | CL19: 0 | CM19: 0 | CN19: 0 | CO19: 0 | CP19: 0 | CQ19: 0 | CR19: 0 | CS19: 4 | CT19: 4 | CU19: 1 | CV19: 8 | CW19: 2 | CX19: 2 | CY19: 0 | CZ19: 1 | DA19: 2 | DB19: 0 | DC19: 2 | DD19: 0 | DE19: 0 | DF19: 1 | DG19: 0 | DH19: 0 | DI19: 0 | DJ19: 0 | DK19: 0 | DL19: 0 | DM19: 0 | DN19: 1 | DO19: 0 | DP19: 0 | DQ19: 0 | DR19: 0 | DS19: 0 | DT19: 0 | DU19: 2 | DV19: 0 | DW19: 0 | DX19: 0 | DY19: 0 | DZ19: 0 | EA19: 0 | EB19: 0 | EC19: 0 | ED19: 0 | EE19: 0 | EF19: 0 | EG19: 0 | EH19: 0 | EI19: 0 | EJ19: 0 | EK19: 0 | EL19: 0 | EM19: 0 | EN19: 0 | EO19: 0 | EP19: 0 | EQ19: 0 | ER19: 0 | ES19: 0 | ET19: 0 | EU19: 0 | EV19: 0 | EW19: 0 | EX19: 0 | EY19: 0 | EZ19: 0 | FA19: 0 | FB19: 0 | FC19: 0 | FD19: 0 | FE19: 0 | FF19: 0 | FG19: 0 | FH19: 0 | FI19: 0 | FJ19: 0 | FK19: 0 | FL19: 0 | FM19: 1 | FN19: 2 | FO19: 1 | FP19: 5 | FQ19: 4 | FR19: 1 | FS19: 0 | FT19: 0 | FU19: 0 | FV19: 0 | FW19: 1 | FX19: 0 | FY19: 0 | FZ19: 0 | GA19: 0 | GB19: 1 | GC19: 1 | GD19: 0 | GE19: 0 | GF19: 0 | GG19: 0 | GH19: 0 | GI19: 0 | GJ19: 0 | GK19: 0 | GL19: 0 | GM19: 0 | GN19: 0 | GO19: 0 | GP19: 0 | GQ19: 0 | GR19: 0 | GS19: 0 | GT19: 0 | GU19: 0 | GV19: 0 | GW19: 0 | GX19: 0 | GY19: 0 | GZ19: 0 | HA19: 0 | HB19: 0 | HC19: 0 | HD19: 0 | HE19: 0 | HF19: 0 | HG19: 0
B20: Catherine MARCHAND-SALLAGOITY | C20: =SUMPRODUCT(('Avantages perçus'!$A$2:$A$30000=B20)*('Avantages perçus'!$F$2:$F$30000)) -> 4444 | D20: =COUNTIFS('Avantages perçus'!$A$2:$A$30000,B20,'Avantages perçus'!$F$2:$F$30000,">0") -> 40 | E20: =COUNTIFS('Conventions signées'!$A$2:$A$15000,B20,'Conventions signées'!$A$2:$A$15000,"*") -> 15 | F20: 53 | G20: 0 | H20: 1282 | I20: 2569 | J20: 540 | K20: 0 | L20: 0 | M20: 0 | N20: 9 | O20: 0 | P20: 3 | Q20: 2 | R20: 0 | S20: 0 | T20: 0 | U20: 0 | V20: 0 | W20: 0 | X20: 1 | Y20: 768 | Z20: 60 | AA20: 0 | AB20: 92 | AC20: 99 | AD20: 1305 | AE20: 0 | AF20: 0 | AG20: 137 | AH20: 230 | AI20: 0 | AJ20: 98 | AK20: 0 | AL20: 949 | AM20: 290 | AN20: 36 | AO20: 0 | AP20: 81 | AQ20: 0 | AR20: 0 | AS20: 15 | AT20: 0 | AU20: 0 | AV20: 0 | AW20: 141 | AX20: 0 | AY20: 0 | AZ20: 0 | BA20: 85 | BB20: 0 | BC20: 0 | BD20: 0 | BE20: 0 | BF20: 0 | BG20: 0 | BH20: 58 | BI20: 0 | BJ20: 0 | BK20: 0 | BL20: 0 | BM20: 0 | BN20: 0 | BO20: 0 | BP20: 0 | BQ20: 0 | BR20: 0 | BS20: 0 | BT20: 0 | BU20: 0 | BV20: 0 | BW20: 0 | BX20: 0 | BY20: 0 | BZ20: 0 | CA20: 0 | CB20: 0 | CC20: 0 | CD20: 0 | CE20: 0 | CF20: 0 | CG20: 0 | CH20: 0 | CI20: 0 | CJ20: 0 | CK20: 0 | CL20: 0 | CM20: 0 | CN20: 0 | CO20: 0 | CP20: 0 | CQ20: 0 | CR20: 0 | CS20: 14 | CT20: 2 | CU20: 4 | CV20: 1 | CW20: 2 | CX20: 0 | CY20: 0 | CZ20: 0 | DA20: 0 | DB20: 1 | DC20: 2 | DD20: 1 | DE20: 2 | DF20: 0 | DG20: 1 | DH20: 0 | DI20: 2 | DJ20: 0 | DK20: 0 | DL20: 3 | DM20: 0 | DN20: 0 | DO20: 0 | DP20: 1 | DQ20: 0 | DR20: 0 | DS20: 1 | DT20: 0 | DU20: 2 | DV20: 0 | DW20: 0 | DX20: 0 | DY20: 1 | DZ20: 0 | EA20: 0 | EB20: 0 | EC20: 0 | ED20: 0 | EE20: 0 | EF20: 0 | EG20: 0 | EH20: 0 | EI20: 0 | EJ20: 0 | EK20: 0 | EL20: 0 | EM20: 0 | EN20: 0 | EO20: 0 | EP20: 0 | EQ20: 0 | ER20: 0 | ES20: 0 | ET20: 0 | EU20: 0 | EV20: 0 | EW20: 0 | EX20: 0 | EY20: 0 | EZ20: 0 | FA20: 0 | FB20: 0 | FC20: 0 | FD20: 0 | FE20: 0 | FF20: 0 | FG20: 0 | FH20: 0 | FI20: 0 | FJ20: 0 | FK20: 0 | FL20: 0 | FM20: 7 | FN20: 3 | FO20: 1 | FP20: 0 | FQ20: 0 | FR20: 0 | FS20: 0 | FT20: 2 | FU20: 0 | FV20: 0 | FW20: 0 | FX20: 0 | FY20: 0 | FZ20: 1 | GA20: 0 | GB20: 0 | GC20: 1 | GD20: 0 | GE20: 0 | GF20: 0 | GG20: 0 | GH20: 0 | GI20: 0 | GJ20: 0 | GK20: 0 | GL20: 0 | GM20: 0 | GN20: 0 | GO20: 0 | GP20: 0 | GQ20: 0 | GR20: 0 | GS20: 0 | GT20: 0 | GU20: 0 | GV20: 0 | GW20: 0 | GX20: 0 | GY20: 0 | GZ20: 0 | HA20: 0 | HB20: 0 | HC20: 0 | HD20: 0 | HE20: 0 | HF20: 0 | HG20: 0
B21: Philippe GATTI | C21: =SUMPRODUCT(('Avantages perçus'!$A$2:$A$30000=B21)*('Avantages perçus'!$F$2:$F$30000)) -> 4287 | D21: =COUNTIFS('Avantages perçus'!$A$2:$A$30000,B21,'Avantages perçus'!$F$2:$F$30000,">0") -> 48 | E21: =COUNTIFS('Conventions signées'!$A$2:$A$15000,B21,'Conventions signées'!$A$2:$A$15000,"*") -> 8 | F21: 0 | G21: 1539 | H21: 1659 | I21: 614 | J21: 350 | K21: 0 | L21: 0 | M21: 125 | N21: 3 | O21: 0 | P21: 3 | Q21: 0 | R21: 0 | S21: 0 | T21: 1 | U21: 1 | V21: 0 | W21: 0 | X21: 0 | Y21: 79 | Z21: 0 | AA21: 0 | AB21: 0 | AC21: 131 | AD21: 1675 | AE21: 0 | AF21: 0 | AG21: 129 | AH21: 1000 | AI21: 53 | AJ21: 0 | AK21: 0 | AL21: 72 | AM21: 549 | AN21: 44 | AO21: 0 | AP21: 0 | AQ21: 80 | AR21: 0 | AS21: 0 | AT21: 66 | AU21: 76 | AV21: 40 | AW21: 0 | AX21: 0 | AY21: 0 | AZ21: 0 | BA21: 0 | BB21: 159 | BC21: 0 | BD21: 0 | BE21: 0 | BF21: 0 | BG21: 49 | BH21: 0 | BI21: 19 | BJ21: 0 | BK21: 0 | BL21: 0 | BM21: 0 | BN21: 0 | BO21: 0 | BP21: 0 | BQ21: 0 | BR21: 0 | BS21: 0 | BT21: 0 | BU21: 0 | BV21: 0 | BW21: 0 | BX21: 0 | BY21: 0 | BZ21: 0 | CA21: 0 | CB21: 0 | CC21: 0 | CD21: 0 | CE21: 0 | CF21: 36 | CG21: 0 | CH21: 0 | CI21: 30 | CJ21: 0 | CK21: 0 | CL21: 0 | CM21: 0 | CN21: 0 | CO21: 0 | CP21: 0 | CQ21: 0 | CR21: 0 | CS21: 2 | CT21: 0 | CU21: 4 | CV21: 0 | CW21: 3 | CX21: 0 | CY21: 0 | CZ21: 1 | DA21: 3 | DB21: 1 | DC21: 0 | DD21: 4 | DE21: 8 | DF21: 2 | DG21: 0 | DH21: 2 | DI21: 0 | DJ21: 0 | DK21: 1 | DL21: 0 | DM21: 0 | DN21: 5 | DO21: 0 | DP21: 6 | DQ21: 1 | DR21: 1 | DS21: 2 | DT21: 0 | DU21: 0 | DV21: 0 | DW21: 0 | DX21: 0 | DY21: 0 | DZ21: 0 | EA21: 0 | EB21: 0 | EC21: 0 | ED21: 0 | EE21: 0 | EF21: 0 | EG21: 0 | EH21: 0 | EI21: 0 | EJ21: 0 | EK21: 0 | EL21: 0 | EM21: 0 | EN21: 0 | EO21: 0 | EP21: 0 | EQ21: 0 | ER21: 0 | ES21: 0 | ET21: 0 | EU21: 0 | EV21: 0 | EW21: 0 | EX21: 0 | EY21: 0 | EZ21: 1 | FA21: 1 | FB21: 0 | FC21: 0 | FD21: 0 | FE21: 0 | FF21: 0 | FG21: 0 | FH21: 0 | FI21: 0 | FJ21: 0 | FK21: 0 | FL21: 0 | FM21: 0 | FN21: 3 | FO21: 0 | FP21: 0 | FQ21: 1 | FR21: 0 | FS21: 0 | FT21: 2 | FU21: 0 | FV21: 0 | FW21: 0 | FX21: 0 | FY21: 0 | FZ21: 1 | GA21: 0 | GB21: 0 | GC21: 1 | GD21: 0 | GE21: 0 | GF21: 0 | GG21: 0 | GH21: 0 | GI21: 0 | GJ21: 0 | GK21: 0 | GL21: 0 | GM21: 0 | GN21: 0 | GO21: 0 | GP21: 0 | GQ21: 0 | GR21: 0 | GS21: 0 | GT21: 0 | GU21: 0 | GV21: 0 | GW21: 0 | GX21: 0 | GY21: 0 | GZ21: 0 | HA21: 0 | HB21: 0 | HC21: 0 | HD21: 0 | HE21: 0 | HF21: 0 | HG21: 0
B22: Pascal CHASPOUX | C22: =SUMPRODUCT(('Avantages perçus'!$A$2:$A$30000=B22)*('Avantages perçus'!$F$2:$F$30000)) -> 4157 | D22: =COUNTIFS('Avantages perçus'!$A$2:$A$30000,B22,'Avantages perçus'!$F$2:$F$30000,">0") -> 76 | E22: =COUNTIFS('Conventions signées'!$A$2:$A$15000,B22,'Conventions signées'!$A$2:$A$15000,"*") -> 20 | F22: 136 | G22: 385 | H22: 2587 | I22: 994 | J22: 0 | K22: 0 | L22: 0 | M22: 55 | N22: 14 | O22: 0 | P22: 2 | Q22: 1 | R22: 0 | S22: 0 | T22: 0 | U22: 3 | V22: 0 | W22: 0 | X22: 0 | Y22: 1531 | Z22: 544 | AA22: 124 | AB22: 231 | AC22: 97 | AD22: 540 | AE22: 0 | AF22: 0 | AG22: 177 | AH22: 39 | AI22: 45 | AJ22: 0 | AK22: 0 | AL22: 0 | AM22: 36 | AN22: 0 | AO22: 0 | AP22: 174 | AQ22: 0 | AR22: 0 | AS22: 15 | AT22: 298 | AU22: 55 | AV22: 219 | AW22: 0 | AX22: 0 | AY22: 0 | AZ22: 0 | BA22: 0 | BB22: 0 | BC22: 0 | BD22: 0 | BE22: 0 | BF22: 0 | BG22: 0 | BH22: 0 | BI22: 0 | BJ22: 0 | BK22: 0 | BL22: 0 | BM22: 0 | BN22: 0 | BO22: 0 | BP22: 0 | BQ22: 0 | BR22: 0 | BS22: 0 | BT22: 0 | BU22: 0 | BV22: 0 | BW22: 0 | BX22: 0 | BY22: 0 | BZ22: 0 | CA22: 0 | CB22: 0 | CC22: 0 | CD22: 0 | CE22: 0 | CF22: 0 | CG22: 0 | CH22: 32 | CI22: 0 | CJ22: 0 | CK22: 0 | CL22: 0 | CM22: 0 | CN22: 0 | CO22: 0 | CP22: 0 | CQ22: 0 | CR22: 0 | CS22: 28 | CT22: 5 | CU22: 5 | CV22: 6 | CW22: 2 | CX22: 4 | CY22: 0 | CZ22: 1 | DA22: 2 | DB22: 0 | DC22: 0 | DD22: 1 | DE22: 1 | DF22: 7 | DG22: 1 | DH22: 0 | DI22: 4 | DJ22: 0 | DK22: 7 | DL22: 0 | DM22: 0 | DN22: 0 | DO22: 0 | DP22: 1 | DQ22: 0 | DR22: 0 | DS22: 0 | DT22: 0 | DU22: 0 | DV22: 0 | DW22: 0 | DX22: 0 | DY22: 0 | DZ22: 0 | EA22: 0 | EB22: 0 | EC22: 0 | ED22: 0 | EE22: 0 | EF22: 0 | EG22: 0 | EH22: 0 | EI22: 0 | EJ22: 0 | EK22: 0 | EL22: 0 | EM22: 0 | EN22: 0 | EO22: 0 | EP22: 0 | EQ22: 0 | ER22: 0 | ES22: 0 | ET22: 0 | EU22: 0 | EV22: 0 | EW22: 0 | EX22: 0 | EY22: 1 | EZ22: 0 | FA22: 0 | FB22: 0 | FC22: 0 | FD22: 0 | FE22: 0 | FF22: 0 | FG22: 0 | FH22: 0 | FI22: 0 | FJ22: 0 | FK22: 0 | FL22: 0 | FM22: 10 | FN22: 2 | FO22: 2 | FP22: 1 | FQ22: 0 | FR22: 1 | FS22: 0 | FT22: 1 | FU22: 0 | FV22: 0 | FW22: 0 | FX22: 0 | FY22: 0 | FZ22: 0 | GA22: 0 | GB22: 0 | GC22: 0 | GD22: 0 | GE22: 0 | GF22: 0 | GG22: 0 | GH22: 3 | GI22: 0 | GJ22: 0 | GK22: 0 | GL22: 0 | GM22: 0 | GN22: 0 | GO22: 0 | GP22: 0 | GQ22: 0 | GR22: 0 | GS22: 0 | GT22: 0 | GU22: 0 | GV22: 0 | GW22: 0 | GX22: 0 | GY22: 0 | GZ22: 0 | HA22: 0 | HB22: 0 | HC22: 0 | HD22: 0 | HE22: 0 | HF22: 0 | HG22: 0
B23: Jean-Luc RENEVIER | C23: =SUMPRODUCT(('Avantages perçus'!$A$2:$A$30000=B23)*('Avantages perçus'!$F$2:$F$30000)) -> 4068 | D23: =COUNTIFS('Avantages perçus'!$A$2:$A$30000,B23,'Avantages perçus'!$F$2:$F$30000,">0") -> 82 | E23: =COUNTIFS('Conventions signées'!$A$2:$A$15000,B23,'Conventions signées'!$A$2:$A$15000,"*") -> 54 | F23: 0 | G23: 397 | H23: 2555 | I23: 534 | J23: 450 | K23: 0 | L23: 0 | M23: 132 | N23: 11 | O23: 2 | P23: 29 | Q23: 0 | R23: 2 | S23: 1 | T23: 5 | U23: 2 | V23: 0 | W23: 0 | X23: 2 | Y23: 588 | Z23: 55 | AA23: 0 | AB23: 107 | AC23: 388 | AD23: 60 | AE23: 89 | AF23: 0 | AG23: 434 | AH23: 0 | AI23: 50 | AJ23: 0 | AK23: 0 | AL23: 120 | AM23: 0 | AN23: 0 | AO23: 0 | AP23: 0 | AQ23: 541 | AR23: 453 | AS23: 45 | AT23: 0 | AU23: 87 | AV23: 0 | AW23: 0 | AX23: 804 | AY23: 0 | AZ23: 0 | BA23: 0 | BB23: 0 | BC23: 0 | BD23: 0 | BE23: 0 | BF23: 0 | BG23: 113 | BH23: 0 | BI23: 45 | BJ23: 0 | BK23: 0 | BL23: 0 | BM23: 0 | BN23: 0 | BO23: 0 | BP23: 0 | BQ23: 20 | BR23: 0 | BS23: 0 | BT23: 0 | BU23: 0 | BV23: 0 | BW23: 0 | BX23: 0 | BY23: 0 | BZ23: 50 | CA23: 0 | CB23: 0 | CC23: 0 | CD23: 0 | CE23: 0 | CF23: 0 | CG23: 0 | CH23: 0 | CI23: 0 | CJ23: 0 | CK23: 0 | CL23: 0 | CM23: 0 | CN23: 0 | CO23: 19 | CP23: 0 | CQ23: 0 | CR23: 0 | CS23: 9 | CT23: 3 | CU23: 11 | CV23: 1 | CW23: 5 | CX23: 0 | CY23: 2 | CZ23: 1 | DA23: 3 | DB23: 0 | DC23: 0 | DD23: 0 | DE23: 2 | DF23: 0 | DG23: 2 | DH23: 5 | DI23: 0 | DJ23: 18 | DK23: 0 | DL23: 0 | DM23: 9 | DN23: 0 | DO23: 0 | DP23: 0 | DQ23: 2 | DR23: 4 | DS23: 2 | DT23: 0 | DU23: 0 | DV23: 0 | DW23: 0 | DX23: 0 | DY23: 0 | DZ23: 0 | EA23: 0 | EB23: 0 | EC23: 0 | ED23: 0 | EE23: 0 | EF23: 0 | EG23: 0 | EH23: 0 | EI23: 0 | EJ23: 1 | EK23: 0 | EL23: 0 | EM23: 0 | EN23: 0 | EO23: 0 | EP23: 0 | EQ23: 0 | ER23: 0 | ES23: 0 | ET23: 0 | EU23: 0 | EV23: 0 | EW23: 0 | EX23: 0 | EY23: 0 | EZ23: 0 | FA23: 0 | FB23: 1 | FC23: 1 | FD23: 0 | FE23: 0 | FF23: 0 | FG23: 0 | FH23: 0 | FI23: 0 | FJ23: 0 | FK23: 0 | FL23: 0 | FM23: 1 | FN23: 3 | FO23: 7 | FP23: 1 | FQ23: 2 | FR23: 0 | FS23: 26 | FT23: 2 | FU23: 2 | FV23: 0 | FW23: 0 | FX23: 0 | FY23: 0 | FZ23: 0 | GA23: 1 | GB23: 0 | GC23: 0 | GD23: 0 | GE23: 2 | GF23: 2 | GG23: 1 | GH23: 0 | GI23: 0 | GJ23: 3 | GK23: 0 | GL23: 0 | GM23: 0 | GN23: 0 | GO23: 0 | GP23: 0 | GQ23: 0 | GR23: 0 | GS23: 0 | GT23: 0 | GU23: 0 | GV23: 0 | GW23: 0 | GX23: 0 | GY23: 0 | GZ23: 0 | HA23: 1 | HB23: 0 | HC23: 0 | HD23: 0 | HE23: 0 | HF23: 0 | HG23: 0
B24: Jean-Jacques GIRARD | C24: =SUMPRODUCT(('Avantages perçus'!$A$2:$A$30000=B24)*('Avantages perçus'!$F$2:$F$30000)) -> 4035 | D24: =COUNTIFS('Avantages perçus'!$A$2:$A$30000,B24,'Avantages perçus'!$F$2:$F$30000,">0") -> 57 | E24: =COUNTIFS('Conventions signées'!$A$2:$A$15000,B24,'Conventions signées'!$A$2:$A$15000,"*") -> 14 | F24: 736 | G24: 665 | H24: 1726 | I24: 229 | J24: 0 | K24: 0 | L24: 0 | M24: 679 | N24: 9 | O24: 0 | P24: 3 | Q24: 0 | R24: 0 | S24: 0 | T24: 1 | U24: 1 | V24: 0 | W24: 0 | X24: 0 | Y24: 159 | Z24: 817 | AA24: 0 | AB24: 240 | AC24: 99 | AD24: 0 | AE24: 1321 | AF24: 0 | AG24: 380 | AH24: 0 | AI24: 201 | AJ24: 548 | AK24: 0 | AL24: 0 | AM24: 0 | AN24: 61 | AO24: 0 | AP24: 0 | AQ24: 0 | AR24: 0 | AS24: 0 | AT24: 48 | AU24: 84 | AV24: 58 | AW24: 0 | AX24: 0 | AY24: 0 | AZ24: 0 | BA24: 0 | BB24: 0 | BC24: 0 | BD24: 0 | BE24: 0 | BF24: 0 | BG24: 0 | BH24: 0 | BI24: 0 | BJ24: 0 | BK24: 0 | BL24: 0 | BM24: 0 | BN24: 0 | BO24: 0 | BP24: 0 | BQ24: 0 | BR24: 19 | BS24: 0 | BT24: 0 | BU24: 0 | BV24: 0 | BW24: 0 | BX24: 0 | BY24: 0 | BZ24: 0 | CA24: 0 | CB24: 0 | CC24: 0 | CD24: 0 | CE24: 0 | CF24: 0 | CG24: 0 | CH24: 0 | CI24: 0 | CJ24: 0 | CK24: 0 | CL24: 0 | CM24: 0 | CN24: 0 | CO24: 0 | CP24: 0 | CQ24: 0 | CR24: 0 | CS24: 3 | CT24: 4 | CU24: 10 | CV24: 6 | CW24: 2 | CX24: 0 | CY24: 16 | CZ24: 4 | DA24: 3 | DB24: 3 | DC24: 3 | DD24: 0 | DE24: 0 | DF24: 1 | DG24: 0 | DH24: 0 | DI24: 0 | DJ24: 0 | DK24: 1 | DL24: 0 | DM24: 0 | DN24: 0 | DO24: 0 | DP24: 0 | DQ24: 0 | DR24: 0 | DS24: 0 | DT24: 0 | DU24: 0 | DV24: 0 | DW24: 0 | DX24: 0 | DY24: 0 | DZ24: 0 | EA24: 0 | EB24: 0 | EC24: 0 | ED24: 0 | EE24: 0 | EF24: 0 | EG24: 1 | EH24: 0 | EI24: 0 | EJ24: 0 | EK24: 0 | EL24: 0 | EM24: 0 | EN24: 0 | EO24: 0 | EP24: 0 | EQ24: 0 | ER24: 0 | ES24: 0 | ET24: 0 | EU24: 0 | EV24: 0 | EW24: 0 | EX24: 0 | EY24: 0 | EZ24: 0 | FA24: 0 | FB24: 0 | FC24: 0 | FD24: 0 | FE24: 0 | FF24: 0 | FG24: 0 | FH24: 0 | FI24: 0 | FJ24: 0 | FK24: 0 | FL24: 0 | FM24: 0 | FN24: 2 | FO24: 4 | FP24: 3 | FQ24: 1 | FR24: 0 | FS24: 0 | FT24: 0 | FU24: 3 | FV24: 0 | FW24: 1 | FX24: 0 | FY24: 0 | FZ24: 0 | GA24: 0 | GB24: 0 | GC24: 0 | GD24: 0 | GE24: 0 | GF24: 0 | GG24: 0 | GH24: 0 | GI24: 0 | GJ24: 0 | GK24: 0 | GL24: 0 | GM24: 0 | GN24: 0 | GO24: 0 | GP24: 0 | GQ24: 0 | GR24: 0 | GS24: 0 | GT24: 0 | GU24: 0 | GV24: 0 | GW24: 0 | GX24: 0 | GY24: 0 | GZ24: 0 | HA24: 0 | HB24: 0 | HC24: 0 | HD24: 0 | HE24: 0 | HF24: 0 | HG24: 0
B25: Michèle POULAIN-TELLIER | C25: =SUMPRODUCT(('Avantages perçus'!$A$2:$A$30000=B25)*('Avantages perçus'!$F$2:$F$30000)) -> 3393 | D25: =COUNTIFS('Avantages perçus'!$A$2:$A$30000,B25,'Avantages perçus'!$F$2:$F$30000,">0") -> 51 | E25: =COUNTIFS('Conventions signées'!$A$2:$A$15000,B25,'Conventions signées'!$A$2:$A$15000,"*") -> 17 | F25: 0 | G25: 220 | H25: 1796 | I25: 458 | J25: 900 | K25: 0 | L25: 0 | M25: 19 | N25: 12 | O25: 0 | P25: 2 | Q25: 1 | R25: 0 | S25: 0 | T25: 0 | U25: 1 | V25: 0 | W25: 0 | X25: 1 | Y25: 1367 | Z25: 178 | AA25: 137 | AB25: 208 | AC25: 58 | AD25: 0 | AE25: 0 | AF25: 0 | AG25: 131 | AH25: 900 | AI25: 113 | AJ25: 49 | AK25: 0 | AL25: 0 | AM25: 0 | AN25: 0 | AO25: 0 | AP25: 54 | AQ25: 0 | AR25: 0 | AS25: 15 | AT25: 48 | AU25: 0 | AV25: 58 | AW25: 0 | AX25: 0 | AY25: 0 | AZ25: 0 | BA25: 0 | BB25: 0 | BC25: 0 | BD25: 0 | BE25: 0 | BF25: 0 | BG25: 0 | BH25: 58 | BI25: 19 | BJ25: 0 | BK25: 0 | BL25: 0 | BM25: 0 | BN25: 0 | BO25: 0 | BP25: 0 | BQ25: 0 | BR25: 0 | BS25: 0 | BT25: 0 | BU25: 0 | BV25: 0 | BW25: 0 | BX25: 0 | BY25: 0 | BZ25: 0 | CA25: 0 | CB25: 0 | CC25: 0 | CD25: 0 | CE25: 0 | CF25: 0 | CG25: 0 | CH25: 0 | CI25: 0 | CJ25: 0 | CK25: 0 | CL25: 0 | CM25: 0 | CN25: 0 | CO25: 0 | CP25: 0 | CQ25: 0 | CR25: 0 | CS25: 23 | CT25: 4 | CU25: 3 | CV25: 3 | CW25: 1 | CX25: 5 | CY25: 0 | CZ25: 2 | DA25: 0 | DB25: 0 | DC25: 1 | DD25: 2 | DE25: 0 | DF25: 1 | DG25: 1 | DH25: 0 | DI25: 2 | DJ25: 0 | DK25: 1 | DL25: 0 | DM25: 0 | DN25: 0 | DO25: 0 | DP25: 0 | DQ25: 1 | DR25: 0 | DS25: 0 | DT25: 0 | DU25: 0 | DV25: 0 | DW25: 0 | DX25: 0 | DY25: 1 | DZ25: 0 | EA25: 0 | EB25: 0 | EC25: 0 | ED25: 0 | EE25: 0 | EF25: 0 | EG25: 0 | EH25: 0 | EI25: 0 | EJ25: 0 | EK25: 0 | EL25: 0 | EM25: 0 | EN25: 0 | EO25: 0 | EP25: 0 | EQ25: 0 | ER25: 0 | ES25: 0 | ET25: 0 | EU25: 0 | EV25: 0 | EW25: 0 | EX25: 0 | EY25: 0 | EZ25: 0 | FA25: 0 | FB25: 0 | FC25: 0 | FD25: 0 | FE25: 0 | FF25: 0 | FG25: 0 | FH25: 0 | FI25: 0 | FJ25: 0 | FK25: 0 | FL25: 0 | FM25: 8 | FN25: 2 | FO25: 2 | FP25: 1 | FQ25: 0 | FR25: 0 | FS25: 0 | FT25: 0 | FU25: 0 | FV25: 1 | FW25: 1 | FX25: 0 | FY25: 0 | FZ25: 2 | GA25: 0 | GB25: 0 | GC25: 0 | GD25: 0 | GE25: 0 | GF25: 0 | GG25: 0 | GH25: 0 | GI25: 0 | GJ25: 0 | GK25: 0 | GL25: 0 | GM25: 0 | GN25: 0 | GO25: 0 | GP25: 0 | GQ25: 0 | GR25: 0 | GS25: 0 | GT25: 0 | GU25: 0 | GV25: 0 | GW25: 0 | GX25: 0 | GY25: 0 | GZ25: 0 | HA25: 0 | HB25: 0 | HC25: 0 | HD25: 0 | HE25: 0 | HF25: 0 | HG25: 0
B26: Olivier PARIS | C26: =SUMPRODUCT(('Avantages perçus'!$A$2:$A$30000=B26)*('Avantages perçus'!$F$2:$F$30000)) -> 3330 | D26: =COUNTIFS('Avantages perçus'!$A$2:$A$30000,B26,'Avantages perçus'!$F$2:$F$30000,">0") -> 30 | E26: =COUNTIFS('Conventions signées'!$A$2:$A$15000,B26,'Conventions signées'!$A$2:$A$15000,"*") -> 16 | F26: 0 | G26: 1007 | H26: 921 | I26: 690 | J26: 450 | K26: 0 | L26: 0 | M26: 262 | N26: 5 | O26: 0 | P26: 2 | Q26: 0 | R26: 0 | S26: 0 | T26: 8 | U26: 1 | V26: 0 | W26: 0 | X26: 0 | Y26: 573 | Z26: 0 | AA26: 0 | AB26: 0 | AC26: 31 | AD26: 1540 | AE26: 0 | AF26: 0 | AG26: 92 | AH26: 0 | AI26: 53 | AJ26: 0 | AK26: 0 | AL26: 0 | AM26: 45 | AN26: 60 | AO26: 0 | AP26: 0 | AQ26: 0 | AR26: 0 | AS26: 467 | AT26: 101 | AU26: 27 | AV26: 0 | AW26: 50 | AX26: 0 | AY26: 0 | AZ26: 0 | BA26: 0 | BB26: 56 | BC26: 235 | BD26: 0 | BE26: 0 | BF26: 0 | BG26: 0 | BH26: 0 | BI26: 0 | BJ26: 0 | BK26: 0 | BL26: 0 | BM26: 0 | BN26: 0 | BO26: 0 | BP26: 0 | BQ26: 0 | BR26: 0 | BS26: 0 | BT26: 0 | BU26: 0 | BV26: 0 | BW26: 0 | BX26: 0 | BY26: 0 | BZ26: 0 | CA26: 0 | CB26: 0 | CC26: 0 | CD26: 0 | CE26: 0 | CF26: 0 | CG26: 0 | CH26: 0 | CI26: 0 | CJ26: 0 | CK26: 0 | CL26: 0 | CM26: 0 | CN26: 0 | CO26: 0 | CP26: 0 | CQ26: 0 | CR26: 0 | CS26: 8 | CT26: 0 | CU26: 2 | CV26: 0 | CW26: 1 | CX26: 0 | CY26: 0 | CZ26: 1 | DA26: 1 | DB26: 1 | DC26: 0 | DD26: 0 | DE26: 4 | DF26: 3 | DG26: 2 | DH26: 0 | DI26: 0 | DJ26: 0 | DK26: 0 | DL26: 1 | DM26: 0 | DN26: 2 | DO26: 0 | DP26: 1 | DQ26: 0 | DR26: 0 | DS26: 0 | DT26: 3 | DU26: 0 | DV26: 0 | DW26: 0 | DX26: 0 | DY26: 0 | DZ26: 0 | EA26: 0 | EB26: 0 | EC26: 0 | ED26: 0 | EE26: 0 | EF26: 0 | EG26: 0 | EH26: 0 | EI26: 0 | EJ26: 0 | EK26: 0 | EL26: 0 | EM26: 0 | EN26: 0 | EO26: 0 | EP26: 0 | EQ26: 0 | ER26: 0 | ES26: 0 | ET26: 0 | EU26: 0 | EV26: 0 | EW26: 0 | EX26: 0 | EY26: 0 | EZ26: 0 | FA26: 0 | FB26: 0 | FC26: 0 | FD26: 0 | FE26: 0 | FF26: 0 | FG26: 0 | FH26: 0 | FI26: 0 | FJ26: 0 | FK26: 0 | FL26: 0 | FM26: 2 | FN26: 2 | FO26: 0 | FP26: 0 | FQ26: 8 | FR26: 0 | FS26: 0 | FT26: 2 | FU26: 0 | FV26: 2 | FW26: 0 | FX26: 0 | FY26: 0 | FZ26: 0 | GA26: 0 | GB26: 0 | GC26: 0 | GD26: 0 | GE26: 0 | GF26: 0 | GG26: 0 | GH26: 0 | GI26: 0 | GJ26: 0 | GK26: 0 | GL26: 0 | GM26: 0 | GN26: 0 | GO26: 0 | GP26: 0 | GQ26: 0 | GR26: 0 | GS26: 0 | GT26: 0 | GU26: 0 | GV26: 0 | GW26: 0 | GX26: 0 | GY26: 0 | GZ26: 0 | HA26: 0 | HB26: 0 | HC26: 0 | HD26: 0 | HE26: 0 | HF26: 0 | HG26: 0
B27: Pierre FOURNIER | C27: =SUMPRODUCT(('Avantages perçus'!$A$2:$A$30000=B27)*('Avantages perçus'!$F$2:$F$30000)) -> 3319 | D27: =COUNTIFS('Avantages perçus'!$A$2:$A$30000,B27,'Avantages perçus'!$F$2:$F$30000,">0") -> 54 | E27: =COUNTIFS('Conventions signées'!$A$2:$A$15000,B27,'Conventions signées'!$A$2:$A$15000,"*") -> 17 | F27: 188 | G27: 402 | H27: 1293 | I27: 279 | J27: 1096 | K27: 0 | L27: 0 | M27: 61 | N27: 7 | O27: 0 | P27: 6 | Q27: 1 | R27: 0 | S27: 0 | T27: 0 | U27: 1 | V27: 0 | W27: 0 | X27: 2 | Y27: 1726 | Z27: 42 | AA27: 0 | AB27: 140 | AC27: 265 | AD27: 39 | AE27: 24 | AF27: 450 | AG27: 0 | AH27: 99 | AI27: 0 | AJ27: 0 | AK27: 0 | AL27: 0 | AM27: 15 | AN27: 101 | AO27: 0 | AP27: 0 | AQ27: 44 | AR27: 0 | AS27: 0 | AT27: 38 | AU27: 61 | AV27: 27 | AW27: 13 | AX27: 35 | AY27: 0 | AZ27: 0 | BA27: 0 | BB27: 0 | BC27: 0 | BD27: 0 | BE27: 0 | BF27: 0 | BG27: 21 | BH27: 0 | BI27: 0 | BJ27: 63 | BK27: 0 | BL27: 24 | BM27: 23 | BN27: 21 | BO27: 0 | BP27: 20 | BQ27: 0 | BR27: 0 | BS27: 28 | BT27: 0 | BU27: 0 | BV27: 0 | BW27: 0 | BX27: 0 | BY27: 0 | BZ27: 0 | CA27: 0 | CB27: 0 | CC27: 0 | CD27: 0 | CE27: 0 | CF27: 0 | CG27: 0 | CH27: 0 | CI27: 0 | CJ27: 0 | CK27: 0 | CL27: 0 | CM27: 0 | CN27: 0 | CO27: 0 | CP27: 0 | CQ27: 0 | CR27: 0 | CS27: 15 | CT27: 4 | CU27: 0 | CV27: 2 | CW27: 5 | CX27: 0 | CY27: 1 | CZ27: 0 | DA27: 2 | DB27: 3 | DC27: 0 | DD27: 2 | DE27: 2 | DF27: 1 | DG27: 0 | DH27: 3 | DI27: 0 | DJ27: 2 | DK27: 1 | DL27: 1 | DM27: 0 | DN27: 0 | DO27: 1 | DP27: 1 | DQ27: 0 | DR27: 1 | DS27: 0 | DT27: 0 | DU27: 0 | DV27: 0 | DW27: 0 | DX27: 0 | DY27: 0 | DZ27: 2 | EA27: 0 | EB27: 1 | EC27: 0 | ED27: 1 | EE27: 1 | EF27: 0 | EG27: 0 | EH27: 1 | EI27: 0 | EJ27: 0 | EK27: 1 | EL27: 0 | EM27: 0 | EN27: 0 | EO27: 0 | EP27: 0 | EQ27: 0 | ER27: 0 | ES27: 0 | ET27: 0 | EU27: 0 | EV27: 0 | EW27: 0 | EX27: 0 | EY27: 0 | EZ27: 0 | FA27: 0 | FB27: 0 | FC27: 0 | FD27: 0 | FE27: 0 | FF27: 0 | FG27: 0 | FH27: 0 | FI27: 0 | FJ27: 0 | FK27: 0 | FL27: 0 | FM27: 6 | FN27: 2 | FO27: 0 | FP27: 1 | FQ27: 0 | FR27: 0 | FS27: 2 | FT27: 3 | FU27: 0 | FV27: 0 | FW27: 0 | FX27: 0 | FY27: 0 | FZ27: 0 | GA27: 0 | GB27: 0 | GC27: 0 | GD27: 2 | GE27: 0 | GF27: 0 | GG27: 0 | GH27: 0 | GI27: 0 | GJ27: 0 | GK27: 0 | GL27: 1 | GM27: 0 | GN27: 0 | GO27: 0 | GP27: 0 | GQ27: 0 | GR27: 0 | GS27: 0 | GT27: 0 | GU27: 0 | GV27: 0 | GW27: 0 | GX27: 0 | GY27: 0 | GZ27: 0 | HA27: 0 | HB27: 0 | HC27: 0 | HD27: 0 | HE27: 0 | HF27: 0 | HG27: 0
B28: Bruno RIME | C28: =SUMPRODUCT(('Avantages perçus'!$A$2:$A$30000=B28)*('Avantages perçus'!$F$2:$F$30000)) -> 3047 | D28: =COUNTIFS('Avantages perçus'!$A$2:$A$30000,B28,'Avantages perçus'!$F$2:$F$30000,">0") -> 43 | E28: =COUNTIFS('Conventions signées'!$A$2:$A$15000,B28,'Conventions signées'!$A$2:$A$15000,"*") -> 20 | F28: 301 | G28: 165 | H28: 1293 | I28: 571 | J28: 450 | K28: 0 | L28: 0 | M28: 267 | N28: 7 | O28: 1 | P28: 3 | Q28: 0 | R28: 0 | S28: 3 | T28: 5 | U28: 1 | V28: 0 | W28: 0 | X28: 0 | Y28: 106 | Z28: 60 | AA28: 0 | AB28: 187 | AC28: 39 | AD28: 0 | AE28: 631 | AF28: 0 | AG28: 87 | AH28: 450 | AI28: 612 | AJ28: 98 | AK28: 0 | AL28: 0 | AM28: 0 | AN28: 84 | AO28: 0 | AP28: 0 | AQ28: 59 | AR28: 0 | AS28: 74 | AT28: 48 | AU28: 0 | AV28: 0 | AW28: 39 | AX28: 0 | AY28: 0 | AZ28: 0 | BA28: 0 | BB28: 206 | BC28: 255 | BD28: 0 | BE28: 0 | BF28: 0 | BG28: 0 | BH28: 0 | BI28: 12 | BJ28: 0 | BK28: 0 | BL28: 0 | BM28: 0 | BN28: 0 | BO28: 0 | BP28: 0 | BQ28: 0 | BR28: 0 | BS28: 0 | BT28: 0 | BU28: 0 | BV28: 0 | BW28: 0 | BX28: 0 | BY28: 0 | BZ28: 0 | CA28: 0 | CB28: 0 | CC28: 0 | CD28: 0 | CE28: 0 | CF28: 0 | CG28: 0 | CH28: 0 | CI28: 0 | CJ28: 0 | CK28: 0 | CL28: 0 | CM28: 0 | CN28: 0 | CO28: 0 | CP28: 0 | CQ28: 0 | CR28: 0 | CS28: 2 | CT28: 4 | CU28: 2 | CV28: 1 | CW28: 1 | CX28: 0 | CY28: 9 | CZ28: 4 | DA28: 0 | DB28: 2 | DC28: 2 | DD28: 1 | DE28: 0 | DF28: 1 | DG28: 2 | DH28: 2 | DI28: 0 | DJ28: 0 | DK28: 0 | DL28: 1 | DM28: 0 | DN28: 5 | DO28: 0 | DP28: 0 | DQ28: 1 | DR28: 0 | DS28: 0 | DT28: 3 | DU28: 0 | DV28: 0 | DW28: 0 | DX28: 0 | DY28: 0 | DZ28: 0 | EA28: 0 | EB28: 0 | EC28: 0 | ED28: 0 | EE28: 0 | EF28: 0 | EG28: 0 | EH28: 0 | EI28: 0 | EJ28: 0 | EK28: 0 | EL28: 0 | EM28: 0 | EN28: 0 | EO28: 0 | EP28: 0 | EQ28: 0 | ER28: 0 | ES28: 0 | ET28: 0 | EU28: 0 | EV28: 0 | EW28: 0 | EX28: 0 | EY28: 0 | EZ28: 0 | FA28: 0 | FB28: 0 | FC28: 0 | FD28: 0 | FE28: 0 | FF28: 0 | FG28: 0 | FH28: 0 | FI28: 0 | FJ28: 0 | FK28: 0 | FL28: 0 | FM28: 0 | FN28: 3 | FO28: 2 | FP28: 2 | FQ28: 5 | FR28: 0 | FS28: 0 | FT28: 0 | FU28: 1 | FV28: 1 | FW28: 2 | FX28: 0 | FY28: 1 | FZ28: 1 | GA28: 1 | GB28: 0 | GC28: 0 | GD28: 0 | GE28: 0 | GF28: 0 | GG28: 0 | GH28: 0 | GI28: 0 | GJ28: 0 | GK28: 0 | GL28: 0 | GM28: 0 | GN28: 0 | GO28: 0 | GP28: 0 | GQ28: 0 | GR28: 0 | GS28: 0 | GT28: 0 | GU28: 0 | GV28: 0 | GW28: 0 | GX28: 0 | GY28: 0 | GZ28: 0 | HA28: 0 | HB28: 0 | HC28: 0 | HD28: 0 | HE28: 0 | HF28: 0 | HG28: 1
B29: Hassan MAZYAD | C29: =SUMPRODUCT(('Avantages perçus'!$A$2:$A$30000=B29)*('Avantages perçus'!$F$2:$F$30000)) -> 2669 | D29: =COUNTIFS('Avantages perçus'!$A$2:$A$30000,B29,'Avantages perçus'!$F$2:$F$30000,">0") -> 48 | E29: =COUNTIFS('Conventions signées'!$A$2:$A$15000,B29,'Conventions signées'!$A$2:$A$15000,"*") -> 19 | F29: 0 | G29: 220 | H29: 1182 | I29: 109 | J29: 1075 | K29: 0 | L29: 0 | M29: 83 | N29: 6 | O29: 0 | P29: 6 | Q29: 2 | R29: 0 | S29: 1 | T29: 4 | U29: 0 | V29: 0 | W29: 0 | X29: 0 | Y29: 1600 | Z29: 42 | AA29: 193 | AB29: 60 | AC29: 126 | AD29: 65 | AE29: 24 | AF29: 0 | AG29: 0 | AH29: 99 | AI29: 0 | AJ29: 0 | AK29: 0 | AL29: 0 | AM29: 15 | AN29: 78 | AO29: 0 | AP29: 0 | AQ29: 31 | AR29: 0 | AS29: 0 | AT29: 38 | AU29: 83 | AV29: 34 | AW29: 13 | AX29: 17 | AY29: 0 | AZ29: 0 | BA29: 0 | BB29: 0 | BC29: 0 | BD29: 0 | BE29: 0 | BF29: 0 | BG29: 21 | BH29: 0 | BI29: 0 | BJ29: 63 | BK29: 0 | BL29: 24 | BM29: 23 | BN29: 0 | BO29: 0 | BP29: 20 | BQ29: 0 | BR29: 0 | BS29: 0 | BT29: 0 | BU29: 0 | BV29: 0 | BW29: 0 | BX29: 0 | BY29: 0 | BZ29: 0 | CA29: 0 | CB29: 0 | CC29: 0 | CD29: 0 | CE29: 0 | CF29: 0 | CG29: 0 | CH29: 0 | CI29: 0 | CJ29: 0 | CK29: 0 | CL29: 0 | CM29: 0 | CN29: 0 | CO29: 0 | CP29: 0 | CQ29: 0 | CR29: 0 | CS29: 13 | CT29: 2 | CU29: 0 | CV29: 2 | CW29: 4 | CX29: 3 | CY29: 1 | CZ29: 0 | DA29: 3 | DB29: 2 | DC29: 0 | DD29: 2 | DE29: 3 | DF29: 1 | DG29: 0 | DH29: 2 | DI29: 0 | DJ29: 1 | DK29: 1 | DL29: 1 | DM29: 0 | DN29: 0 | DO29: 0 | DP29: 1 | DQ29: 0 | DR29: 1 | DS29: 0 | DT29: 0 | DU29: 0 | DV29: 0 | DW29: 0 | DX29: 0 | DY29: 0 | DZ29: 2 | EA29: 0 | EB29: 1 | EC29: 0 | ED29: 1 | EE29: 1 | EF29: 0 | EG29: 0 | EH29: 0 | EI29: 0 | EJ29: 0 | EK29: 0 | EL29: 0 | EM29: 0 | EN29: 0 | EO29: 0 | EP29: 0 | EQ29: 0 | ER29: 0 | ES29: 0 | ET29: 0 | EU29: 0 | EV29: 0 | EW29: 0 | EX29: 0 | EY29: 0 | EZ29: 0 | FA29: 0 | FB29: 0 | FC29: 0 | FD29: 0 | FE29: 0 | FF29: 0 | FG29: 0 | FH29: 0 | FI29: 0 | FJ29: 0 | FK29: 0 | FL29: 0 | FM29: 8 | FN29: 0 | FO29: 0 | FP29: 0 | FQ29: 0 | FR29: 3 | FS29: 1 | FT29: 1 | FU29: 0 | FV29: 0 | FW29: 0 | FX29: 0 | FY29: 0 | FZ29: 0 | GA29: 0 | GB29: 0 | GC29: 0 | GD29: 2 | GE29: 2 | GF29: 0 | GG29: 0 | GH29: 0 | GI29: 0 | GJ29: 0 | GK29: 0 | GL29: 0 | GM29: 0 | GN29: 0 | GO29: 0 | GP29: 0 | GQ29: 0 | GR29: 0 | GS29: 0 | GT29: 0 | GU29: 0 | GV29: 0 | GW29: 0 | GX29: 0 | GY29: 1 | GZ29: 1 | HA29: 0 | HB29: 0 | HC29: 0 | HD29: 0 | HE29: 0 | HF29: 0 | HG29: 0
B30: Louis DARBON | C30: =SUMPRODUCT(('Avantages perçus'!$A$2:$A$30000=B30)*('Avantages perçus'!$F$2:$F$30000)) -> 2617 | D30: =COUNTIFS('Avantages perçus'!$A$2:$A$30000,B30,'Avantages perçus'!$F$2:$F$30000,">0") -> 40 | E30: =COUNTIFS('Conventions signées'!$A$2:$A$15000,B30,'Conventions signées'!$A$2:$A$15000,"*") -> 14 | F30: 790 | G30: 451 | H30: 1114 | I30: 262 | J30: 0 | K30: 0 | L30: 0 | M30: 0 | N30: 7 | O30: 0 | P30: 5 | Q30: 2 | R30: 0 | S30: 0 | T30: 0 | U30: 0 | V30: 0 | W30: 0 | X30: 0 | Y30: 361 | Z30: 0 | AA30: 92 | AB30: 180 | AC30: 67 | AD30: 0 | AE30: 69 | AF30: 0 | AG30: 0 | AH30: 0 | AI30: 55 | AJ30: 49 | AK30: 0 | AL30: 0 | AM30: 0 | AN30: 0 | AO30: 0 | AP30: 0 | AQ30: 0 | AR30: 1638 | AS30: 0 | AT30: 48 | AU30: 0 | AV30: 58 | AW30: 0 | AX30: 0 | AY30: 0 | AZ30: 0 | BA30: 0 | BB30: 0 | BC30: 0 | BD30: 0 | BE30: 0 | BF30: 0 | BG30: 0 | BH30: 0 | BI30: 0 | BJ30: 0 | BK30: 0 | BL30: 0 | BM30: 0 | BN30: 0 | BO30: 0 | BP30: 0 | BQ30: 0 | BR30: 0 | BS30: 0 | BT30: 0 | BU30: 0 | BV30: 0 | BW30: 0 | BX30: 0 | BY30: 0 | BZ30: 0 | CA30: 0 | CB30: 0 | CC30: 0 | CD30: 0 | CE30: 0 | CF30: 0 | CG30: 0 | CH30: 0 | CI30: 0 | CJ30: 0 | CK30: 0 | CL30: 0 | CM30: 0 | CN30: 0 | CO30: 0 | CP30: 0 | CQ30: 0 | CR30: 0 | CS30: 8 | CT30: 3 | CU30: 0 | CV30: 0 | CW30: 2 | CX30: 2 | CY30: 2 | CZ30: 1 | DA30: 0 | DB30: 0 | DC30: 1 | DD30: 0 | DE30: 0 | DF30: 1 | DG30: 0 | DH30: 0 | DI30: 0 | DJ30: 0 | DK30: 1 | DL30: 0 | DM30: 19 | DN30: 0 | DO30: 0 | DP30: 0 | DQ30: 0 | DR30: 0 | DS30: 0 | DT30: 0 | DU30: 0 | DV30: 0 | DW30: 0 | DX30: 0 | DY30: 0 | DZ30: 0 | EA30: 0 | EB30: 0 | EC30: 0 | ED30: 0 | EE30: 0 | EF30: 0 | EG30: 0 | EH30: 0 | EI30: 0 | EJ30: 0 | EK30: 0 | EL30: 0 | EM30: 0 | EN30: 0 | EO30: 0 | EP30: 0 | EQ30: 0 | ER30: 0 | ES30: 0 | ET30: 0 | EU30: 0 | EV30: 0 | EW30: 0 | EX30: 0 | EY30: 0 | EZ30: 0 | FA30: 0 | FB30: 0 | FC30: 0 | FD30: 0 | FE30: 0 | FF30: 0 | FG30: 0 | FH30: 0 | FI30: 0 | FJ30: 0 | FK30: 0 | FL30: 0 | FM30: 3 | FN30: 4 | FO30: 0 | FP30: 0 | FQ30: 0 | FR30: 1 | FS30: 0 | FT30: 0 | FU30: 0 | FV30: 2 | FW30: 0 | FX30: 0 | FY30: 0 | FZ30: 0 | GA30: 0 | GB30: 0 | GC30: 0 | GD30: 0 | GE30: 0 | GF30: 0 | GG30: 4 | GH30: 0 | GI30: 0 | GJ30: 0 | GK30: 0 | GL30: 0 | GM30: 0 | GN30: 0 | GO30: 0 | GP30: 0 | GQ30: 0 | GR30: 0 | GS30: 0 | GT30: 0 | GU30: 0 | GV30: 0 | GW30: 0 | GX30: 0 | GY30: 0 | GZ30: 0 | HA30: 0 | HB30: 0 | HC30: 0 | HD30: 0 | HE30: 0 | HF30: 0 | HG30: 0
B31: Caroline VILLOUTREIX | C31: =SUMPRODUCT(('Avantages perçus'!$A$2:$A$30000=B31)*('Avantages perçus'!$F$2:$F$30000)) -> 2459 | D31: =COUNTIFS('Avantages perçus'!$A$2:$A$30000,B31,'Avantages perçus'!$F$2:$F$30000,">0") -> 34 | E31: =COUNTIFS('Conventions signées'!$A$2:$A$15000,B31,'Conventions signées'!$A$2:$A$15000,"*") -> 22 | F31: 0 | G31: 220 | H31: 1080 | I31: 137 | J31: 500 | K31: 0 | L31: 0 | M31: 522 | N31: 8 | O31: 0 | P31: 6 | Q31: 0 | R31: 0 | S31: 0 | T31: 6 | U31: 1 | V31: 0 | W31: 0 | X31: 1 | Y31: 468 | Z31: 202 | AA31: 63 | AB31: 73 | AC31: 93 | AD31: 0 | AE31: 18 | AF31: 450 | AG31: 49 | AH31: 55 | AI31: 55 | AJ31: 499 | AK31: 0 | AL31: 0 | AM31: 84 | AN31: 55 | AO31: 0 | AP31: 0 | AQ31: 0 | AR31: 0 | AS31: 158 | AT31: 48 | AU31: 54 | AV31: 0 | AW31: 0 | AX31: 17 | AY31: 0 | AZ31: 0 | BA31: 0 | BB31: 0 | BC31: 0 | BD31: 0 | BE31: 0 | BF31: 0 | BG31: 0 | BH31: 0 | BI31: 18 | BJ31: 0 | BK31: 0 | BL31: 0 | BM31: 0 | BN31: 0 | BO31: 0 | BP31: 0 | BQ31: 0 | BR31: 0 | BS31: 0 | BT31: 0 | BU31: 0 | BV31: 0 | BW31: 0 | BX31: 0 | BY31: 0 | BZ31: 0 | CA31: 0 | CB31: 0 | CC31: 0 | CD31: 0 | CE31: 0 | CF31: 0 | CG31: 0 | CH31: 0 | CI31: 0 | CJ31: 0 | CK31: 0 | CL31: 0 | CM31: 0 | CN31: 0 | CO31: 0 | CP31: 0 | CQ31: 0 | CR31: 0 | CS31: 6 | CT31: 2 | CU31: 1 | CV31: 4 | CW31: 2 | CX31: 2 | CY31: 1 | CZ31: 1 | DA31: 2 | DB31: 1 | DC31: 2 | DD31: 1 | DE31: 0 | DF31: 1 | DG31: 3 | DH31: 0 | DI31: 0 | DJ31: 1 | DK31: 0 | DL31: 0 | DM31: 0 | DN31: 0 | DO31: 1 | DP31: 2 | DQ31: 1 | DR31: 0 | DS31: 0 | DT31: 0 | DU31: 0 | DV31: 0 | DW31: 0 | DX31: 0 | DY31: 0 | DZ31: 0 | EA31: 0 | EB31: 0 | EC31: 0 | ED31: 0 | EE31: 0 | EF31: 0 | EG31: 0 | EH31: 0 | EI31: 0 | EJ31: 0 | EK31: 0 | EL31: 0 | EM31: 0 | EN31: 0 | EO31: 0 | EP31: 0 | EQ31: 0 | ER31: 0 | ES31: 0 | ET31: 0 | EU31: 0 | EV31: 0 | EW31: 0 | EX31: 0 | EY31: 0 | EZ31: 0 | FA31: 0 | FB31: 0 | FC31: 0 | FD31: 0 | FE31: 0 | FF31: 0 | FG31: 0 | FH31: 0 | FI31: 0 | FJ31: 0 | FK31: 0 | FL31: 0 | FM31: 2 | FN31: 2 | FO31: 1 | FP31: 4 | FQ31: 6 | FR31: 1 | FS31: 1 | FT31: 0 | FU31: 0 | FV31: 3 | FW31: 0 | FX31: 0 | FY31: 1 | FZ31: 0 | GA31: 0 | GB31: 0 | GC31: 1 | GD31: 0 | GE31: 0 | GF31: 0 | GG31: 0 | GH31: 0 | GI31: 0 | GJ31: 0 | GK31: 0 | GL31: 0 | GM31: 0 | GN31: 0 | GO31: 0 | GP31: 0 | GQ31: 0 | GR31: 0 | GS31: 0 | GT31: 0 | GU31: 0 | GV31: 0 | GW31: 0 | GX31: 0 | GY31: 0 | GZ31: 0 | HA31: 0 | HB31: 0 | HC31: 0 | HD31: 0 | HE31: 0 | HF31: 0 | HG31: 0
B32: Aude LAFFITTE-LE REVEILLER | C32: =SUMPRODUCT(('Avantages perçus'!$A$2:$A$30000=B32)*('Avantages perçus'!$F$2:$F$30000)) -> 2353 | D32: =COUNTIFS('Avantages perçus'!$A$2:$A$30000,B32,'Avantages perçus'!$F$2:$F$30000,">0") -> 30 | E32: =COUNTIFS('Conventions signées'!$A$2:$A$15000,B32,'Conventions signées'!$A$2:$A$15000,"*") -> 8 | F32: 42 | G32: 171 | H32: 1146 | I32: 63 | J32: 450 | K32: 0 | L32: 0 | M32: 481 | N32: 5 | O32: 0 | P32: 2 | Q32: 0 | R32: 0 | S32: 0 | T32: 0 | U32: 1 | V32: 0 | W32: 0 | X32: 0 | Y32: 0 | Z32: 299 | AA32: 0 | AB32: 180 | AC32: 79 | AD32: 0 | AE32: 0 | AF32: 0 | AG32: 122 | AH32: 0 | AI32: 276 | AJ32: 499 | AK32: 0 | AL32: 0 | AM32: 526 | AN32: 75 | AO32: 0 | AP32: 0 | AQ32: 80 | AR32: 0 | AS32: 0 | AT32: 48 | AU32: 31 | AV32: 58 | AW32: 80 | AX32: 0 | AY32: 0 | AZ32: 0 | BA32: 0 | BB32: 0 | BC32: 0 | BD32: 0 | BE32: 0 | BF32: 0 | BG32: 0 | BH32: 0 | BI32: 0 | BJ32: 0 | BK32: 0 | BL32: 0 | BM32: 0 | BN32: 0 | BO32: 0 | BP32: 0 | BQ32: 0 | BR32: 0 | BS32: 0 | BT32: 0 | BU32: 0 | BV32: 0 | BW32: 0 | BX32: 0 | BY32: 0 | BZ32: 0 | CA32: 0 | CB32: 0 | CC32: 0 | CD32: 0 | CE32: 0 | CF32: 0 | CG32: 0 | CH32: 0 | CI32: 0 | CJ32: 0 | CK32: 0 | CL32: 0 | CM32: 0 | CN32: 0 | CO32: 0 | CP32: 0 | CQ32: 0 | CR32: 0 | CS32: 0 | CT32: 3 | CU32: 3 | CV32: 2 | CW32: 2 | CX32: 0 | CY32: 0 | CZ32: 6 | DA32: 1 | DB32: 2 | DC32: 2 | DD32: 0 | DE32: 0 | DF32: 1 | DG32: 0 | DH32: 2 | DI32: 0 | DJ32: 0 | DK32: 1 | DL32: 2 | DM32: 0 | DN32: 0 | DO32: 0 | DP32: 3 | DQ32: 0 | DR32: 0 | DS32: 0 | DT32: 0 | DU32: 0 | DV32: 0 | DW32: 0 | DX32: 0 | DY32: 0 | DZ32: 0 | EA32: 0 | EB32: 0 | EC32: 0 | ED32: 0 | EE32: 0 | EF32: 0 | EG32: 0 | EH32: 0 | EI32: 0 | EJ32: 0 | EK32: 0 | EL32: 0 | EM32: 0 | EN32: 0 | EO32: 0 | EP32: 0 | EQ32: 0 | ER32: 0 | ES32: 0 | ET32: 0 | EU32: 0 | EV32: 0 | EW32: 0 | EX32: 0 | EY32: 0 | EZ32: 0 | FA32: 0 | FB32: 0 | FC32: 0 | FD32: 0 | FE32: 0 | FF32: 0 | FG32: 0 | FH32: 0 | FI32: 0 | FJ32: 0 | FK32: 0 | FL32: 0 | FM32: 0 | FN32: 3 | FO32: 2 | FP32: 1 | FQ32: 0 | FR32: 0 | FS32: 0 | FT32: 0 | FU32: 0 | FV32: 0 | FW32: 1 | FX32: 0 | FY32: 0 | FZ32: 0 | GA32: 0 | GB32: 0 | GC32: 1 | GD32: 0 | GE32: 0 | GF32: 0 | GG32: 0 | GH32: 0 | GI32: 0 | GJ32: 0 | GK32: 0 | GL32: 0 | GM32: 0 | GN32: 0 | GO32: 0 | GP32: 0 | GQ32: 0 | GR32: 0 | GS32: 0 | GT32: 0 | GU32: 0 | GV32: 0 | GW32: 0 | GX32: 0 | GY32: 0 | GZ32: 0 | HA32: 0 | HB32: 0 | HC32: 0 | HD32: 0 | HE32: 0 | HF32: 0 | HG32: 0
B33: Nathalie CHARON | C33: =SUMPRODUCT(('Avantages perçus'!$A$2:$A$30000=B33)*('Avantages perçus'!$F$2:$F$30000)) -> 2288 | D33: =COUNTIFS('Avantages perçus'!$A$2:$A$30000,B33,'Avantages perçus'!$F$2:$F$30000,">0") -> 34 | E33: =COUNTIFS('Conventions signées'!$A$2:$A$15000,B33,'Conventions signées'!$A$2:$A$15000,"*") -> 10 | F33: 0 | G33: 220 | H33: 1266 | I33: 802 | J33: 0 | K33: 0 | L33: 0 | M33: 0 | N33: 6 | O33: 0 | P33: 3 | Q33: 1 | R33: 0 | S33: 0 | T33: 0 | U33: 0 | V33: 0 | W33: 0 | X33: 0 | Y33: 645 | Z33: 228 | AA33: 197 | AB33: 179 | AC33: 118 | AD33: 540 | AE33: 0 | AF33: 0 | AG33: 104 | AH33: 30 | AI33: 0 | AJ33: 0 | AK33: 0 | AL33: 0 | AM33: 0 | AN33: 60 | AO33: 0 | AP33: 114 | AQ33: 0 | AR33: 0 | AS33: 15 | AT33: 0 | AU33: 0 | AV33: 0 | AW33: 0 | AX33: 0 | AY33: 0 | AZ33: 0 | BA33: 0 | BB33: 0 | BC33: 0 | BD33: 0 | BE33: 0 | BF33: 0 | BG33: 0 | BH33: 58 | BI33: 0 | BJ33: 0 | BK33: 0 | BL33: 0 | BM33: 0 | BN33: 0 | BO33: 0 | BP33: 0 | BQ33: 0 | BR33: 0 | BS33: 0 | BT33: 0 | BU33: 0 | BV33: 0 | BW33: 0 | BX33: 0 | BY33: 0 | BZ33: 0 | CA33: 0 | CB33: 0 | CC33: 0 | CD33: 0 | CE33: 0 | CF33: 0 | CG33: 0 | CH33: 0 | CI33: 0 | CJ33: 0 | CK33: 0 | CL33: 0 | CM33: 0 | CN33: 0 | CO33: 0 | CP33: 0 | CQ33: 0 | CR33: 0 | CS33: 9 | CT33: 3 | CU33: 2 | CV33: 4 | CW33: 2 | CX33: 6 | CY33: 0 | CZ33: 0 | DA33: 0 | DB33: 1 | DC33: 0 | DD33: 1 | DE33: 1 | DF33: 0 | DG33: 1 | DH33: 0 | DI33: 3 | DJ33: 0 | DK33: 0 | DL33: 0 | DM33: 0 | DN33: 0 | DO33: 0 | DP33: 0 | DQ33: 0 | DR33: 0 | DS33: 0 | DT33: 0 | DU33: 0 | DV33: 0 | DW33: 0 | DX33: 0 | DY33: 1 | DZ33: 0 | EA33: 0 | EB33: 0 | EC33: 0 | ED33: 0 | EE33: 0 | EF33: 0 | EG33: 0 | EH33: 0 | EI33: 0 | EJ33: 0 | EK33: 0 | EL33: 0 | EM33: 0 | EN33: 0 | EO33: 0 | EP33: 0 | EQ33: 0 | ER33: 0 | ES33: 0 | ET33: 0 | EU33: 0 | EV33: 0 | EW33: 0 | EX33: 0 | EY33: 0 | EZ33: 0 | FA33: 0 | FB33: 0 | FC33: 0 | FD33: 0 | FE33: 0 | FF33: 0 | FG33: 0 | FH33: 0 | FI33: 0 | FJ33: 0 | FK33: 0 | FL33: 0 | FM33: 3 | FN33: 3 | FO33: 0 | FP33: 1 | FQ33: 0 | FR33: 1 | FS33: 0 | FT33: 1 | FU33: 0 | FV33: 1 | FW33: 0 | FX33: 0 | FY33: 0 | FZ33: 0 | GA33: 0 | GB33: 0 | GC33: 0 | GD33: 0 | GE33: 0 | GF33: 0 | GG33: 0 | GH33: 0 | GI33: 0 | GJ33: 0 | GK33: 0 | GL33: 0 | GM33: 0 | GN33: 0 | GO33: 0 | GP33: 0 | GQ33: 0 | GR33: 0 | GS33: 0 | GT33: 0 | GU33: 0 | GV33: 0 | GW33: 0 | GX33: 0 | GY33: 0 | GZ33: 0 | HA33: 0 | HB33: 0 | HC33: 0 | HD33: 0 | HE33: 0 | HF33: 0 | HG33: 0
B34: Thierry GAVARDIN | C34: =SUMPRODUCT(('Avantages perçus'!$A$2:$A$30000=B34)*('Avantages perçus'!$F$2:$F$30000)) -> 2155 | D34: =COUNTIFS('Avantages perçus'!$A$2:$A$30000,B34,'Avantages perçus'!$F$2:$F$30000,">0") -> 43 | E34: =COUNTIFS('Conventions signées'!$A$2:$A$15000,B34,'Conventions signées'!$A$2:$A$15000,"*") -> 9 | F34: 11 | G34: 0 | H34: 944 | I34: 606 | J34: 510 | K34: 0 | L34: 0 | M34: 84 | N34: 3 | O34: 0 | P34: 5 | Q34: 0 | R34: 0 | S34: 0 | T34: 0 | U34: 0 | V34: 0 | W34: 0 | X34: 1 | Y34: 638 | Z34: 20 | AA34: 23 | AB34: 80 | AC34: 126 | AD34: 579 | AE34: 0 | AF34: 0 | AG34: 0 | AH34: 99 | AI34: 0 | AJ34: 0 | AK34: 0 | AL34: 0 | AM34: 15 | AN34: 78 | AO34: 0 | AP34: 0 | AQ34: 44 | AR34: 0 | AS34: 0 | AT34: 38 | AU34: 84 | AV34: 29 | AW34: 13 | AX34: 35 | AY34: 0 | AZ34: 0 | BA34: 0 | BB34: 0 | BC34: 0 | BD34: 0 | BE34: 0 | BF34: 0 | BG34: 21 | BH34: 0 | BI34: 0 | BJ34: 63 | BK34: 0 | BL34: 24 | BM34: 32 | BN34: 0 | BO34: 0 | BP34: 20 | BQ34: 0 | BR34: 0 | BS34: 28 | BT34: 0 | BU34: 0 | BV34: 0 | BW34: 0 | BX34: 0 | BY34: 0 | BZ34: 0 | CA34: 50 | CB34: 0 | CC34: 0 | CD34: 0 | CE34: 0 | CF34: 0 | CG34: 0 | CH34: 0 | CI34: 0 | CJ34: 0 | CK34: 0 | CL34: 0 | CM34: 0 | CN34: 0 | CO34: 0 | CP34: 0 | CQ34: 16 | CR34: 0 | CS34: 6 | CT34: 3 | CU34: 0 | CV34: 1 | CW34: 4 | CX34: 1 | CY34: 0 | CZ34: 0 | DA34: 3 | DB34: 2 | DC34: 0 | DD34: 2 | DE34: 3 | DF34: 1 | DG34: 0 | DH34: 3 | DI34: 0 | DJ34: 2 | DK34: 1 | DL34: 1 | DM34: 0 | DN34: 0 | DO34: 0 | DP34: 1 | DQ34: 0 | DR34: 1 | DS34: 0 | DT34: 0 | DU34: 0 | DV34: 0 | DW34: 0 | DX34: 0 | DY34: 0 | DZ34: 2 | EA34: 0 | EB34: 1 | EC34: 0 | ED34: 1 | EE34: 1 | EF34: 0 | EG34: 0 | EH34: 0 | EI34: 0 | EJ34: 0 | EK34: 1 | EL34: 0 | EM34: 0 | EN34: 0 | EO34: 0 | EP34: 0 | EQ34: 0 | ER34: 0 | ES34: 0 | ET34: 0 | EU34: 0 | EV34: 0 | EW34: 0 | EX34: 0 | EY34: 0 | EZ34: 0 | FA34: 0 | FB34: 0 | FC34: 0 | FD34: 0 | FE34: 0 | FF34: 0 | FG34: 0 | FH34: 0 | FI34: 0 | FJ34: 0 | FK34: 1 | FL34: 1 | FM34: 1 | FN34: 1 | FO34: 0 | FP34: 0 | FQ34: 0 | FR34: 0 | FS34: 2 | FT34: 2 | FU34: 0 | FV34: 0 | FW34: 0 | FX34: 0 | FY34: 0 | FZ34: 0 | GA34: 0 | GB34: 0 | GC34: 0 | GD34: 2 | GE34: 0 | GF34: 0 | GG34: 0 | GH34: 0 | GI34: 0 | GJ34: 0 | GK34: 0 | GL34: 0 | GM34: 0 | GN34: 0 | GO34: 0 | GP34: 0 | GQ34: 0 | GR34: 0 | GS34: 0 | GT34: 0 | GU34: 0 | GV34: 0 | GW34: 0 | GX34: 0 | GY34: 0 | GZ34: 0 | HA34: 0 | HB34: 0 | HC34: 0 | HD34: 0 | HE34: 0 | HF34: 1 | HG34: 0
B35: Frédérique DURIEZ | C35: =SUMPRODUCT(('Avantages perçus'!$A$2:$A$30000=B35)*('Avantages perçus'!$F$2:$F$30000)) -> 1929 | D35: =COUNTIFS('Avantages perçus'!$A$2:$A$30000,B35,'Avantages perçus'!$F$2:$F$30000,">0") -> 6 | E35: =COUNTIFS('Conventions signées'!$A$2:$A$15000,B35,'Conventions signées'!$A$2:$A$15000,"*") -> 3 | F35: 365 | G35: 269 | H35: 0 | I35: 0 | J35: 1295 | K35: 0 | L35: 0 | M35: 0 | N35: 0 | O35: 0 | P35: 3 | Q35: 0 | R35: 0 | S35: 0 | T35: 0 | U35: 0 | V35: 0 | W35: 0 | X35: 0 | Y35: 0 | Z35: 0 | AA35: 0 | AB35: 0 | AC35: 0 | AD35: 0 | AE35: 0 | AF35: 290 | AG35: 0 | AH35: 1639 | AI35: 0 | AJ35: 0 | AK35: 0 | AL35: 0 | AM35: 0 | AN35: 0 | AO35: 0 | AP35: 0 | AQ35: 0 | AR35: 0 | AS35: 0 | AT35: 0 | AU35: 0 | AV35: 0 | AW35: 0 | AX35: 0 | AY35: 0 | AZ35: 0 | BA35: 0 | BB35: 0 | BC35: 0 | BD35: 0 | BE35: 0 | BF35: 0 | BG35: 0 | BH35: 0 | BI35: 0 | BJ35: 0 | BK35: 0 | BL35: 0 | BM35: 0 | BN35: 0 | BO35: 0 | BP35: 0 | BQ35: 0 | BR35: 0 | BS35: 0 | BT35: 0 | BU35: 0 | BV35: 0 | BW35: 0 | BX35: 0 | BY35: 0 | BZ35: 0 | CA35: 0 | CB35: 0 | CC35: 0 | CD35: 0 | CE35: 0 | CF35: 0 | CG35: 0 | CH35: 0 | CI35: 0 | CJ35: 0 | CK35: 0 | CL35: 0 | CM35: 0 | CN35: 0 | CO35: 0 | CP35: 0 | CQ35: 0 | CR35: 0 | CS35: 0 | CT35: 0 | CU35: 0 | CV35: 0 | CW35: 0 | CX35: 0 | CY35: 0 | CZ35: 0 | DA35: 0 | DB35: 0 | DC35: 0 | DD35: 5 | DE35: 0 | DF35: 0 | DG35: 0 | DH35: 0 | DI35: 0 | DJ35: 0 | DK35: 0 | DL35: 0 | DM35: 0 | DN35: 0 | DO35: 1 | DP35: 0 | DQ35: 0 | DR35: 0 | DS35: 0 | DT35: 0 | DU35: 0 | DV35: 0 | DW35: 0 | DX35: 0 | DY35: 0 | DZ35: 0 | EA35: 0 | EB35: 0 | EC35: 0 | ED35: 0 | EE35: 0 | EF35: 0 | EG35: 0 | EH35: 0 | EI35: 0 | EJ35: 0 | EK35: 0 | EL35: 0 | EM35: 0 | EN35: 0 | EO35: 0 | EP35: 0 | EQ35: 0 | ER35: 0 | ES35: 0 | ET35: 0 | EU35: 0 | EV35: 0 | EW35: 0 | EX35: 0 | EY35: 0 | EZ35: 0 | FA35: 0 | FB35: 0 | FC35: 0 | FD35: 0 | FE35: 0 | FF35: 0 | FG35: 0 | FH35: 0 | FI35: 0 | FJ35: 0 | FK35: 0 | FL35: 0 | FM35: 0 | FN35: 0 | FO35: 0 | FP35: 0 | FQ35: 0 | FR35: 0 | FS35: 0 | FT35: 0 | FU35: 0 | FV35: 0 | FW35: 0 | FX35: 0 | FY35: 0 | FZ35: 2 | GA35: 1 | GB35: 0 | GC35: 0 | GD35: 0 | GE35: 0 | GF35: 0 | GG35: 0 | GH35: 0 | GI35: 0 | GJ35: 0 | GK35: 0 | GL35: 0 | GM35: 0 | GN35: 0 | GO35: 0 | GP35: 0 | GQ35: 0 | GR35: 0 | GS35: 0 | GT35: 0 | GU35: 0 | GV35: 0 | GW35: 0 | GX35: 0 | GY35: 0 | GZ35: 0 | HA35: 0 | HB35: 0 | HC35: 0 | HD35: 0 | HE35: 0 | HF35: 0 | HG35: 0
B36: Caroline COLLANGE | C36: =SUMPRODUCT(('Avantages perçus'!$A$2:$A$30000=B36)*('Avantages perçus'!$F$2:$F$30000)) -> 1923 | D36: =COUNTIFS('Avantages perçus'!$A$2:$A$30000,B36,'Avantages perçus'!$F$2:$F$30000,">0") -> 29 | E36: =COUNTIFS('Conventions signées'!$A$2:$A$15000,B36,'Conventions signées'!$A$2:$A$15000,"*") -> 8 | F36: 0 | G36: 220 | H36: 985 | I36: 229 | J36: 450 | K36: 0 | L36: 0 | M36: 39 | N36: 5 | O36: 0 | P36: 2 | Q36: 0 | R36: 0 | S36: 0 | T36: 0 | U36: 1 | V36: 0 | W36: 0 | X36: 0 | Y36: 738 | Z36: 94 | AA36: 0 | AB36: 57 | AC36: 39 | AD36: 0 | AE36: 0 | AF36: 450 | AG36: 136 | AH36: 33 | AI36: 58 | AJ36: 137 | AK36: 0 | AL36: 0 | AM36: 0 | AN36: 0 | AO36: 0 | AP36: 0 | AQ36: 0 | AR36: 0 | AS36: 0 | AT36: 48 | AU36: 0 | AV36: 58 | AW36: 0 | AX36: 0 | AY36: 0 | AZ36: 0 | BA36: 0 | BB36: 75 | BC36: 0 | BD36: 0 | BE36: 0 | BF36: 0 | BG36: 0 | BH36: 0 | BI36: 0 | BJ36: 0 | BK36: 0 | BL36: 0 | BM36: 0 | BN36: 0 | BO36: 0 | BP36: 0 | BQ36: 0 | BR36: 0 | BS36: 0 | BT36: 0 | BU36: 0 | BV36: 0 | BW36: 0 | BX36: 0 | BY36: 0 | BZ36: 0 | CA36: 0 | CB36: 0 | CC36: 0 | CD36: 0 | CE36: 0 | CF36: 0 | CG36: 0 | CH36: 0 | CI36: 0 | CJ36: 0 | CK36: 0 | CL36: 0 | CM36: 0 | CN36: 0 | CO36: 0 | CP36: 0 | CQ36: 0 | CR36: 0 | CS36: 11 | CT36: 1 | CU36: 4 | CV36: 2 | CW36: 1 | CX36: 0 | CY36: 0 | CZ36: 1 | DA36: 0 | DB36: 0 | DC36: 3 | DD36: 1 | DE36: 0 | DF36: 1 | DG36: 0 | DH36: 0 | DI36: 0 | DJ36: 0 | DK36: 1 | DL36: 0 | DM36: 0 | DN36: 2 | DO36: 1 | DP36: 0 | DQ36: 0 | DR36: 0 | DS36: 0 | DT36: 0 | DU36: 0 | DV36: 0 | DW36: 0 | DX36: 0 | DY36: 0 | DZ36: 0 | EA36: 0 | EB36: 0 | EC36: 0 | ED36: 0 | EE36: 0 | EF36: 0 | EG36: 0 | EH36: 0 | EI36: 0 | EJ36: 0 | EK36: 0 | EL36: 0 | EM36: 0 | EN36: 0 | EO36: 0 | EP36: 0 | EQ36: 0 | ER36: 0 | ES36: 0 | ET36: 0 | EU36: 0 | EV36: 0 | EW36: 0 | EX36: 0 | EY36: 0 | EZ36: 0 | FA36: 0 | FB36: 0 | FC36: 0 | FD36: 0 | FE36: 0 | FF36: 0 | FG36: 0 | FH36: 0 | FI36: 0 | FJ36: 0 | FK36: 0 | FL36: 0 | FM36: 1 | FN36: 1 | FO36: 3 | FP36: 1 | FQ36: 0 | FR36: 0 | FS36: 0 | FT36: 0 | FU36: 0 | FV36: 0 | FW36: 1 | FX36: 0 | FY36: 0 | FZ36: 0 | GA36: 1 | GB36: 0 | GC36: 0 | GD36: 0 | GE36: 0 | GF36: 0 | GG36: 0 | GH36: 0 | GI36: 0 | GJ36: 0 | GK36: 0 | GL36: 0 | GM36: 0 | GN36: 0 | GO36: 0 | GP36: 0 | GQ36: 0 | GR36: 0 | GS36: 0 | GT36: 0 | GU36: 0 | GV36: 0 | GW36: 0 | GX36: 0 | GY36: 0 | GZ36: 0 | HA36: 0 | HB36: 0 | HC36: 0 | HD36: 0 | HE36: 0 | HF36: 0 | HG36: 0
B37: Bernard HUCHET | C37: =SUMPRODUCT(('Avantages perçus'!$A$2:$A$30000=B37)*('Avantages perçus'!$F$2:$F$30000)) -> 1921 | D37: =COUNTIFS('Avantages perçus'!$A$2:$A$30000,B37,'Avantages perçus'!$F$2:$F$30000,">0") -> 27 | E37: =COUNTIFS('Conventions signées'!$A$2:$A$15000,B37,'Conventions signées'!$A$2:$A$15000,"*") -> 8 | F37: 0 | G37: 220 | H37: 724 | I37: 44 | J37: 800 | K37: 0 | L37: 0 | M37: 133 | N37: 4 | O37: 0 | P37: 3 | Q37: 0 | R37: 0 | S37: 0 | T37: 1 | U37: 0 | V37: 0 | W37: 0 | X37: 0 | Y37: 816 | Z37: 60 | AA37: 556 | AB37: 15 | AC37: 0 | AD37: 0 | AE37: 0 | AF37: 0 | AG37: 65 | AH37: 0 | AI37: 0 | AJ37: 0 | AK37: 0 | AL37: 0 | AM37: 0 | AN37: 101 | AO37: 0 | AP37: 60 | AQ37: 0 | AR37: 0 | AS37: 20 | AT37: 0 | AU37: 73 | AV37: 0 | AW37: 50 | AX37: 45 | AY37: 0 | AZ37: 0 | BA37: 0 | BB37: 0 | BC37: 60 | BD37: 0 | BE37: 0 | BF37: 0 | BG37: 0 | BH37: 0 | BI37: 0 | BJ37: 0 | BK37: 0 | BL37: 0 | BM37: 0 | BN37: 0 | BO37: 0 | BP37: 0 | BQ37: 0 | BR37: 0 | BS37: 0 | BT37: 0 | BU37: 0 | BV37: 0 | BW37: 0 | BX37: 0 | BY37: 0 | BZ37: 0 | CA37: 0 | CB37: 0 | CC37: 0 | CD37: 0 | CE37: 0 | CF37: 0 | CG37: 0 | CH37: 0 | CI37: 0 | CJ37: 0 | CK37: 0 | CL37: 0 | CM37: 0 | CN37: 0 | CO37: 0 | CP37: 0 | CQ37: 0 | CR37: 0 | CS37: 9 | CT37: 1 | CU37: 1 | CV37: 2 | CW37: 0 | CX37: 4 | CY37: 0 | CZ37: 0 | DA37: 3 | DB37: 2 | DC37: 0 | DD37: 0 | DE37: 0 | DF37: 0 | DG37: 1 | DH37: 0 | DI37: 1 | DJ37: 1 | DK37: 0 | DL37: 1 | DM37: 0 | DN37: 0 | DO37: 0 | DP37: 0 | DQ37: 0 | DR37: 0 | DS37: 0 | DT37: 1 | DU37: 0 | DV37: 0 | DW37: 0 | DX37: 0 | DY37: 0 | DZ37: 0 | EA37: 0 | EB37: 0 | EC37: 0 | ED37: 0 | EE37: 0 | EF37: 0 | EG37: 0 | EH37: 0 | EI37: 0 | EJ37: 0 | EK37: 0 | EL37: 0 | EM37: 0 | EN37: 0 | EO37: 0 | EP37: 0 | EQ37: 0 | ER37: 0 | ES37: 0 | ET37: 0 | EU37: 0 | EV37: 0 | EW37: 0 | EX37: 0 | EY37: 0 | EZ37: 0 | FA37: 0 | FB37: 0 | FC37: 0 | FD37: 0 | FE37: 0 | FF37: 0 | FG37: 0 | FH37: 0 | FI37: 0 | FJ37: 0 | FK37: 0 | FL37: 0 | FM37: 2 | FN37: 2 | FO37: 0 | FP37: 0 | FQ37: 1 | FR37: 2 | FS37: 1 | FT37: 0 | FU37: 0 | FV37: 0 | FW37: 0 | FX37: 0 | FY37: 0 | FZ37: 0 | GA37: 0 | GB37: 0 | GC37: 0 | GD37: 0 | GE37: 0 | GF37: 0 | GG37: 0 | GH37: 0 | GI37: 0 | GJ37: 0 | GK37: 0 | GL37: 0 | GM37: 0 | GN37: 0 | GO37: 0 | GP37: 0 | GQ37: 0 | GR37: 0 | GS37: 0 | GT37: 0 | GU37: 0 | GV37: 0 | GW37: 0 | GX37: 0 | GY37: 0 | GZ37: 0 | HA37: 0 | HB37: 0 | HC37: 0 | HD37: 0 | HE37: 0 | HF37: 0 | HG37: 0
B38: Natacha THELIER-DELOISON | C38: =SUMPRODUCT(('Avantages perçus'!$A$2:$A$30000=B38)*('Avantages perçus'!$F$2:$F$30000)) -> 1605 | D38: =COUNTIFS('Avantages perçus'!$A$2:$A$30000,B38,'Avantages perçus'!$F$2:$F$30000,">0") -> 13 | E38: =COUNTIFS('Conventions signées'!$A$2:$A$15000,B38,'Conventions signées'!$A$2:$A$15000,"*") -> 5 | F38: 0 | G38: 0 | H38: 449 | I38: 0 | J38: 1156 | K38: 0 | L38: 0 | M38: 0 | N38: 4 | O38: 0 | P38: 1 | Q38: 0 | R38: 0 | S38: 0 | T38: 0 | U38: 0 | V38: 0 | W38: 0 | X38: 0 | Y38: 1156 | Z38: 60 | AA38: 0 | AB38: 60 | AC38: 0 | AD38: 0 | AE38: 0 | AF38: 0 | AG38: 35 | AH38: 0 | AI38: 0 | AJ38: 0 | AK38: 0 | AL38: 0 | AM38: 0 | AN38: 0 | AO38: 0 | AP38: 60 | AQ38: 0 | AR38: 0 | AS38: 78 | AT38: 118 | AU38: 0 | AV38: 38 | AW38: 0 | AX38: 0 | AY38: 0 | AZ38: 0 | BA38: 0 | BB38: 0 | BC38: 0 | BD38: 0 | BE38: 0 | BF38: 0 | BG38: 0 | BH38: 0 | BI38: 0 | BJ38: 0 | BK38: 0 | BL38: 0 | BM38: 0 | BN38: 0 | BO38: 0 | BP38: 0 | BQ38: 0 | BR38: 0 | BS38: 0 | BT38: 0 | BU38: 0 | BV38: 0 | BW38: 0 | BX38: 0 | BY38: 0 | BZ38: 0 | CA38: 0 | CB38: 0 | CC38: 0 | CD38: 0 | CE38: 0 | CF38: 0 | CG38: 0 | CH38: 0 | CI38: 0 | CJ38: 0 | CK38: 0 | CL38: 0 | CM38: 0 | CN38: 0 | CO38: 0 | CP38: 0 | CQ38: 0 | CR38: 0 | CS38: 2 | CT38: 1 | CU38: 1 | CV38: 1 | CW38: 0 | CX38: 0 | CY38: 0 | CZ38: 0 | DA38: 0 | DB38: 0 | DC38: 0 | DD38: 0 | DE38: 0 | DF38: 4 | DG38: 2 | DH38: 0 | DI38: 1 | DJ38: 0 | DK38: 1 | DL38: 0 | DM38: 0 | DN38: 0 | DO38: 0 | DP38: 0 | DQ38: 0 | DR38: 0 | DS38: 0 | DT38: 0 | DU38: 0 | DV38: 0 | DW38: 0 | DX38: 0 | DY38: 0 | DZ38: 0 | EA38: 0 | EB38: 0 | EC38: 0 | ED38: 0 | EE38: 0 | EF38: 0 | EG38: 0 | EH38: 0 | EI38: 0 | EJ38: 0 | EK38: 0 | EL38: 0 | EM38: 0 | EN38: 0 | EO38: 0 | EP38: 0 | EQ38: 0 | ER38: 0 | ES38: 0 | ET38: 0 | EU38: 0 | EV38: 0 | EW38: 0 | EX38: 0 | EY38: 0 | EZ38: 0 | FA38: 0 | FB38: 0 | FC38: 0 | FD38: 0 | FE38: 0 | FF38: 0 | FG38: 0 | FH38: 0 | FI38: 0 | FJ38: 0 | FK38: 0 | FL38: 0 | FM38: 2 | FN38: 0 | FO38: 1 | FP38: 1 | FQ38: 0 | FR38: 0 | FS38: 0 | FT38: 0 | FU38: 0 | FV38: 1 | FW38: 0 | FX38: 0 | FY38: 0 | FZ38: 0 | GA38: 0 | GB38: 0 | GC38: 0 | GD38: 0 | GE38: 0 | GF38: 0 | GG38: 0 | GH38: 0 | GI38: 0 | GJ38: 0 | GK38: 0 | GL38: 0 | GM38: 0 | GN38: 0 | GO38: 0 | GP38: 0 | GQ38: 0 | GR38: 0 | GS38: 0 | GT38: 0 | GU38: 0 | GV38: 0 | GW38: 0 | GX38: 0 | GY38: 0 | GZ38: 0 | HA38: 0 | HB38: 0 | HC38: 0 | HD38: 0 | HE38: 0 | HF38: 0 | HG38: 0
B39: Sandrine VEGNI | C39: =SUMPRODUCT(('Avantages perçus'!$A$2:$A$30000=B39)*('Avantages perçus'!$F$2:$F$30000)) -> 1307 | D39: =COUNTIFS('Avantages perçus'!$A$2:$A$30000,B39,'Avantages perçus'!$F$2:$F$30000,">0") -> 40 | E39: =COUNTIFS('Conventions signées'!$A$2:$A$15000,B39,'Conventions signées'!$A$2:$A$15000,"*") -> 6 | F39: 0 | G39: 0 | H39: 853 | I39: 195 | J39: 220 | K39: 0 | L39: 39 | M39: 0 | N39: 2 | O39: 0 | P39: 4 | Q39: 0 | R39: 0 | S39: 0 | T39: 0 | U39: 0 | V39: 0 | W39: 0 | X39: 0 | Y39: 184 | Z39: 43 | AA39: 160 | AB39: 95 | AC39: 134 | AD39: 0 | AE39: 78 | AF39: 0 | AG39: 0 | AH39: 0 | AI39: 0 | AJ39: 0 | AK39: 0 | AL39: 0 | AM39: 0 | AN39: 0 | AO39: 40 | AP39: 0 | AQ39: 33 | AR39: 0 | AS39: 220 | AT39: 0 | AU39: 0 | AV39: 0 | AW39: 0 | AX39: 0 | AY39: 0 | AZ39: 0 | BA39: 0 | BB39: 0 | BC39: 0 | BD39: 0 | BE39: 0 | BF39: 0 | BG39: 0 | BH39: 0 | BI39: 0 | BJ39: 0 | BK39: 0 | BL39: 54 | BM39: 23 | BN39: 0 | BO39: 0 | BP39: 39 | BQ39: 0 | BR39: 20 | BS39: 0 | BT39: 28 | BU39: 0 | BV39: 0 | BW39: 0 | BX39: 0 | BY39: 0 | BZ39: 0 | CA39: 0 | CB39: 0 | CC39: 40 | CD39: 0 | CE39: 0 | CF39: 0 | CG39: 0 | CH39: 0 | CI39: 0 | CJ39: 23 | CK39: 22 | CL39: 21 | CM39: 20 | CN39: 0 | CO39: 0 | CP39: 18 | CQ39: 0 | CR39: 12 | CS39: 6 | CT39: 3 | CU39: 0 | CV39: 2 | CW39: 4 | CX39: 3 | CY39: 2 | CZ39: 0 | DA39: 0 | DB39: 0 | DC39: 0 | DD39: 0 | DE39: 0 | DF39: 0 | DG39: 1 | DH39: 2 | DI39: 0 | DJ39: 0 | DK39: 0 | DL39: 0 | DM39: 0 | DN39: 0 | DO39: 0 | DP39: 0 | DQ39: 0 | DR39: 0 | DS39: 0 | DT39: 0 | DU39: 0 | DV39: 0 | DW39: 0 | DX39: 2 | DY39: 0 | DZ39: 0 | EA39: 0 | EB39: 2 | EC39: 0 | ED39: 1 | EE39: 2 | EF39: 0 | EG39: 1 | EH39: 0 | EI39: 1 | EJ39: 0 | EK39: 0 | EL39: 0 | EM39: 0 | EN39: 0 | EO39: 0 | EP39: 0 | EQ39: 0 | ER39: 0 | ES39: 2 | ET39: 0 | EU39: 0 | EV39: 0 | EW39: 0 | EX39: 0 | EY39: 0 | EZ39: 0 | FA39: 0 | FB39: 0 | FC39: 0 | FD39: 0 | FE39: 1 | FF39: 1 | FG39: 1 | FH39: 1 | FI39: 1 | FJ39: 1 | FK39: 0 | FL39: 0 | FM39: 0 | FN39: 2 | FO39: 0 | FP39: 0 | FQ39: 0 | FR39: 2 | FS39: 0 | FT39: 0 | FU39: 0 | FV39: 1 | FW39: 0 | FX39: 0 | FY39: 0 | FZ39: 0 | GA39: 0 | GB39: 0 | GC39: 0 | GD39: 0 | GE39: 0 | GF39: 0 | GG39: 0 | GH39: 0 | GI39: 0 | GJ39: 0 | GK39: 0 | GL39: 0 | GM39: 0 | GN39: 0 | GO39: 0 | GP39: 0 | GQ39: 0 | GR39: 0 | GS39: 0 | GT39: 0 | GU39: 0 | GV39: 0 | GW39: 0 | GX39: 0 | GY39: 0 | GZ39: 0 | HA39: 0 | HB39: 0 | HC39: 0 | HD39: 0 | HE39: 1 | HF39: 0 | HG39: 0
B40: Moktar GUEDRI | C40: =SUMPRODUCT(('Avantages perçus'!$A$2:$A$30000=B40)*('Avantages perçus'!$F$2:$F$30000)) -> 1265 | D40: =COUNTIFS('Avantages perçus'!$A$2:$A$30000,B40,'Avantages perçus'!$F$2:$F$30000,">0") -> 9 | E40: =COUNTIFS('Conventions signées'!$A$2:$A$15000,B40,'Conventions signées'!$A$2:$A$15000,"*") -> 5 | F40: 0 | G40: 0 | H40: 215 | I40: 540 | J40: 450 | K40: 0 | L40: 0 | M40: 60 | N40: 1 | O40: 0 | P40: 2 | Q40: 0 | R40: 0 | S40: 0 | T40: 0 | U40: 2 | V40: 0 | W40: 0 | X40: 0 | Y40: 0 | Z40: 0 | AA40: 0 | AB40: 0 | AC40: 70 | AD40: 540 | AE40: 0 | AF40: 0 | AG40: 50 | AH40: 0 | AI40: 0 | AJ40: 0 | AK40: 0 | AL40: 0 | AM40: 545 | AN40: 0 | AO40: 0 | AP40: 0 | AQ40: 0 | AR40: 0 | AS40: 0 | AT40: 0 | AU40: 60 | AV40: 0 | AW40: 0 | AX40: 0 | AY40: 0 | AZ40: 0 | BA40: 0 | BB40: 0 | BC40: 0 | BD40: 0 | BE40: 0 | BF40: 0 | BG40: 0 | BH40: 0 | BI40: 0 | BJ40: 0 | BK40: 0 | BL40: 0 | BM40: 0 | BN40: 0 | BO40: 0 | BP40: 0 | BQ40: 0 | BR40: 0 | BS40: 0 | BT40: 0 | BU40: 0 | BV40: 0 | BW40: 0 | BX40: 0 | BY40: 0 | BZ40: 0 | CA40: 0 | CB40: 0 | CC40: 0 | CD40: 0 | CE40: 0 | CF40: 0 | CG40: 0 | CH40: 0 | CI40: 0 | CJ40: 0 | CK40: 0 | CL40: 0 | CM40: 0 | CN40: 0 | CO40: 0 | CP40: 0 | CQ40: 0 | CR40: 0 | CS40: 0 | CT40: 0 | CU40: 1 | CV40: 0 | CW40: 2 | CX40: 0 | CY40: 0 | CZ40: 0 | DA40: 2 | DB40: 0 | DC40: 0 | DD40: 0 | DE40: 1 | DF40: 0 | DG40: 0 | DH40: 0 | DI40: 0 | DJ40: 0 | DK40: 0 | DL40: 0 | DM40: 0 | DN40: 0 | DO40: 0 | DP40: 3 | DQ40: 0 | DR40: 0 | DS40: 0 | DT40: 0 | DU40: 0 | DV40: 0 | DW40: 0 | DX40: 0 | DY40: 0 | DZ40: 0 | EA40: 0 | EB40: 0 | EC40: 0 | ED40: 0 | EE40: 0 | EF40: 0 | EG40: 0 | EH40: 0 | EI40: 0 | EJ40: 0 | EK40: 0 | EL40: 0 | EM40: 0 | EN40: 0 | EO40: 0 | EP40: 0 | EQ40: 0 | ER40: 0 | ES40: 0 | ET40: 0 | EU40: 0 | EV40: 0 | EW40: 0 | EX40: 0 | EY40: 0 | EZ40: 0 | FA40: 0 | FB40: 0 | FC40: 0 | FD40: 0 | FE40: 0 | FF40: 0 | FG40: 0 | FH40: 0 | FI40: 0 | FJ40: 0 | FK40: 0 | FL40: 0 | FM40: 0 | FN40: 1 | FO40: 0 | FP40: 0 | FQ40: 0 | FR40: 0 | FS40: 0 | FT40: 2 | FU40: 0 | FV40: 0 | FW40: 0 | FX40: 0 | FY40: 0 | FZ40: 0 | GA40: 0 | GB40: 0 | GC40: 1 | GD40: 0 | GE40: 0 | GF40: 0 | GG40: 0 | GH40: 1 | GI40: 0 | GJ40: 0 | GK40: 0 | GL40: 0 | GM40: 0 | GN40: 0 | GO40: 0 | GP40: 0 | GQ40: 0 | GR40: 0 | GS40: 0 | GT40: 0 | GU40: 0 | GV40: 0 | GW40: 0 | GX40: 0 | GY40: 0 | GZ40: 0 | HA40: 0 | HB40: 0 | HC40: 0 | HD40: 0 | HE40: 0 | HF40: 0 | HG40: 0
B41: Catherine STRAUS | C41: =SUMPRODUCT(('Avantages perçus'!$A$2:$A$30000=B41)*('Avantages perçus'!$F$2:$F$30000)) -> 1233 | D41: =COUNTIFS('Avantages perçus'!$A$2:$A$30000,B41,'Avantages perçus'!$F$2:$F$30000,">0") -> 27 | E41: =COUNTIFS('Conventions signées'!$A$2:$A$15000,B41,'Conventions signées'!$A$2:$A$15000,"*") -> 10 | F41: 0 | G41: 0 | H41: 719 | I41: 159 | J41: 290 | K41: 0 | L41: 0 | M41: 65 | N41: 8 | O41: 0 | P41: 1 | Q41: 0 | R41: 0 | S41: 1 | T41: 0 | U41: 0 | V41: 0 | W41: 0 | X41: 0 | Y41: 145 | Z41: 0 | AA41: 104 | AB41: 120 | AC41: 107 | AD41: 26 | AE41: 0 | AF41: 0 | AG41: 49 | AH41: 0 | AI41: 0 | AJ41: 388 | AK41: 0 | AL41: 0 | AM41: 0 | AN41: 0 | AO41: 0 | AP41: 0 | AQ41: 0 | AR41: 0 | AS41: 41 | AT41: 84 | AU41: 43 | AV41: 88 | AW41: 0 | AX41: 0 | AY41: 0 | AZ41: 0 | BA41: 0 | BB41: 0 | BC41: 0 | BD41: 0 | BE41: 0 | BF41: 0 | BG41: 0 | BH41: 0 | BI41: 0 | BJ41: 0 | BK41: 0 | BL41: 0 | BM41: 0 | BN41: 0 | BO41: 0 | BP41: 0 | BQ41: 0 | BR41: 0 | BS41: 0 | BT41: 22 | BU41: 0 | BV41: 0 | BW41: 0 | BX41: 0 | BY41: 0 | BZ41: 0 | CA41: 0 | CB41: 0 | CC41: 0 | CD41: 16 | CE41: 0 | CF41: 0 | CG41: 0 | CH41: 0 | CI41: 0 | CJ41: 0 | CK41: 0 | CL41: 0 | CM41: 0 | CN41: 0 | CO41: 0 | CP41: 0 | CQ41: 0 | CR41: 0 | CS41: 4 | CT41: 2 | CU41: 1 | CV41: 0 | CW41: 4 | CX41: 2 | CY41: 0 | CZ41: 0 | DA41: 2 | DB41: 0 | DC41: 3 | DD41: 0 | DE41: 1 | DF41: 2 | DG41: 2 | DH41: 0 | DI41: 0 | DJ41: 0 | DK41: 2 | DL41: 0 | DM41: 0 | DN41: 0 | DO41: 0 | DP41: 0 | DQ41: 0 | DR41: 0 | DS41: 0 | DT41: 0 | DU41: 0 | DV41: 0 | DW41: 0 | DX41: 0 | DY41: 0 | DZ41: 0 | EA41: 0 | EB41: 0 | EC41: 0 | ED41: 0 | EE41: 0 | EF41: 0 | EG41: 0 | EH41: 0 | EI41: 1 | EJ41: 0 | EK41: 0 | EL41: 0 | EM41: 0 | EN41: 0 | EO41: 0 | EP41: 1 | EQ41: 0 | ER41: 0 | ES41: 0 | ET41: 0 | EU41: 0 | EV41: 0 | EW41: 0 | EX41: 0 | EY41: 0 | EZ41: 0 | FA41: 0 | FB41: 0 | FC41: 0 | FD41: 0 | FE41: 0 | FF41: 0 | FG41: 0 | FH41: 0 | FI41: 0 | FJ41: 0 | FK41: 0 | FL41: 0 | FM41: 2 | FN41: 2 | FO41: 1 | FP41: 0 | FQ41: 0 | FR41: 1 | FS41: 0 | FT41: 0 | FU41: 0 | FV41: 3 | FW41: 0 | FX41: 0 | FY41: 0 | FZ41: 0 | GA41: 0 | GB41: 0 | GC41: 0 | GD41: 0 | GE41: 0 | GF41: 0 | GG41: 0 | GH41: 0 | GI41: 0 | GJ41: 0 | GK41: 0 | GL41: 0 | GM41: 0 | GN41: 0 | GO41: 0 | GP41: 0 | GQ41: 0 | GR41: 0 | GS41: 0 | GT41: 0 | GU41: 0 | GV41: 1 | GW41: 0 | GX41: 0 | GY41: 0 | GZ41: 0 | HA41: 0 | HB41: 0 | HC41: 0 | HD41: 0 | HE41: 0 | HF41: 0 | HG41: 0
B42: Benoît DE LA TOUR | C42: =SUMPRODUCT(('Avantages perçus'!$A$2:$A$30000=B42)*('Avantages perçus'!$F$2:$F$30000)) -> 1086 | D42: =COUNTIFS('Avantages perçus'!$A$2:$A$30000,B42,'Avantages perçus'!$F$2:$F$30000,">0") -> 30 | E42: =COUNTIFS('Conventions signées'!$A$2:$A$15000,B42,'Conventions signées'!$A$2:$A$15000,"*") -> 4 | F42: 0 | G42: 0 | H42: 986 | I42: 0 | J42: 0 | K42: 0 | L42: 0 | M42: 100 | N42: 3 | O42: 0 | P42: 0 | Q42: 0 | R42: 0 | S42: 0 | T42: 0 | U42: 1 | V42: 0 | W42: 0 | X42: 0 | Y42: 0 | Z42: 0 | AA42: 0 | AB42: 105 | AC42: 0 | AD42: 0 | AE42: 111 | AF42: 0 | AG42: 231 | AH42: 0 | AI42: 170 | AJ42: 49 | AK42: 0 | AL42: 0 | AM42: 0 | AN42: 82 | AO42: 0 | AP42: 0 | AQ42: 80 | AR42: 0 | AS42: 0 | AT42: 40 | AU42: 81 | AV42: 58 | AW42: 0 | AX42: 0 | AY42: 0 | AZ42: 0 | BA42: 0 | BB42: 0 | BC42: 0 | BD42: 0 | BE42: 0 | BF42: 0 | BG42: 0 | BH42: 0 | BI42: 19 | BJ42: 0 | BK42: 41 | BL42: 0 | BM42: 0 | BN42: 0 | BO42: 0 | BP42: 0 | BQ42: 0 | BR42: 19 | BS42: 0 | BT42: 0 | BU42: 0 | BV42: 0 | BW42: 0 | BX42: 0 | BY42: 0 | BZ42: 0 | CA42: 0 | CB42: 0 | CC42: 0 | CD42: 0 | CE42: 0 | CF42: 0 | CG42: 0 | CH42: 0 | CI42: 0 | CJ42: 0 | CK42: 0 | CL42: 0 | CM42: 0 | CN42: 0 | CO42: 0 | CP42: 0 | CQ42: 0 | CR42: 0 | CS42: 0 | CT42: 3 | CU42: 7 | CV42: 0 | CW42: 0 | CX42: 0 | CY42: 3 | CZ42: 4 | DA42: 3 | DB42: 2 | DC42: 1 | DD42: 0 | DE42: 0 | DF42: 1 | DG42: 0 | DH42: 2 | DI42: 0 | DJ42: 0 | DK42: 1 | DL42: 0 | DM42: 0 | DN42: 0 | DO42: 0 | DP42: 0 | DQ42: 1 | DR42: 0 | DS42: 0 | DT42: 0 | DU42: 0 | DV42: 0 | DW42: 0 | DX42: 0 | DY42: 0 | DZ42: 0 | EA42: 0 | EB42: 0 | EC42: 0 | ED42: 0 | EE42: 0 | EF42: 1 | EG42: 1 | EH42: 0 | EI42: 0 | EJ42: 0 | EK42: 0 | EL42: 0 | EM42: 0 | EN42: 0 | EO42: 0 | EP42: 0 | EQ42: 0 | ER42: 0 | ES42: 0 | ET42: 0 | EU42: 0 | EV42: 0 | EW42: 0 | EX42: 0 | EY42: 0 | EZ42: 0 | FA42: 0 | FB42: 0 | FC42: 0 | FD42: 0 | FE42: 0 | FF42: 0 | FG42: 0 | FH42: 0 | FI42: 0 | FJ42: 0 | FK42: 0 | FL42: 0 | FM42: 0 | FN42: 1 | FO42: 2 | FP42: 0 | FQ42: 0 | FR42: 0 | FS42: 0 | FT42: 0 | FU42: 0 | FV42: 0 | FW42: 1 | FX42: 0 | FY42: 0 | FZ42: 0 | GA42: 0 | GB42: 0 | GC42: 0 | GD42: 0 | GE42: 0 | GF42: 0 | GG42: 0 | GH42: 0 | GI42: 0 | GJ42: 0 | GK42: 0 | GL42: 0 | GM42: 0 | GN42: 0 | GO42: 0 | GP42: 0 | GQ42: 0 | GR42: 0 | GS42: 0 | GT42: 0 | GU42: 0 | GV42: 0 | GW42: 0 | GX42: 0 | GY42: 0 | GZ42: 0 | HA42: 0 | HB42: 0 | HC42: 0 | HD42: 0 | HE42: 0 | HF42: 0 | HG42: 0
B43: Eric CHOSSAT | C43: =SUMPRODUCT(('Avantages perçus'!$A$2:$A$30000=B43)*('Avantages perçus'!$F$2:$F$30000)) -> 1053 | D43: =COUNTIFS('Avantages perçus'!$A$2:$A$30000,B43,'Avantages perçus'!$F$2:$F$30000,">0") -> 17 | E43: =COUNTIFS('Conventions signées'!$A$2:$A$15000,B43,'Conventions signées'!$A$2:$A$15000,"*") -> 5 | F43: 0 | G43: 0 | H43: 564 | I43: 0 | J43: 450 | K43: 0 | L43: 0 | M43: 39 | N43: 2 | O43: 0 | P43: 1 | Q43: 0 | R43: 0 | S43: 0 | T43: 0 | U43: 0 | V43: 0 | W43: 0 | X43: 2 | Y43: 0 | Z43: 0 | AA43: 0 | AB43: 57 | AC43: 0 | AD43: 0 | AE43: 0 | AF43: 0 | AG43: 114 | AH43: 220 | AI43: 317 | AJ43: 88 | AK43: 0 | AL43: 0 | AM43: 0 | AN43: 0 | AO43: 0 | AP43: 0 | AQ43: 0 | AR43: 0 | AS43: 0 | AT43: 48 | AU43: 0 | AV43: 58 | AW43: 39 | AX43: 0 | AY43: 0 | AZ43: 0 | BA43: 0 | BB43: 71 | BC43: 0 | BD43: 0 | BE43: 0 | BF43: 0 | BG43: 0 | BH43: 0 | BI43: 0 | BJ43: 0 | BK43: 41 | BL43: 0 | BM43: 0 | BN43: 0 | BO43: 0 | BP43: 0 | BQ43: 0 | BR43: 0 | BS43: 0 | BT43: 0 | BU43: 0 | BV43: 0 | BW43: 0 | BX43: 0 | BY43: 0 | BZ43: 0 | CA43: 0 | CB43: 0 | CC43: 0 | CD43: 0 | CE43: 0 | CF43: 0 | CG43: 0 | CH43: 0 | CI43: 0 | CJ43: 0 | CK43: 0 | CL43: 0 | CM43: 0 | CN43: 0 | CO43: 0 | CP43: 0 | CQ43: 0 | CR43: 0 | CS43: 0 | CT43: 1 | CU43: 4 | CV43: 0 | CW43: 0 | CX43: 0 | CY43: 0 | CZ43: 3 | DA43: 0 | DB43: 0 | DC43: 2 | DD43: 1 | DE43: 0 | DF43: 1 | DG43: 0 | DH43: 0 | DI43: 0 | DJ43: 0 | DK43: 1 | DL43: 1 | DM43: 0 | DN43: 2 | DO43: 0 | DP43: 0 | DQ43: 0 | DR43: 0 | DS43: 0 | DT43: 0 | DU43: 0 | DV43: 0 | DW43: 0 | DX43: 0 | DY43: 0 | DZ43: 0 | EA43: 0 | EB43: 0 | EC43: 0 | ED43: 0 | EE43: 0 | EF43: 1 | EG43: 0 | EH43: 0 | EI43: 0 | EJ43: 0 | EK43: 0 | EL43: 0 | EM43: 0 | EN43: 0 | EO43: 0 | EP43: 0 | EQ43: 0 | ER43: 0 | ES43: 0 | ET43: 0 | EU43: 0 | EV43: 0 | EW43: 0 | EX43: 0 | EY43: 0 | EZ43: 0 | FA43: 0 | FB43: 0 | FC43: 0 | FD43: 0 | FE43: 0 | FF43: 0 | FG43: 0 | FH43: 0 | FI43: 0 | FJ43: 0 | FK43: 0 | FL43: 0 | FM43: 0 | FN43: 0 | FO43: 2 | FP43: 0 | FQ43: 0 | FR43: 0 | FS43: 0 | FT43: 0 | FU43: 0 | FV43: 0 | FW43: 1 | FX43: 0 | FY43: 0 | FZ43: 2 | GA43: 0 | GB43: 0 | GC43: 0 | GD43: 0 | GE43: 0 | GF43: 0 | GG43: 0 | GH43: 0 | GI43: 0 | GJ43: 0 | GK43: 0 | GL43: 0 | GM43: 0 | GN43: 0 | GO43: 0 | GP43: 0 | GQ43: 0 | GR43: 0 | GS43: 0 | GT43: 0 | GU43: 0 | GV43: 0 | GW43: 0 | GX43: 0 | GY43: 0 | GZ43: 0 | HA43: 0 | HB43: 0 | HC43: 0 | HD43: 0 | HE43: 0 | HF43: 0 | HG43: 0
B44: Jean-Philippe D'ORNANO | C44: =SUMPRODUCT(('Avantages perçus'!$A$2:$A$30000=B44)*('Avantages perçus'!$F$2:$F$30000)) -> 1035 | D44: =COUNTIFS('Avantages perçus'!$A$2:$A$30000,B44,'Avantages perçus'!$F$2:$F$30000,">0") -> 23 | E44: =COUNTIFS('Conventions signées'!$A$2:$A$15000,B44,'Conventions signées'!$A$2:$A$15000,"*") -> 10 | F44: 0 | G44: 0 | H44: 719 | I44: 121 | J44: 0 | K44: 0 | L44: 0 | M44: 195 | N44: 4 | O44: 0 | P44: 1 | Q44: 0 | R44: 0 | S44: 0 | T44: 4 | U44: 1 | V44: 0 | W44: 0 | X44: 0 | Y44: 58 | Z44: 0 | AA44: 0 | AB44: 172 | AC44: 39 | AD44: 0 | AE44: 0 | AF44: 0 | AG44: 139 | AH44: 0 | AI44: 166 | AJ44: 98 | AK44: 0 | AL44: 0 | AM44: 33 | AN44: 0 | AO44: 0 | AP44: 0 | AQ44: 0 | AR44: 0 | AS44: 0 | AT44: 48 | AU44: 80 | AV44: 58 | AW44: 0 | AX44: 0 | AY44: 0 | AZ44: 0 | BA44: 0 | BB44: 29 | BC44: 65 | BD44: 0 | BE44: 0 | BF44: 0 | BG44: 0 | BH44: 0 | BI44: 50 | BJ44: 0 | BK44: 0 | BL44: 0 | BM44: 0 | BN44: 0 | BO44: 0 | BP44: 0 | BQ44: 0 | BR44: 0 | BS44: 0 | BT44: 0 | BU44: 0 | BV44: 0 | BW44: 0 | BX44: 0 | BY44: 0 | BZ44: 0 | CA44: 0 | CB44: 0 | CC44: 0 | CD44: 0 | CE44: 0 | CF44: 0 | CG44: 0 | CH44: 0 | CI44: 0 | CJ44: 0 | CK44: 0 | CL44: 0 | CM44: 0 | CN44: 0 | CO44: 0 | CP44: 0 | CQ44: 0 | CR44: 0 | CS44: 1 | CT44: 3 | CU44: 3 | CV44: 0 | CW44: 1 | CX44: 0 | CY44: 0 | CZ44: 3 | DA44: 3 | DB44: 0 | DC44: 2 | DD44: 0 | DE44: 0 | DF44: 1 | DG44: 0 | DH44: 0 | DI44: 0 | DJ44: 0 | DK44: 1 | DL44: 0 | DM44: 0 | DN44: 1 | DO44: 0 | DP44: 1 | DQ44: 2 | DR44: 0 | DS44: 0 | DT44: 1 | DU44: 0 | DV44: 0 | DW44: 0 | DX44: 0 | DY44: 0 | DZ44: 0 | EA44: 0 | EB44: 0 | EC44: 0 | ED44: 0 | EE44: 0 | EF44: 0 | EG44: 0 | EH44: 0 | EI44: 0 | EJ44: 0 | EK44: 0 | EL44: 0 | EM44: 0 | EN44: 0 | EO44: 0 | EP44: 0 | EQ44: 0 | ER44: 0 | ES44: 0 | ET44: 0 | EU44: 0 | EV44: 0 | EW44: 0 | EX44: 0 | EY44: 0 | EZ44: 0 | FA44: 0 | FB44: 0 | FC44: 0 | FD44: 0 | FE44: 0 | FF44: 0 | FG44: 0 | FH44: 0 | FI44: 0 | FJ44: 0 | FK44: 0 | FL44: 0 | FM44: 0 | FN44: 2 | FO44: 2 | FP44: 0 | FQ44: 4 | FR44: 0 | FS44: 0 | FT44: 0 | FU44: 0 | FV44: 0 | FW44: 1 | FX44: 0 | FY44: 0 | FZ44: 0 | GA44: 0 | GB44: 0 | GC44: 0 | GD44: 0 | GE44: 0 | GF44: 1 | GG44: 0 | GH44: 0 | GI44: 0 | GJ44: 0 | GK44: 0 | GL44: 0 | GM44: 0 | GN44: 0 | GO44: 0 | GP44: 0 | GQ44: 0 | GR44: 0 | GS44: 0 | GT44: 0 | GU44: 0 | GV44: 0 | GW44: 0 | GX44: 0 | GY44: 0 | GZ44: 0 | HA44: 0 | HB44: 0 | HC44: 0 | HD44: 0 | HE44: 0 | HF44: 0 | HG44: 0
B45: Carole SALOMON | C45: =SUMPRODUCT(('Avantages perçus'!$A$2:$A$30000=B45)*('Avantages perçus'!$F$2:$F$30000)) -> 878 | D45: =COUNTIFS('Avantages perçus'!$A$2:$A$30000,B45,'Avantages perçus'!$F$2:$F$30000,">0") -> 5 | E45: =COUNTIFS('Conventions signées'!$A$2:$A$15000,B45,'Conventions signées'!$A$2:$A$15000,"*") -> 6 | F45: 0 | G45: 0 | H45: 138 | I45: 0 | J45: 740 | K45: 0 | L45: 0 | M45: 0 | N45: 2 | O45: 0 | P45: 3 | Q45: 0 | R45: 0 | S45: 0 | T45: 0 | U45: 1 | V45: 0 | W45: 0 | X45: 0 | Y45: 0 | Z45: 0 | AA45: 60 | AB45: 0 | AC45: 0 | AD45: 0 | AE45: 0 | AF45: 740 | AG45: 0 | AH45: 0 | AI45: 0 | AJ45: 0 | AK45: 0 | AL45: 0 | AM45: 0 | AN45: 0 | AO45: 0 | AP45: 60 | AQ45: 0 | AR45: 0 | AS45: 0 | AT45: 0 | AU45: 0 | AV45: 0 | AW45: 0 | AX45: 0 | AY45: 0 | AZ45: 0 | BA45: 0 | BB45: 0 | BC45: 0 | BD45: 0 | BE45: 0 | BF45: 0 | BG45: 0 | BH45: 0 | BI45: 0 | BJ45: 0 | BK45: 0 | BL45: 0 | BM45: 0 | BN45: 0 | BO45: 0 | BP45: 0 | BQ45: 0 | BR45: 0 | BS45: 0 | BT45: 0 | BU45: 0 | BV45: 0 | BW45: 0 | BX45: 0 | BY45: 0 | BZ45: 0 | CA45: 0 | CB45: 0 | CC45: 0 | CD45: 0 | CE45: 0 | CF45: 0 | CG45: 18 | CH45: 0 | CI45: 0 | CJ45: 0 | CK45: 0 | CL45: 0 | CM45: 0 | CN45: 0 | CO45: 0 | CP45: 0 | CQ45: 0 | CR45: 0 | CS45: 0 | CT45: 0 | CU45: 0 | CV45: 0 | CW45: 0 | CX45: 1 | CY45: 0 | CZ45: 0 | DA45: 0 | DB45: 0 | DC45: 0 | DD45: 0 | DE45: 0 | DF45: 0 | DG45: 0 | DH45: 0 | DI45: 1 | DJ45: 0 | DK45: 0 | DL45: 0 | DM45: 0 | DN45: 0 | DO45: 2 | DP45: 0 | DQ45: 0 | DR45: 0 | DS45: 0 | DT45: 0 | DU45: 0 | DV45: 0 | DW45: 0 | DX45: 0 | DY45: 0 | DZ45: 0 | EA45: 0 | EB45: 0 | EC45: 0 | ED45: 0 | EE45: 0 | EF45: 0 | EG45: 0 | EH45: 0 | EI45: 0 | EJ45: 0 | EK45: 0 | EL45: 0 | EM45: 0 | EN45: 0 | EO45: 1 | EP45: 0 | EQ45: 0 | ER45: 0 | ES45: 0 | ET45: 0 | EU45: 0 | EV45: 0 | EW45: 0 | EX45: 0 | EY45: 0 | EZ45: 0 | FA45: 0 | FB45: 0 | FC45: 0 | FD45: 0 | FE45: 0 | FF45: 0 | FG45: 0 | FH45: 0 | FI45: 0 | FJ45: 0 | FK45: 0 | FL45: 0 | FM45: 0 | FN45: 2 | FO45: 0 | FP45: 0 | FQ45: 0 | FR45: 1 | FS45: 0 | FT45: 2 | FU45: 0 | FV45: 0 | FW45: 0 | FX45: 0 | FY45: 0 | FZ45: 0 | GA45: 1 | GB45: 0 | GC45: 0 | GD45: 0 | GE45: 0 | GF45: 0 | GG45: 0 | GH45: 0 | GI45: 0 | GJ45: 0 | GK45: 0 | GL45: 0 | GM45: 0 | GN45: 0 | GO45: 0 | GP45: 0 | GQ45: 0 | GR45: 0 | GS45: 0 | GT45: 0 | GU45: 0 | GV45: 0 | GW45: 0 | GX45: 0 | GY45: 0 | GZ45: 0 | HA45: 0 | HB45: 0 | HC45: 0 | HD45: 0 | HE45: 0 | HF45: 0 | HG45: 0
B46: Christiane MOTHIRON | C46: =SUMPRODUCT(('Avantages perçus'!$A$2:$A$30000=B46)*('Avantages perçus'!$F$2:$F$30000)) -> 810 | D46: =COUNTIFS('Avantages perçus'!$A$2:$A$30000,B46,'Avantages perçus'!$F$2:$F$30000,">0") -> 9 | E46: =COUNTIFS('Conventions signées'!$A$2:$A$15000,B46,'Conventions signées'!$A$2:$A$15000,"*") -> 2 | F46: 0 | G46: 0 | H46: 306 | I46: 450 | J46: 0 | K46: 0 | L46: 0 | M46: 54 | N46: 1 | O46: 0 | P46: 1 | Q46: 0 | R46: 0 | S46: 0 | T46: 0 | U46: 0 | V46: 0 | W46: 0 | X46: 0 | Y46: 0 | Z46: 0 | AA46: 0 | AB46: 57 | AC46: 0 | AD46: 0 | AE46: 0 | AF46: 0 | AG46: 0 | AH46: 0 | AI46: 505 | AJ46: 98 | AK46: 0 | AL46: 0 | AM46: 0 | AN46: 48 | AO46: 0 | AP46: 0 | AQ46: 0 | AR46: 0 | AS46: 0 | AT46: 48 | AU46: 54 | AV46: 0 | AW46: 0 | AX46: 0 | AY46: 0 | AZ46: 0 | BA46: 0 | BB46: 0 | BC46: 0 | BD46: 0 | BE46: 0 | BF46: 0 | BG46: 0 | BH46: 0 | BI46: 0 | BJ46: 0 | BK46: 0 | BL46: 0 | BM46: 0 | BN46: 0 | BO46: 0 | BP46: 0 | BQ46: 0 | BR46: 0 | BS46: 0 | BT46: 0 | BU46: 0 | BV46: 0 | BW46: 0 | BX46: 0 | BY46: 0 | BZ46: 0 | CA46: 0 | CB46: 0 | CC46: 0 | CD46: 0 | CE46: 0 | CF46: 0 | CG46: 0 | CH46: 0 | CI46: 0 | CJ46: 0 | CK46: 0 | CL46: 0 | CM46: 0 | CN46: 0 | CO46: 0 | CP46: 0 | CQ46: 0 | CR46: 0 | CS46: 0 | CT46: 1 | CU46: 0 | CV46: 0 | CW46: 0 | CX46: 0 | CY46: 0 | CZ46: 2 | DA46: 2 | DB46: 1 | DC46: 2 | DD46: 0 | DE46: 0 | DF46: 1 | DG46: 0 | DH46: 0 | DI46: 0 | DJ46: 0 | DK46: 0 | DL46: 0 | DM46: 0 | DN46: 0 | DO46: 0 | DP46: 0 | DQ46: 0 | DR46: 0 | DS46: 0 | DT46: 0 | DU46: 0 | DV46: 0 | DW46: 0 | DX46: 0 | DY46: 0 | DZ46: 0 | EA46: 0 | EB46: 0 | EC46: 0 | ED46: 0 | EE46: 0 | EF46: 0 | EG46: 0 | EH46: 0 | EI46: 0 | EJ46: 0 | EK46: 0 | EL46: 0 | EM46: 0 | EN46: 0 | EO46: 0 | EP46: 0 | EQ46: 0 | ER46: 0 | ES46: 0 | ET46: 0 | EU46: 0 | EV46: 0 | EW46: 0 | EX46: 0 | EY46: 0 | EZ46: 0 | FA46: 0 | FB46: 0 | FC46: 0 | FD46: 0 | FE46: 0 | FF46: 0 | FG46: 0 | FH46: 0 | FI46: 0 | FJ46: 0 | FK46: 0 | FL46: 0 | FM46: 0 | FN46: 0 | FO46: 0 | FP46: 0 | FQ46: 0 | FR46: 0 | FS46: 0 | FT46: 0 | FU46: 0 | FV46: 0 | FW46: 1 | FX46: 0 | FY46: 1 | FZ46: 0 | GA46: 0 | GB46: 0 | GC46: 0 | GD46: 0 | GE46: 0 | GF46: 0 | GG46: 0 | GH46: 0 | GI46: 0 | GJ46: 0 | GK46: 0 | GL46: 0 | GM46: 0 | GN46: 0 | GO46: 0 | GP46: 0 | GQ46: 0 | GR46: 0 | GS46: 0 | GT46: 0 | GU46: 0 | GV46: 0 | GW46: 0 | GX46: 0 | GY46: 0 | GZ46: 0 | HA46: 0 | HB46: 0 | HC46: 0 | HD46: 0 | HE46: 0 | HF46: 0 | HG46: 0
B47: Paul-Louis BOISSAU | C47: =SUMPRODUCT(('Avantages perçus'!$A$2:$A$30000=B47)*('Avantages perçus'!$F$2:$F$30000)) -> 766 | D47: =COUNTIFS('Avantages perçus'!$A$2:$A$30000,B47,'Avantages perçus'!$F$2:$F$30000,">0") -> 10 | E47: =COUNTIFS('Conventions signées'!$A$2:$A$15000,B47,'Conventions signées'!$A$2:$A$15000,"*") -> 6 | F47: 0 | G47: 0 | H47: 208 | I47: 450 | J47: 0 | K47: 0 | L47: 0 | M47: 108 | N47: 3 | O47: 0 | P47: 1 | Q47: 0 | R47: 0 | S47: 0 | T47: 1 | U47: 1 | V47: 0 | W47: 0 | X47: 0 | Y47: 0 | Z47: 0 | AA47: 0 | AB47: 60 | AC47: 60 | AD47: 488 | AE47: 0 | AF47: 0 | AG47: 0 | AH47: 0 | AI47: 0 | AJ47: 0 | AK47: 0 | AL47: 0 | AM47: 0 | AN47: 0 | AO47: 0 | AP47: 0 | AQ47: 0 | AR47: 0 | AS47: 0 | AT47: 0 | AU47: 89 | AV47: 0 | AW47: 50 | AX47: 0 | AY47: 0 | AZ47: 0 | BA47: 0 | BB47: 0 | BC47: 0 | BD47: 0 | BE47: 0 | BF47: 0 | BG47: 0 | BH47: 0 | BI47: 19 | BJ47: 0 | BK47: 0 | BL47: 0 | BM47: 0 | BN47: 0 | BO47: 0 | BP47: 0 | BQ47: 0 | BR47: 0 | BS47: 0 | BT47: 0 | BU47: 0 | BV47: 0 | BW47: 0 | BX47: 0 | BY47: 0 | BZ47: 0 | CA47: 0 | CB47: 0 | CC47: 0 | CD47: 0 | CE47: 0 | CF47: 0 | CG47: 0 | CH47: 0 | CI47: 0 | CJ47: 0 | CK47: 0 | CL47: 0 | CM47: 0 | CN47: 0 | CO47: 0 | CP47: 0 | CQ47: 0 | CR47: 0 | CS47: 0 | CT47: 1 | CU47: 0 | CV47: 0 | CW47: 1 | CX47: 0 | CY47: 0 | CZ47: 0 | DA47: 3 | DB47: 0 | DC47: 0 | DD47: 0 | DE47: 3 | DF47: 0 | DG47: 0 | DH47: 0 | DI47: 0 | DJ47: 0 | DK47: 0 | DL47: 1 | DM47: 0 | DN47: 0 | DO47: 0 | DP47: 0 | DQ47: 1 | DR47: 0 | DS47: 0 | DT47: 0 | DU47: 0 | DV47: 0 | DW47: 0 | DX47: 0 | DY47: 0 | DZ47: 0 | EA47: 0 | EB47: 0 | EC47: 0 | ED47: 0 | EE47: 0 | EF47: 0 | EG47: 0 | EH47: 0 | EI47: 0 | EJ47: 0 | EK47: 0 | EL47: 0 | EM47: 0 | EN47: 0 | EO47: 0 | EP47: 0 | EQ47: 0 | ER47: 0 | ES47: 0 | ET47: 0 | EU47: 0 | EV47: 0 | EW47: 0 | EX47: 0 | EY47: 0 | EZ47: 0 | FA47: 0 | FB47: 0 | FC47: 0 | FD47: 0 | FE47: 0 | FF47: 0 | FG47: 0 | FH47: 0 | FI47: 0 | FJ47: 0 | FK47: 0 | FL47: 0 | FM47: 0 | FN47: 2 | FO47: 0 | FP47: 0 | FQ47: 1 | FR47: 0 | FS47: 0 | FT47: 2 | FU47: 1 | FV47: 0 | FW47: 0 | FX47: 0 | FY47: 0 | FZ47: 0 | GA47: 0 | GB47: 0 | GC47: 0 | GD47: 0 | GE47: 0 | GF47: 0 | GG47: 0 | GH47: 0 | GI47: 0 | GJ47: 0 | GK47: 0 | GL47: 0 | GM47: 0 | GN47: 0 | GO47: 0 | GP47: 0 | GQ47: 0 | GR47: 0 | GS47: 0 | GT47: 0 | GU47: 0 | GV47: 0 | GW47: 0 | GX47: 0 | GY47: 0 | GZ47: 0 | HA47: 0 | HB47: 0 | HC47: 0 | HD47: 0 | HE47: 0 | HF47: 0 | HG47: 0
B48: Lionel ARICHE | C48: =SUMPRODUCT(('Avantages perçus'!$A$2:$A$30000=B48)*('Avantages perçus'!$F$2:$F$30000)) -> 737 | D48: =COUNTIFS('Avantages perçus'!$A$2:$A$30000,B48,'Avantages perçus'!$F$2:$F$30000,">0") -> 9 | E48: =COUNTIFS('Conventions signées'!$A$2:$A$15000,B48,'Conventions signées'!$A$2:$A$15000,"*") -> 7 | F48: 0 | G48: 0 | H48: 116 | I48: 50 | J48: 500 | K48: 0 | L48: 0 | M48: 71 | N48: 2 | O48: 1 | P48: 2 | Q48: 1 | R48: 0 | S48: 0 | T48: 0 | U48: 1 | V48: 0 | W48: 0 | X48: 0 | Y48: 50 | Z48: 0 | AA48: 0 | AB48: 0 | AC48: 0 | AD48: 0 | AE48: 13 | AF48: 0 | AG48: 0 | AH48: 0 | AI48: 450 | AJ48: 0 | AK48: 0 | AL48: 0 | AM48: 84 | AN48: 0 | AO48: 0 | AP48: 0 | AQ48: 0 | AR48: 0 | AS48: 45 | AT48: 0 | AU48: 58 | AV48: 0 | AW48: 0 | AX48: 0 | AY48: 0 | AZ48: 0 | BA48: 0 | BB48: 0 | BC48: 0 | BD48: 0 | BE48: 0 | BF48: 0 | BG48: 0 | BH48: 0 | BI48: 0 | BJ48: 0 | BK48: 0 | BL48: 0 | BM48: 0 | BN48: 0 | BO48: 0 | BP48: 0 | BQ48: 0 | BR48: 0 | BS48: 0 | BT48: 0 | BU48: 0 | BV48: 0 | BW48: 0 | BX48: 0 | BY48: 0 | BZ48: 0 | CA48: 0 | CB48: 0 | CC48: 0 | CD48: 0 | CE48: 37 | CF48: 0 | CG48: 0 | CH48: 0 | CI48: 0 | CJ48: 0 | CK48: 0 | CL48: 0 | CM48: 0 | CN48: 0 | CO48: 0 | CP48: 0 | CQ48: 0 | CR48: 0 | CS48: 1 | CT48: 0 | CU48: 0 | CV48: 0 | CW48: 0 | CX48: 0 | CY48: 1 | CZ48: 1 | DA48: 2 | DB48: 0 | DC48: 0 | DD48: 0 | DE48: 0 | DF48: 0 | DG48: 1 | DH48: 0 | DI48: 0 | DJ48: 0 | DK48: 0 | DL48: 0 | DM48: 0 | DN48: 0 | DO48: 0 | DP48: 2 | DQ48: 0 | DR48: 0 | DS48: 0 | DT48: 0 | DU48: 0 | DV48: 0 | DW48: 0 | DX48: 0 | DY48: 0 | DZ48: 0 | EA48: 0 | EB48: 0 | EC48: 0 | ED48: 0 | EE48: 0 | EF48: 0 | EG48: 0 | EH48: 0 | EI48: 0 | EJ48: 0 | EK48: 0 | EL48: 0 | EM48: 0 | EN48: 0 | EO48: 0 | EP48: 0 | EQ48: 0 | ER48: 0 | ES48: 0 | ET48: 0 | EU48: 0 | EV48: 0 | EW48: 0 | EX48: 0 | EY48: 0 | EZ48: 0 | FA48: 0 | FB48: 0 | FC48: 0 | FD48: 1 | FE48: 0 | FF48: 0 | FG48: 0 | FH48: 0 | FI48: 0 | FJ48: 0 | FK48: 0 | FL48: 0 | FM48: 1 | FN48: 1 | FO48: 0 | FP48: 0 | FQ48: 0 | FR48: 0 | FS48: 0 | FT48: 1 | FU48: 1 | FV48: 0 | FW48: 1 | FX48: 0 | FY48: 0 | FZ48: 0 | GA48: 0 | GB48: 0 | GC48: 1 | GD48: 0 | GE48: 0 | GF48: 0 | GG48: 0 | GH48: 0 | GI48: 0 | GJ48: 0 | GK48: 0 | GL48: 0 | GM48: 0 | GN48: 0 | GO48: 0 | GP48: 0 | GQ48: 0 | GR48: 0 | GS48: 0 | GT48: 0 | GU48: 0 | GV48: 0 | GW48: 0 | GX48: 0 | GY48: 0 | GZ48: 0 | HA48: 0 | HB48: 1 | HC48: 0 | HD48: 0 | HE48: 0 | HF48: 0 | HG48: 0
B49: Nathalie SOMOGYI-DEMERJIAN | C49: =SUMPRODUCT(('Avantages perçus'!$A$2:$A$30000=B49)*('Avantages perçus'!$F$2:$F$30000)) -> 685 | D49: =COUNTIFS('Avantages perçus'!$A$2:$A$30000,B49,'Avantages perçus'!$F$2:$F$30000,">0") -> 7 | E49: =COUNTIFS('Conventions signées'!$A$2:$A$15000,B49,'Conventions signées'!$A$2:$A$15000,"*") -> 8 | F49: 0 | G49: 0 | H49: 115 | I49: 0 | J49: 450 | K49: 0 | L49: 0 | M49: 120 | N49: 2 | O49: 0 | P49: 0 | Q49: 0 | R49: 0 | S49: 0 | T49: 6 | U49: 0 | V49: 0 | W49: 0 | X49: 0 | Y49: 0 | Z49: 78 | AA49: 0 | AB49: 0 | AC49: 0 | AD49: 0 | AE49: 0 | AF49: 0 | AG49: 37 | AH49: 0 | AI49: 0 | AJ49: 0 | AK49: 0 | AL49: 0 | AM49: 0 | AN49: 0 | AO49: 0 | AP49: 0 | AQ49: 0 | AR49: 0 | AS49: 0 | AT49: 0 | AU49: 55 | AV49: 0 | AW49: 0 | AX49: 0 | AY49: 0 | AZ49: 450 | BA49: 0 | BB49: 0 | BC49: 65 | BD49: 0 | BE49: 0 | BF49: 0 | BG49: 0 | BH49: 0 | BI49: 0 | BJ49: 0 | BK49: 0 | BL49: 0 | BM49: 0 | BN49: 0 | BO49: 0 | BP49: 0 | BQ49: 0 | BR49: 0 | BS49: 0 | BT49: 0 | BU49: 0 | BV49: 0 | BW49: 0 | BX49: 0 | BY49: 0 | BZ49: 0 | CA49: 0 | CB49: 0 | CC49: 0 | CD49: 0 | CE49: 0 | CF49: 0 | CG49: 0 | CH49: 0 | CI49: 0 | CJ49: 0 | CK49: 0 | CL49: 0 | CM49: 0 | CN49: 0 | CO49: 0 | CP49: 0 | CQ49: 0 | CR49: 0 | CS49: 0 | CT49: 0 | CU49: 1 | CV49: 2 | CW49: 0 | CX49: 0 | CY49: 0 | CZ49: 0 | DA49: 2 | DB49: 0 | DC49: 0 | DD49: 0 | DE49: 0 | DF49: 0 | DG49: 0 | DH49: 0 | DI49: 0 | DJ49: 0 | DK49: 0 | DL49: 0 | DM49: 0 | DN49: 0 | DO49: 0 | DP49: 0 | DQ49: 0 | DR49: 0 | DS49: 0 | DT49: 1 | DU49: 0 | DV49: 0 | DW49: 0 | DX49: 0 | DY49: 0 | DZ49: 0 | EA49: 0 | EB49: 0 | EC49: 0 | ED49: 0 | EE49: 0 | EF49: 0 | EG49: 0 | EH49: 0 | EI49: 0 | EJ49: 0 | EK49: 0 | EL49: 0 | EM49: 0 | EN49: 0 | EO49: 0 | EP49: 0 | EQ49: 0 | ER49: 1 | ES49: 0 | ET49: 0 | EU49: 0 | EV49: 0 | EW49: 0 | EX49: 0 | EY49: 0 | EZ49: 0 | FA49: 0 | FB49: 0 | FC49: 0 | FD49: 0 | FE49: 0 | FF49: 0 | FG49: 0 | FH49: 0 | FI49: 0 | FJ49: 0 | FK49: 0 | FL49: 0 | FM49: 0 | FN49: 2 | FO49: 0 | FP49: 0 | FQ49: 6 | FR49: 0 | FS49: 0 | FT49: 0 | FU49: 0 | FV49: 0 | FW49: 0 | FX49: 0 | FY49: 0 | FZ49: 0 | GA49: 0 | GB49: 0 | GC49: 0 | GD49: 0 | GE49: 0 | GF49: 0 | GG49: 0 | GH49: 0 | GI49: 0 | GJ49: 0 | GK49: 0 | GL49: 0 | GM49: 0 | GN49: 0 | GO49: 0 | GP49: 0 | GQ49: 0 | GR49: 0 | GS49: 0 | GT49: 0 | GU49: 0 | GV49: 0 | GW49: 0 | GX49: 0 | GY49: 0 | GZ49: 0 | HA49: 0 | HB49: 0 | HC49: 0 | HD49: 0 | HE49: 0 | HF49: 0 | HG49: 0
B50: Dominique COLAITIS | C50: =SUMPRODUCT(('Avantages perçus'!$A$2:$A$30000=B50)*('Avantages perçus'!$F$2:$F$30000)) -> 605 | D50: =COUNTIFS('Avantages perçus'!$A$2:$A$30000,B50,'Avantages perçus'!$F$2:$F$30000,">0") -> 8 | E50: =COUNTIFS('Conventions signées'!$A$2:$A$15000,B50,'Conventions signées'!$A$2:$A$15000,"*") -> 4 | F50: 0 | G50: 0 | H50: 226 | I50: 0 | J50: 310 | K50: 0 | L50: 0 | M50: 69 | N50: 3 | O50: 0 | P50: 1 | Q50: 0 | R50: 0 | S50: 0 | T50: 0 | U50: 0 | V50: 0 | W50: 0 | X50: 0 | Y50: 0 | Z50: 0 | AA50: 0 | AB50: 113 | AC50: 48 | AD50: 0 | AE50: 0 | AF50: 0 | AG50: 0 | AH50: 0 | AI50: 290 | AJ50: 39 | AK50: 0 | AL50: 0 | AM50: 0 | AN50: 0 | AO50: 0 | AP50: 0 | AQ50: 0 | AR50: 0 | AS50: 0 | AT50: 0 | AU50: 30 | AV50: 0 | AW50: 0 | AX50: 0 | AY50: 0 | AZ50: 0 | BA50: 85 | BB50: 0 | BC50: 0 | BD50: 0 | BE50: 0 | BF50: 0 | BG50: 0 | BH50: 0 | BI50: 0 | BJ50: 0 | BK50: 0 | BL50: 0 | BM50: 0 | BN50: 0 | BO50: 0 | BP50: 0 | BQ50: 0 | BR50: 0 | BS50: 0 | BT50: 0 | BU50: 0 | BV50: 0 | BW50: 0 | BX50: 0 | BY50: 0 | BZ50: 0 | CA50: 0 | CB50: 0 | CC50: 0 | CD50: 0 | CE50: 0 | CF50: 0 | CG50: 0 | CH50: 0 | CI50: 0 | CJ50: 0 | CK50: 0 | CL50: 0 | CM50: 0 | CN50: 0 | CO50: 0 | CP50: 0 | CQ50: 0 | CR50: 0 | CS50: 0 | CT50: 2 | CU50: 0 | CV50: 0 | CW50: 1 | CX50: 0 | CY50: 0 | CZ50: 1 | DA50: 1 | DB50: 0 | DC50: 1 | DD50: 0 | DE50: 0 | DF50: 0 | DG50: 0 | DH50: 0 | DI50: 0 | DJ50: 0 | DK50: 0 | DL50: 0 | DM50: 0 | DN50: 0 | DO50: 0 | DP50: 0 | DQ50: 0 | DR50: 0 | DS50: 0 | DT50: 0 | DU50: 2 | DV50: 0 | DW50: 0 | DX50: 0 | DY50: 0 | DZ50: 0 | EA50: 0 | EB50: 0 | EC50: 0 | ED50: 0 | EE50: 0 | EF50: 0 | EG50: 0 | EH50: 0 | EI50: 0 | EJ50: 0 | EK50: 0 | EL50: 0 | EM50: 0 | EN50: 0 | EO50: 0 | EP50: 0 | EQ50: 0 | ER50: 0 | ES50: 0 | ET50: 0 | EU50: 0 | EV50: 0 | EW50: 0 | EX50: 0 | EY50: 0 | EZ50: 0 | FA50: 0 | FB50: 0 | FC50: 0 | FD50: 0 | FE50: 0 | FF50: 0 | FG50: 0 | FH50: 0 | FI50: 0 | FJ50: 0 | FK50: 0 | FL50: 0 | FM50: 0 | FN50: 3 | FO50: 0 | FP50: 0 | FQ50: 0 | FR50: 0 | FS50: 0 | FT50: 0 | FU50: 0 | FV50: 0 | FW50: 1 | FX50: 0 | FY50: 0 | FZ50: 0 | GA50: 0 | GB50: 0 | GC50: 0 | GD50: 0 | GE50: 0 | GF50: 0 | GG50: 0 | GH50: 0 | GI50: 0 | GJ50: 0 | GK50: 0 | GL50: 0 | GM50: 0 | GN50: 0 | GO50: 0 | GP50: 0 | GQ50: 0 | GR50: 0 | GS50: 0 | GT50: 0 | GU50: 0 | GV50: 0 | GW50: 0 | GX50: 0 | GY50: 0 | GZ50: 0 | HA50: 0 | HB50: 0 | HC50: 0 | HD50: 0 | HE50: 0 | HF50: 0 | HG50: 0
B51: Jean-Yves PERIER | C51: =SUMPRODUCT(('Avantages perçus'!$A$2:$A$30000=B51)*('Avantages perçus'!$F$2:$F$30000)) -> 604 | D51: =COUNTIFS('Avantages perçus'!$A$2:$A$30000,B51,'Avantages perçus'!$F$2:$F$30000,">0") -> 13 | E51: =COUNTIFS('Conventions signées'!$A$2:$A$15000,B51,'Conventions signées'!$A$2:$A$15000,"*") -> 9 | F51: 0 | G51: 0 | H51: 568 | I51: 36 | J51: 0 | K51: 0 | L51: 0 | M51: 0 | N51: 7 | O51: 0 | P51: 1 | Q51: 0 | R51: 0 | S51: 0 | T51: 0 | U51: 1 | V51: 0 | W51: 0 | X51: 0 | Y51: 55 | Z51: 0 | AA51: 104 | AB51: 170 | AC51: 86 | AD51: 0 | AE51: 0 | AF51: 0 | AG51: 0 | AH51: 0 | AI51: 58 | AJ51: 49 | AK51: 0 | AL51: 0 | AM51: 0 | AN51: 0 | AO51: 0 | AP51: 0 | AQ51: 0 | AR51: 0 | AS51: 24 | AT51: 0 | AU51: 0 | AV51: 58 | AW51: 0 | AX51: 0 | AY51: 0 | AZ51: 0 | BA51: 0 | BB51: 0 | BC51: 0 | BD51: 0 | BE51: 0 | BF51: 0 | BG51: 0 | BH51: 0 | BI51: 0 | BJ51: 0 | BK51: 0 | BL51: 0 | BM51: 0 | BN51: 0 | BO51: 0 | BP51: 0 | BQ51: 0 | BR51: 0 | BS51: 0 | BT51: 0 | BU51: 0 | BV51: 0 | BW51: 0 | BX51: 0 | BY51: 0 | BZ51: 0 | CA51: 0 | CB51: 0 | CC51: 0 | CD51: 0 | CE51: 0 | CF51: 0 | CG51: 0 | CH51: 0 | CI51: 0 | CJ51: 0 | CK51: 0 | CL51: 0 | CM51: 0 | CN51: 0 | CO51: 0 | CP51: 0 | CQ51: 0 | CR51: 0 | CS51: 2 | CT51: 3 | CU51: 0 | CV51: 0 | CW51: 2 | CX51: 2 | CY51: 0 | CZ51: 1 | DA51: 0 | DB51: 0 | DC51: 1 | DD51: 0 | DE51: 0 | DF51: 0 | DG51: 1 | DH51: 0 | DI51: 0 | DJ51: 0 | DK51: 1 | DL51: 0 | DM51: 0 | DN51: 0 | DO51: 0 | DP51: 0 | DQ51: 0 | DR51: 0 | DS51: 0 | DT51: 0 | DU51: 0 | DV51: 0 | DW51: 0 | DX51: 0 | DY51: 0 | DZ51: 0 | EA51: 0 | EB51: 0 | EC51: 0 | ED51: 0 | EE51: 0 | EF51: 0 | EG51: 0 | EH51: 0 | EI51: 0 | EJ51: 0 | EK51: 0 | EL51: 0 | EM51: 0 | EN51: 0 | EO51: 0 | EP51: 0 | EQ51: 0 | ER51: 0 | ES51: 0 | ET51: 0 | EU51: 0 | EV51: 0 | EW51: 0 | EX51: 0 | EY51: 0 | EZ51: 0 | FA51: 0 | FB51: 0 | FC51: 0 | FD51: 0 | FE51: 0 | FF51: 0 | FG51: 0 | FH51: 0 | FI51: 0 | FJ51: 0 | FK51: 0 | FL51: 0 | FM51: 2 | FN51: 4 | FO51: 0 | FP51: 0 | FQ51: 0 | FR51: 1 | FS51: 0 | FT51: 0 | FU51: 0 | FV51: 1 | FW51: 1 | FX51: 0 | FY51: 0 | FZ51: 0 | GA51: 0 | GB51: 0 | GC51: 0 | GD51: 0 | GE51: 0 | GF51: 0 | GG51: 0 | GH51: 0 | GI51: 0 | GJ51: 0 | GK51: 0 | GL51: 0 | GM51: 0 | GN51: 0 | GO51: 0 | GP51: 0 | GQ51: 0 | GR51: 0 | GS51: 0 | GT51: 0 | GU51: 0 | GV51: 0 | GW51: 0 | GX51: 0 | GY51: 0 | GZ51: 0 | HA51: 0 | HB51: 0 | HC51: 0 | HD51: 0 | HE51: 0 | HF51: 0 | HG51: 0
B52: Yves POLACK | C52: =SUMPRODUCT(('Avantages perçus'!$A$2:$A$30000=B52)*('Avantages perçus'!$F$2:$F$30000)) -> 602 | D52: =COUNTIFS('Avantages perçus'!$A$2:$A$30000,B52,'Avantages perçus'!$F$2:$F$30000,">0") -> 5 | E52: =COUNTIFS('Conventions signées'!$A$2:$A$15000,B52,'Conventions signées'!$A$2:$A$15000,"*") -> 3 | F52: 0 | G52: 0 | H52: 152 | I52: 0 | J52: 450 | K52: 0 | L52: 0 | M52: 0 | N52: 1 | O52: 0 | P52: 2 | Q52: 0 | R52: 0 | S52: 0 | T52: 0 | U52: 0 | V52: 0 | W52: 0 | X52: 0 | Y52: 0 | Z52: 0 | AA52: 60 | AB52: 0 | AC52: 0 | AD52: 0 | AE52: 0 | AF52: 0 | AG52: 0 | AH52: 0 | AI52: 0 | AJ52: 0 | AK52: 0 | AL52: 0 | AM52: 450 | AN52: 0 | AO52: 0 | AP52: 23 | AQ52: 0 | AR52: 0 | AS52: 0 | AT52: 0 | AU52: 0 | AV52: 0 | AW52: 50 | AX52: 0 | AY52: 0 | AZ52: 0 | BA52: 0 | BB52: 0 | BC52: 0 | BD52: 0 | BE52: 0 | BF52: 0 | BG52: 0 | BH52: 0 | BI52: 0 | BJ52: 0 | BK52: 0 | BL52: 0 | BM52: 0 | BN52: 0 | BO52: 0 | BP52: 0 | BQ52: 0 | BR52: 19 | BS52: 0 | BT52: 0 | BU52: 0 | BV52: 0 | BW52: 0 | BX52: 0 | BY52: 0 | BZ52: 0 | CA52: 0 | CB52: 0 | CC52: 0 | CD52: 0 | CE52: 0 | CF52: 0 | CG52: 0 | CH52: 0 | CI52: 0 | CJ52: 0 | CK52: 0 | CL52: 0 | CM52: 0 | CN52: 0 | CO52: 0 | CP52: 0 | CQ52: 0 | CR52: 0 | CS52: 0 | CT52: 0 | CU52: 0 | CV52: 0 | CW52: 0 | CX52: 1 | CY52: 0 | CZ52: 0 | DA52: 0 | DB52: 0 | DC52: 0 | DD52: 0 | DE52: 0 | DF52: 0 | DG52: 0 | DH52: 0 | DI52: 1 | DJ52: 0 | DK52: 0 | DL52: 1 | DM52: 0 | DN52: 0 | DO52: 0 | DP52: 1 | DQ52: 0 | DR52: 0 | DS52: 0 | DT52: 0 | DU52: 0 | DV52: 0 | DW52: 0 | DX52: 0 | DY52: 0 | DZ52: 0 | EA52: 0 | EB52: 0 | EC52: 0 | ED52: 0 | EE52: 0 | EF52: 0 | EG52: 1 | EH52: 0 | EI52: 0 | EJ52: 0 | EK52: 0 | EL52: 0 | EM52: 0 | EN52: 0 | EO52: 0 | EP52: 0 | EQ52: 0 | ER52: 0 | ES52: 0 | ET52: 0 | EU52: 0 | EV52: 0 | EW52: 0 | EX52: 0 | EY52: 0 | EZ52: 0 | FA52: 0 | FB52: 0 | FC52: 0 | FD52: 0 | FE52: 0 | FF52: 0 | FG52: 0 | FH52: 0 | FI52: 0 | FJ52: 0 | FK52: 0 | FL52: 0 | FM52: 0 | FN52: 1 | FO52: 0 | FP52: 0 | FQ52: 0 | FR52: 1 | FS52: 0 | FT52: 0 | FU52: 0 | FV52: 0 | FW52: 0 | FX52: 0 | FY52: 0 | FZ52: 0 | GA52: 0 | GB52: 0 | GC52: 1 | GD52: 0 | GE52: 0 | GF52: 0 | GG52: 0 | GH52: 0 | GI52: 0 | GJ52: 0 | GK52: 0 | GL52: 0 | GM52: 0 | GN52: 0 | GO52: 0 | GP52: 0 | GQ52: 0 | GR52: 0 | GS52: 0 | GT52: 0 | GU52: 0 | GV52: 0 | GW52: 0 | GX52: 0 | GY52: 0 | GZ52: 0 | HA52: 0 | HB52: 0 | HC52: 0 | HD52: 0 | HE52: 0 | HF52: 0 | HG52: 0
B53: Patrick BERAUD | C53: =SUMPRODUCT(('Avantages perçus'!$A$2:$A$30000=B53)*('Avantages perçus'!$F$2:$F$30000)) -> 592 | D53: =COUNTIFS('Avantages perçus'!$A$2:$A$30000,B53,'Avantages perçus'!$F$2:$F$30000,">0") -> 3 | E53: =COUNTIFS('Conventions signées'!$A$2:$A$15000,B53,'Conventions signées'!$A$2:$A$15000,"*") -> 1 | F53: 0 | G53: 0 | H53: 92 | I53: 0 | J53: 0 | K53: 0 | L53: 0 | M53: 500 | N53: 0 | O53: 0 | P53: 1 | Q53: 0 | R53: 0 | S53: 0 | T53: 0 | U53: 0 | V53: 0 | W53: 0 | X53: 0 | Y53: 0 | Z53: 0 | AA53: 92 | AB53: 0 | AC53: 0 | AD53: 0 | AE53: 0 | AF53: 0 | AG53: 0 | AH53: 0 | AI53: 0 | AJ53: 0 | AK53: 0 | AL53: 0 | AM53: 0 | AN53: 0 | AO53: 0 | AP53: 0 | AQ53: 0 | AR53: 0 | AS53: 0 | AT53: 0 | AU53: 0 | AV53: 0 | AW53: 0 | AX53: 0 | AY53: 0 | AZ53: 500 | BA53: 0 | BB53: 0 | BC53: 0 | BD53: 0 | BE53: 0 | BF53: 0 | BG53: 0 | BH53: 0 | BI53: 0 | BJ53: 0 | BK53: 0 | BL53: 0 | BM53: 0 | BN53: 0 | BO53: 0 | BP53: 0 | BQ53: 0 | BR53: 0 | BS53: 0 | BT53: 0 | BU53: 0 | BV53: 0 | BW53: 0 | BX53: 0 | BY53: 0 | BZ53: 0 | CA53: 0 | CB53: 0 | CC53: 0 | CD53: 0 | CE53: 0 | CF53: 0 | CG53: 0 | CH53: 0 | CI53: 0 | CJ53: 0 | CK53: 0 | CL53: 0 | CM53: 0 | CN53: 0 | CO53: 0 | CP53: 0 | CQ53: 0 | CR53: 0 | CS53: 0 | CT53: 0 | CU53: 0 | CV53: 0 | CW53: 0 | CX53: 2 | CY53: 0 | CZ53: 0 | DA53: 0 | DB53: 0 | DC53: 0 | DD53: 0 | DE53: 0 | DF53: 0 | DG53: 0 | DH53: 0 | DI53: 0 | DJ53: 0 | DK53: 0 | DL53: 0 | DM53: 0 | DN53: 0 | DO53: 0 | DP53: 0 | DQ53: 0 | DR53: 0 | DS53: 0 | DT53: 0 | DU53: 0 | DV53: 0 | DW53: 0 | DX53: 0 | DY53: 0 | DZ53: 0 | EA53: 0 | EB53: 0 | EC53: 0 | ED53: 0 | EE53: 0 | EF53: 0 | EG53: 0 | EH53: 0 | EI53: 0 | EJ53: 0 | EK53: 0 | EL53: 0 | EM53: 0 | EN53: 0 | EO53: 0 | EP53: 0 | EQ53: 0 | ER53: 1 | ES53: 0 | ET53: 0 | EU53: 0 | EV53: 0 | EW53: 0 | EX53: 0 | EY53: 0 | EZ53: 0 | FA53: 0 | FB53: 0 | FC53: 0 | FD53: 0 | FE53: 0 | FF53: 0 | FG53: 0 | FH53: 0 | FI53: 0 | FJ53: 0 | FK53: 0 | FL53: 0 | FM53: 0 | FN53: 0 | FO53: 0 | FP53: 0 | FQ53: 0 | FR53: 1 | FS53: 0 | FT53: 0 | FU53: 0 | FV53: 0 | FW53: 0 | FX53: 0 | FY53: 0 | FZ53: 0 | GA53: 0 | GB53: 0 | GC53: 0 | GD53: 0 | GE53: 0 | GF53: 0 | GG53: 0 | GH53: 0 | GI53: 0 | GJ53: 0 | GK53: 0 | GL53: 0 | GM53: 0 | GN53: 0 | GO53: 0 | GP53: 0 | GQ53: 0 | GR53: 0 | GS53: 0 | GT53: 0 | GU53: 0 | GV53: 0 | GW53: 0 | GX53: 0 | GY53: 0 | GZ53: 0 | HA53: 0 | HB53: 0 | HC53: 0 | HD53: 0 | HE53: 0 | HF53: 0 | HG53: 0
B54: Pierre-Marie HAMON | C54: =SUMPRODUCT(('Avantages perçus'!$A$2:$A$30000=B54)*('Avantages perçus'!$F$2:$F$30000)) -> 514 | D54: =COUNTIFS('Avantages perçus'!$A$2:$A$30000,B54,'Avantages perçus'!$F$2:$F$30000,">0") -> 15 | E54: =COUNTIFS('Conventions signées'!$A$2:$A$15000,B54,'Conventions signées'!$A$2:$A$15000,"*") -> 4 | F54: 0 | G54: 0 | H54: 392 | I54: 46 | J54: 0 | K54: 0 | L54: 0 | M54: 76 | N54: 2 | O54: 0 | P54: 0 | Q54: 0 | R54: 0 | S54: 0 | T54: 1 | U54: 1 | V54: 0 | W54: 0 | X54: 0 | Y54: 46 | Z54: 0 | AA54: 0 | AB54: 0 | AC54: 0 | AD54: 33 | AE54: 0 | AF54: 0 | AG54: 50 | AH54: 0 | AI54: 53 | AJ54: 0 | AK54: 0 | AL54: 0 | AM54: 50 | AN54: 0 | AO54: 0 | AP54: 0 | AQ54: 0 | AR54: 0 | AS54: 0 | AT54: 101 | AU54: 57 | AV54: 0 | AW54: 0 | AX54: 0 | AY54: 0 | AZ54: 0 | BA54: 0 | BB54: 56 | BC54: 0 | BD54: 0 | BE54: 0 | BF54: 0 | BG54: 49 | BH54: 0 | BI54: 19 | BJ54: 0 | BK54: 0 | BL54: 0 | BM54: 0 | BN54: 0 | BO54: 0 | BP54: 0 | BQ54: 0 | BR54: 0 | BS54: 0 | BT54: 0 | BU54: 0 | BV54: 0 | BW54: 0 | BX54: 0 | BY54: 0 | BZ54: 0 | CA54: 0 | CB54: 0 | CC54: 0 | CD54: 0 | CE54: 0 | CF54: 0 | CG54: 0 | CH54: 0 | CI54: 0 | CJ54: 0 | CK54: 0 | CL54: 0 | CM54: 0 | CN54: 0 | CO54: 0 | CP54: 0 | CQ54: 0 | CR54: 0 | CS54: 1 | CT54: 0 | CU54: 2 | CV54: 0 | CW54: 0 | CX54: 0 | CY54: 0 | CZ54: 1 | DA54: 2 | DB54: 0 | DC54: 0 | DD54: 0 | DE54: 1 | DF54: 3 | DG54: 0 | DH54: 0 | DI54: 0 | DJ54: 0 | DK54: 0 | DL54: 0 | DM54: 0 | DN54: 2 | DO54: 0 | DP54: 1 | DQ54: 1 | DR54: 1 | DS54: 0 | DT54: 0 | DU54: 0 | DV54: 0 | DW54: 0 | DX54: 0 | DY54: 0 | DZ54: 0 | EA54: 0 | EB54: 0 | EC54: 0 | ED54: 0 | EE54: 0 | EF54: 0 | EG54: 0 | EH54: 0 | EI54: 0 | EJ54: 0 | EK54: 0 | EL54: 0 | EM54: 0 | EN54: 0 | EO54: 0 | EP54: 0 | EQ54: 0 | ER54: 0 | ES54: 0 | ET54: 0 | EU54: 0 | EV54: 0 | EW54: 0 | EX54: 0 | EY54: 0 | EZ54: 0 | FA54: 0 | FB54: 0 | FC54: 0 | FD54: 0 | FE54: 0 | FF54: 0 | FG54: 0 | FH54: 0 | FI54: 0 | FJ54: 0 | FK54: 0 | FL54: 0 | FM54: 0 | FN54: 2 | FO54: 0 | FP54: 0 | FQ54: 1 | FR54: 0 | FS54: 0 | FT54: 1 | FU54: 0 | FV54: 0 | FW54: 0 | FX54: 0 | FY54: 0 | FZ54: 0 | GA54: 0 | GB54: 0 | GC54: 0 | GD54: 0 | GE54: 0 | GF54: 0 | GG54: 0 | GH54: 0 | GI54: 0 | GJ54: 0 | GK54: 0 | GL54: 0 | GM54: 0 | GN54: 0 | GO54: 0 | GP54: 0 | GQ54: 0 | GR54: 0 | GS54: 0 | GT54: 0 | GU54: 0 | GV54: 0 | GW54: 0 | GX54: 0 | GY54: 0 | GZ54: 0 | HA54: 0 | HB54: 0 | HC54: 0 | HD54: 0 | HE54: 0 | HF54: 0 | HG54: 0
B55: Claudine HUBER-LEVERNIEUX | C55: =SUMPRODUCT(('Avantages perçus'!$A$2:$A$30000=B55)*('Avantages perçus'!$F$2:$F$30000)) -> 370 | D55: =COUNTIFS('Avantages perçus'!$A$2:$A$30000,B55,'Avantages perçus'!$F$2:$F$30000,">0") -> 7 | E55: =COUNTIFS('Conventions signées'!$A$2:$A$15000,B55,'Conventions signées'!$A$2:$A$15000,"*") -> 3 | F55: 0 | G55: 0 | H55: 370 | I55: 0 | J55: 0 | K55: 0 | L55: 0 | M55: 0 | N55: 1 | O55: 0 | P55: 2 | Q55: 0 | R55: 0 | S55: 0 | T55: 0 | U55: 0 | V55: 0 | W55: 0 | X55: 0 | Y55: 0 | Z55: 120 | AA55: 0 | AB55: 0 | AC55: 0 | AD55: 0 | AE55: 0 | AF55: 0 | AG55: 49 | AH55: 0 | AI55: 55 | AJ55: 98 | AK55: 0 | AL55: 0 | AM55: 0 | AN55: 0 | AO55: 0 | AP55: 0 | AQ55: 0 | AR55: 0 | AS55: 0 | AT55: 48 | AU55: 0 | AV55: 0 | AW55: 0 | AX55: 0 | AY55: 0 | AZ55: 0 | BA55: 0 | BB55: 0 | BC55: 0 | BD55: 0 | BE55: 0 | BF55: 0 | BG55: 0 | BH55: 0 | BI55: 0 | BJ55: 0 | BK55: 0 | BL55: 0 | BM55: 0 | BN55: 0 | BO55: 0 | BP55: 0 | BQ55: 0 | BR55: 0 | BS55: 0 | BT55: 0 | BU55: 0 | BV55: 0 | BW55: 0 | BX55: 0 | BY55: 0 | BZ55: 0 | CA55: 0 | CB55: 0 | CC55: 0 | CD55: 0 | CE55: 0 | CF55: 0 | CG55: 0 | CH55: 0 | CI55: 0 | CJ55: 0 | CK55: 0 | CL55: 0 | CM55: 0 | CN55: 0 | CO55: 0 | CP55: 0 | CQ55: 0 | CR55: 0 | CS55: 0 | CT55: 0 | CU55: 1 | CV55: 2 | CW55: 0 | CX55: 0 | CY55: 0 | CZ55: 1 | DA55: 0 | DB55: 0 | DC55: 2 | DD55: 0 | DE55: 0 | DF55: 1 | DG55: 0 | DH55: 0 | DI55: 0 | DJ55: 0 | DK55: 0 | DL55: 0 | DM55: 0 | DN55: 0 | DO55: 0 | DP55: 0 | DQ55: 0 | DR55: 0 | DS55: 0 | DT55: 0 | DU55: 0 | DV55: 0 | DW55: 0 | DX55: 0 | DY55: 0 | DZ55: 0 | EA55: 0 | EB55: 0 | EC55: 0 | ED55: 0 | EE55: 0 | EF55: 0 | EG55: 0 | EH55: 0 | EI55: 0 | EJ55: 0 | EK55: 0 | EL55: 0 | EM55: 0 | EN55: 0 | EO55: 0 | EP55: 0 | EQ55: 0 | ER55: 0 | ES55: 0 | ET55: 0 | EU55: 0 | EV55: 0 | EW55: 0 | EX55: 0 | EY55: 0 | EZ55: 0 | FA55: 0 | FB55: 0 | FC55: 0 | FD55: 0 | FE55: 0 | FF55: 0 | FG55: 0 | FH55: 0 | FI55: 0 | FJ55: 0 | FK55: 0 | FL55: 0 | FM55: 0 | FN55: 0 | FO55: 1 | FP55: 2 | FQ55: 0 | FR55: 0 | FS55: 0 | FT55: 0 | FU55: 0 | FV55: 0 | FW55: 0 | FX55: 0 | FY55: 0 | FZ55: 0 | GA55: 0 | GB55: 0 | GC55: 0 | GD55: 0 | GE55: 0 | GF55: 0 | GG55: 0 | GH55: 0 | GI55: 0 | GJ55: 0 | GK55: 0 | GL55: 0 | GM55: 0 | GN55: 0 | GO55: 0 | GP55: 0 | GQ55: 0 | GR55: 0 | GS55: 0 | GT55: 0 | GU55: 0 | GV55: 0 | GW55: 0 | GX55: 0 | GY55: 0 | GZ55: 0 | HA55: 0 | HB55: 0 | HC55: 0 | HD55: 0 | HE55: 0 | HF55: 0 | HG55: 0
B56: Monique BENVENUTO | C56: =SUMPRODUCT(('Avantages perçus'!$A$2:$A$30000=B56)*('Avantages perçus'!$F$2:$F$30000)) -> 353 | D56: =COUNTIFS('Avantages perçus'!$A$2:$A$30000,B56,'Avantages perçus'!$F$2:$F$30000,">0") -> 10 | E56: =COUNTIFS('Conventions signées'!$A$2:$A$15000,B56,'Conventions signées'!$A$2:$A$15000,"*") -> 1 | F56: 0 | G56: 0 | H56: 265 | I56: 0 | J56: 0 | K56: 0 | L56: 0 | M56: 88 | N56: 1 | O56: 0 | P56: 0 | Q56: 0 | R56: 0 | S56: 0 | T56: 0 | U56: 0 | V56: 0 | W56: 0 | X56: 0 | Y56: 0 | Z56: 0 | AA56: 0 | AB56: 0 | AC56: 36 | AD56: 0 | AE56: 0 | AF56: 0 | AG56: 109 | AH56: 0 | AI56: 0 | AJ56: 0 | AK56: 0 | AL56: 0 | AM56: 0 | AN56: 60 | AO56: 0 | AP56: 0 | AQ56: 0 | AR56: 0 | AS56: 0 | AT56: 0 | AU56: 88 | AV56: 0 | AW56: 0 | AX56: 0 | AY56: 0 | AZ56: 0 | BA56: 0 | BB56: 0 | BC56: 0 | BD56: 0 | BE56: 0 | BF56: 0 | BG56: 0 | BH56: 0 | BI56: 0 | BJ56: 0 | BK56: 0 | BL56: 0 | BM56: 0 | BN56: 0 | BO56: 0 | BP56: 0 | BQ56: 0 | BR56: 0 | BS56: 0 | BT56: 0 | BU56: 60 | BV56: 0 | BW56: 0 | BX56: 0 | BY56: 0 | BZ56: 0 | CA56: 0 | CB56: 0 | CC56: 0 | CD56: 0 | CE56: 0 | CF56: 0 | CG56: 0 | CH56: 0 | CI56: 0 | CJ56: 0 | CK56: 0 | CL56: 0 | CM56: 0 | CN56: 0 | CO56: 0 | CP56: 0 | CQ56: 0 | CR56: 0 | CS56: 0 | CT56: 0 | CU56: 3 | CV56: 0 | CW56: 1 | CX56: 0 | CY56: 0 | CZ56: 0 | DA56: 3 | DB56: 1 | DC56: 0 | DD56: 0 | DE56: 0 | DF56: 0 | DG56: 0 | DH56: 0 | DI56: 0 | DJ56: 0 | DK56: 0 | DL56: 0 | DM56: 0 | DN56: 0 | DO56: 0 | DP56: 0 | DQ56: 0 | DR56: 0 | DS56: 0 | DT56: 0 | DU56: 0 | DV56: 0 | DW56: 0 | DX56: 0 | DY56: 0 | DZ56: 0 | EA56: 0 | EB56: 0 | EC56: 0 | ED56: 0 | EE56: 0 | EF56: 0 | EG56: 0 | EH56: 0 | EI56: 0 | EJ56: 0 | EK56: 0 | EL56: 0 | EM56: 2 | EN56: 0 | EO56: 0 | EP56: 0 | EQ56: 0 | ER56: 0 | ES56: 0 | ET56: 0 | EU56: 0 | EV56: 0 | EW56: 0 | EX56: 0 | EY56: 0 | EZ56: 0 | FA56: 0 | FB56: 0 | FC56: 0 | FD56: 0 | FE56: 0 | FF56: 0 | FG56: 0 | FH56: 0 | FI56: 0 | FJ56: 0 | FK56: 0 | FL56: 0 | FM56: 0 | FN56: 0 | FO56: 1 | FP56: 0 | FQ56: 0 | FR56: 0 | FS56: 0 | FT56: 0 | FU56: 0 | FV56: 0 | FW56: 0 | FX56: 0 | FY56: 0 | FZ56: 0 | GA56: 0 | GB56: 0 | GC56: 0 | GD56: 0 | GE56: 0 | GF56: 0 | GG56: 0 | GH56: 0 | GI56: 0 | GJ56: 0 | GK56: 0 | GL56: 0 | GM56: 0 | GN56: 0 | GO56: 0 | GP56: 0 | GQ56: 0 | GR56: 0 | GS56: 0 | GT56: 0 | GU56: 0 | GV56: 0 | GW56: 0 | GX56: 0 | GY56: 0 | GZ56: 0 | HA56: 0 | HB56: 0 | HC56: 0 | HD56: 0 | HE56: 0 | HF56: 0 | HG56: 0
B57: Yacine KHELLAFI | C57: =SUMPRODUCT(('Avantages perçus'!$A$2:$A$30000=B57)*('Avantages perçus'!$F$2:$F$30000)) -> 164 | D57: =COUNTIFS('Avantages perçus'!$A$2:$A$30000,B57,'Avantages perçus'!$F$2:$F$30000,">0") -> 5 | E57: =COUNTIFS('Conventions signées'!$A$2:$A$15000,B57,'Conventions signées'!$A$2:$A$15000,"*") -> 0 | F57: 0 | G57: 0 | H57: 143 | I57: 0 | J57: 0 | K57: 0 | L57: 0 | M57: 21 | N57: 0 | O57: 0 | P57: 0 | Q57: 0 | R57: 0 | S57: 0 | T57: 0 | U57: 0 | V57: 0 | W57: 0 | X57: 0 | Y57: 0 | Z57: 0 | AA57: 0 | AB57: 71 | AC57: 38 | AD57: 0 | AE57: 0 | AF57: 0 | AG57: 0 | AH57: 0 | AI57: 0 | AJ57: 0 | AK57: 0 | AL57: 0 | AM57: 0 | AN57: 0 | AO57: 0 | AP57: 0 | AQ57: 0 | AR57: 0 | AS57: 0 | AT57: 0 | AU57: 0 | AV57: 0 | AW57: 0 | AX57: 0 | AY57: 0 | AZ57: 0 | BA57: 0 | BB57: 0 | BC57: 0 | BD57: 0 | BE57: 0 | BF57: 0 | BG57: 0 | BH57: 0 | BI57: 0 | BJ57: 0 | BK57: 0 | BL57: 0 | BM57: 0 | BN57: 0 | BO57: 0 | BP57: 0 | BQ57: 0 | BR57: 0 | BS57: 18 | BT57: 21 | BU57: 0 | BV57: 0 | BW57: 0 | BX57: 0 | BY57: 0 | BZ57: 0 | CA57: 0 | CB57: 0 | CC57: 0 | CD57: 0 | CE57: 0 | CF57: 0 | CG57: 16 | CH57: 0 | CI57: 0 | CJ57: 0 | CK57: 0 | CL57: 0 | CM57: 0 | CN57: 0 | CO57: 0 | CP57: 0 | CQ57: 0 | CR57: 0 | CS57: 0 | CT57: 1 | CU57: 0 | CV57: 0 | CW57: 1 | CX57: 0 | CY57: 0 | CZ57: 0 | DA57: 0 | DB57: 0 | DC57: 0 | DD57: 0 | DE57: 0 | DF57: 0 | DG57: 0 | DH57: 0 | DI57: 0 | DJ57: 0 | DK57: 0 | DL57: 0 | DM57: 0 | DN57: 0 | DO57: 0 | DP57: 0 | DQ57: 0 | DR57: 0 | DS57: 0 | DT57: 0 | DU57: 0 | DV57: 0 | DW57: 0 | DX57: 0 | DY57: 0 | DZ57: 0 | EA57: 0 | EB57: 0 | EC57: 0 | ED57: 0 | EE57: 0 | EF57: 0 | EG57: 0 | EH57: 0 | EI57: 1 | EJ57: 0 | EK57: 1 | EL57: 0 | EM57: 0 | EN57: 0 | EO57: 1 | EP57: 0 | EQ57: 0 | ER57: 0 | ES57: 0 | ET57: 0 | EU57: 0 | EV57: 0 | EW57: 0 | EX57: 0 | EY57: 0 | EZ57: 0 | FA57: 0 | FB57: 0 | FC57: 0 | FD57: 0 | FE57: 0 | FF57: 0 | FG57: 0 | FH57: 0 | FI57: 0 | FJ57: 0 | FK57: 0 | FL57: 0 | FM57: 0 | FN57: 0 | FO57: 0 | FP57: 0 | FQ57: 0 | FR57: 0 | FS57: 0 | FT57: 0 | FU57: 0 | FV57: 0 | FW57: 0 | FX57: 0 | FY57: 0 | FZ57: 0 | GA57: 0 | GB57: 0 | GC57: 0 | GD57: 0 | GE57: 0 | GF57: 0 | GG57: 0 | GH57: 0 | GI57: 0 | GJ57: 0 | GK57: 0 | GL57: 0 | GM57: 0 | GN57: 0 | GO57: 0 | GP57: 0 | GQ57: 0 | GR57: 0 | GS57: 0 | GT57: 0 | GU57: 0 | GV57: 0 | GW57: 0 | GX57: 0 | GY57: 0 | GZ57: 0 | HA57: 0 | HB57: 0 | HC57: 0 | HD57: 0 | HE57: 0 | HF57: 0 | HG57: 0
B58: Jean-Pierre LAZARETH | C58: =SUMPRODUCT(('Avantages perçus'!$A$2:$A$30000=B58)*('Avantages perçus'!$F$2:$F$30000)) -> 29 | D58: =COUNTIFS('Avantages perçus'!$A$2:$A$30000,B58,'Avantages perçus'!$F$2:$F$30000,">0") -> 1 | E58: =COUNTIFS('Conventions signées'!$A$2:$A$15000,B58,'Conventions signées'!$A$2:$A$15000,"*") -> 2 | F58: 0 | G58: 0 | H58: 29 | I58: 0 | J58: 0 | K58: 0 | L58: 0 | M58: 0 | N58: 1 | O58: 0 | P58: 1 | Q58: 0 | R58: 0 | S58: 0 | T58: 0 | U58: 0 | V58: 0 | W58: 0 | X58: 0 | Y58: 0 | Z58: 0 | AA58: 0 | AB58: 0 | AC58: 0 | AD58: 0 | AE58: 0 | AF58: 0 | AG58: 0 | AH58: 0 | AI58: 0 | AJ58: 0 | AK58: 0 | AL58: 0 | AM58: 0 | AN58: 0 | AO58: 0 | AP58: 0 | AQ58: 0 | AR58: 0 | AS58: 0 | AT58: 0 | AU58: 0 | AV58: 0 | AW58: 0 | AX58: 0 | AY58: 0 | AZ58: 0 | BA58: 0 | BB58: 0 | BC58: 0 | BD58: 0 | BE58: 0 | BF58: 0 | BG58: 0 | BH58: 0 | BI58: 0 | BJ58: 0 | BK58: 0 | BL58: 0 | BM58: 0 | BN58: 0 | BO58: 0 | BP58: 0 | BQ58: 0 | BR58: 0 | BS58: 0 | BT58: 0 | BU58: 0 | BV58: 0 | BW58: 29 | BX58: 0 | BY58: 0 | BZ58: 0 | CA58: 0 | CB58: 0 | CC58: 0 | CD58: 0 | CE58: 0 | CF58: 0 | CG58: 0 | CH58: 0 | CI58: 0 | CJ58: 0 | CK58: 0 | CL58: 0 | CM58: 0 | CN58: 0 | CO58: 0 | CP58: 0 | CQ58: 0 | CR58: 0 | CS58: 0 | CT58: 0 | CU58: 0 | CV58: 0 | CW58: 0 | CX58: 0 | CY58: 0 | CZ58: 0 | DA58: 0 | DB58: 0 | DC58: 0 | DD58: 0 | DE58: 0 | DF58: 0 | DG58: 0 | DH58: 0 | DI58: 0 | DJ58: 0 | DK58: 0 | DL58: 0 | DM58: 0 | DN58: 0 | DO58: 0 | DP58: 0 | DQ58: 0 | DR58: 0 | DS58: 0 | DT58: 0 | DU58: 0 | DV58: 0 | DW58: 0 | DX58: 0 | DY58: 0 | DZ58: 0 | EA58: 0 | EB58: 0 | EC58: 0 | ED58: 0 | EE58: 0 | EF58: 0 | EG58: 0 | EH58: 0 | EI58: 0 | EJ58: 0 | EK58: 0 | EL58: 0 | EM58: 0 | EN58: 1 | EO58: 0 | EP58: 0 | EQ58: 0 | ER58: 0 | ES58: 0 | ET58: 0 | EU58: 0 | EV58: 0 | EW58: 0 | EX58: 0 | EY58: 0 | EZ58: 0 | FA58: 0 | FB58: 0 | FC58: 0 | FD58: 0 | FE58: 0 | FF58: 0 | FG58: 0 | FH58: 0 | FI58: 0 | FJ58: 0 | FK58: 0 | FL58: 0 | FM58: 0 | FN58: 1 | FO58: 0 | FP58: 0 | FQ58: 0 | FR58: 0 | FS58: 0 | FT58: 0 | FU58: 0 | FV58: 0 | FW58: 0 | FX58: 0 | FY58: 0 | FZ58: 0 | GA58: 0 | GB58: 0 | GC58: 0 | GD58: 0 | GE58: 0 | GF58: 0 | GG58: 0 | GH58: 0 | GI58: 0 | GJ58: 0 | GK58: 0 | GL58: 0 | GM58: 0 | GN58: 0 | GO58: 0 | GP58: 0 | GQ58: 0 | GR58: 0 | GS58: 0 | GT58: 0 | GU58: 0 | GV58: 0 | GW58: 0 | GX58: 0 | GY58: 0 | GZ58: 0 | HA58: 0 | HB58: 0 | HC58: 0 | HD58: 1 | HE58: 0 | HF58: 0 | HG58: 0
B59: Hélène AMSELLEM | C59: =SUMPRODUCT(('Avantages perçus'!$A$2:$A$30000=B59)*('Avantages perçus'!$F$2:$F$30000)) -> 0 | D59: =COUNTIFS('Avantages perçus'!$A$2:$A$30000,B59,'Avantages perçus'!$F$2:$F$30000,">0") -> 0 | E59: =COUNTIFS('Conventions signées'!$A$2:$A$15000,B59,'Conventions signées'!$A$2:$A$15000,"*") -> 1 | F59: 0 | G59: 0 | H59: 0 | I59: 0 | J59: 0 | K59: 0 | L59: 0 | M59: 0 | N59: 1 | O59: 0 | P59: 0 | Q59: 0 | R59: 0 | S59: 0 | T59: 0 | U59: 0 | V59: 0 | W59: 0 | X59: 0 | Y59: 0 | Z59: 0 | AA59: 0 | AB59: 0 | AC59: 0 | AD59: 0 | AE59: 0 | AF59: 0 | AG59: 0 | AH59: 0 | AI59: 0 | AJ59: 0 | AK59: 0 | AL59: 0 | AM59: 0 | AN59: 0 | AO59: 0 | AP59: 0 | AQ59: 0 | AR59: 0 | AS59: 0 | AT59: 0 | AU59: 0 | AV59: 0 | AW59: 0 | AX59: 0 | AY59: 0 | AZ59: 0 | BA59: 0 | BB59: 0 | BC59: 0 | BD59: 0 | BE59: 0 | BF59: 0 | BG59: 0 | BH59: 0 | BI59: 0 | BJ59: 0 | BK59: 0 | BL59: 0 | BM59: 0 | BN59: 0 | BO59: 0 | BP59: 0 | BQ59: 0 | BR59: 0 | BS59: 0 | BT59: 0 | BU59: 0 | BV59: 0 | BW59: 0 | BX59: 0 | BY59: 0 | BZ59: 0 | CA59: 0 | CB59: 0 | CC59: 0 | CD59: 0 | CE59: 0 | CF59: 0 | CG59: 0 | CH59: 0 | CI59: 0 | CJ59: 0 | CK59: 0 | CL59: 0 | CM59: 0 | CN59: 0 | CO59: 0 | CP59: 0 | CQ59: 0 | CR59: 0 | CS59: 0 | CT59: 0 | CU59: 0 | CV59: 0 | CW59: 0 | CX59: 0 | CY59: 0 | CZ59: 0 | DA59: 0 | DB59: 0 | DC59: 0 | DD59: 0 | DE59: 0 | DF59: 0 | DG59: 0 | DH59: 0 | DI59: 0 | DJ59: 0 | DK59: 0 | DL59: 0 | DM59: 0 | DN59: 0 | DO59: 0 | DP59: 0 | DQ59: 0 | DR59: 0 | DS59: 0 | DT59: 0 | DU59: 0 | DV59: 0 | DW59: 0 | DX59: 0 | DY59: 0 | DZ59: 0 | EA59: 0 | EB59: 0 | EC59: 0 | ED59: 0 | EE59: 0 | EF59: 0 | EG59: 0 | EH59: 0 | EI59: 0 | EJ59: 0 | EK59: 0 | EL59: 0 | EM59: 0 | EN59: 0 | EO59: 0 | EP59: 0 | EQ59: 0 | ER59: 0 | ES59: 0 | ET59: 0 | EU59: 0 | EV59: 0 | EW59: 0 | EX59: 0 | EY59: 0 | EZ59: 0 | FA59: 0 | FB59: 0 | FC59: 0 | FD59: 0 | FE59: 0 | FF59: 0 | FG59: 0 | FH59: 0 | FI59: 0 | FJ59: 0 | FK59: 0 | FL59: 0 | FM59: 0 | FN59: 1 | FO59: 0 | FP59: 0 | FQ59: 0 | FR59: 0 | FS59: 0 | FT59: 0 | FU59: 0 | FV59: 0 | FW59: 0 | FX59: 0 | FY59: 0 | FZ59: 0 | GA59: 0 | GB59: 0 | GC59: 0 | GD59: 0 | GE59: 0 | GF59: 0 | GG59: 0 | GH59: 0 | GI59: 0 | GJ59: 0 | GK59: 0 | GL59: 0 | GM59: 0 | GN59: 0 | GO59: 0 | GP59: 0 | GQ59: 0 | GR59: 0 | GS59: 0 | GT59: 0 | GU59: 0 | GV59: 0 | GW59: 0 | GX59: 0 | GY59: 0 | GZ59: 0 | HA59: 0 | HB59: 0 | HC59: 0 | HD59: 0 | HE59: 0 | HF59: 0 | HG59: 0
B60: TOTAUX | C60: 195893 | D60: 2135 | E60: 800 | F60: 26495 | G60: 34624 | H60: 67035 | I60: 24205 | J60: 36329 | K60: 0 | L60: 39 | M60: 7166 | N60: 374 | O60: 17 | P60: 215 | Q60: 28 | R60: 8 | S60: 10 | T60: 98 | U60: 33 | V60: 0 | W60: 0 | X60: 17 | Y60: 33879 | Z60: 23376 | AA60: 15286 | AB60: 13078 | AC60: 11950 | AD60: 10830 | AE60: 9563 | AF60: 8572 | AG60: 7609 | AH60: 6679 | AI60: 6061 | AJ60: 5466 | AK60: 4798 | AL60: 4408 | AM60: 3187 | AN60: 2792 | AO60: 2568 | AP60: 2210 | AQ60: 2189 | AR60: 2151 | AS60: 1917 | AT60: 1878 | AU60: 1831 | AV60: 1429 | AW60: 1228 | AX60: 1217 | AY60: 975 | AZ60: 950 | BA60: 929 | BB60: 920 | BC60: 805 | BD60: 747 | BE60: 510 | BF60: 478 | BG60: 474 | BH60: 463 | BI60: 318 | BJ60: 271 | BK60: 164 | BL60: 150 | BM60: 127 | BN60: 111 | BO60: 110 | BP60: 99 | BQ60: 80 | BR60: 77 | BS60: 74 | BT60: 71 | BU60: 60 | BV60: 60 | BW60: 53 | BX60: 51 | BY60: 50 | BZ60: 50 | CA60: 50 | CB60: 47 | CC60: 40 | CD60: 38 | CE60: 37 | CF60: 36 | CG60: 34 | CH60: 32 | CI60: 30 | CJ60: 23 | CK60: 22 | CL60: 21 | CM60: 20 | CN60: 19 | CO60: 19 | CP60: 18 | CQ60: 16 | CR60: 12 | CS60: 433 | CT60: 148 | CU60: 145 | CV60: 142 | CW60: 127 | CX60: 127 | CY60: 122 | CZ60: 76 | DA60: 66 | DB60: 65 | DC60: 47 | DD60: 47 | DE60: 46 | DF60: 45 | DG60: 38 | DH60: 37 | DI60: 35 | DJ60: 32 | DK60: 31 | DL60: 29 | DM60: 29 | DN60: 27 | DO60: 26 | DP60: 26 | DQ60: 15 | DR60: 14 | DS60: 13 | DT60: 11 | DU60: 10 | DV60: 10 | DW60: 9 | DX60: 8 | DY60: 8 | DZ60: 8 | EA60: 6 | EB60: 6 | EC60: 5 | ED60: 5 | EE60: 5 | EF60: 4 | EG60: 4 | EH60: 4 | EI60: 3 | EJ60: 3 | EK60: 3 | EL60: 2 | EM60: 2 | EN60: 2 | EO60: 2 | EP60: 2 | EQ60: 2 | ER60: 2 | ES60: 2 | ET60: 1 | EU60: 1 | EV60: 1 | EW60: 1 | EX60: 1 | EY60: 1 | EZ60: 1 | FA60: 1 | FB60: 1 | FC60: 1 | FD60: 1 | FE60: 1 | FF60: 1 | FG60: 1 | FH60: 1 | FI60: 1 | FJ60: 1 | FK60: 1 | FL60: 1 | FM60: 143 | FN60: 123 | FO60: 76 | FP60: 73 | FQ60: 60 | FR60: 42 | FS60: 40 | FT60: 30 | FU60: 26 | FV60: 22 | FW60: 21 | FX60: 14 | FY60: 13 | FZ60: 12 | GA60: 11 | GB60: 11 | GC60: 9 | GD60: 8 | GE60: 7 | GF60: 6 | GG60: 5 | GH60: 5 | GI60: 4 | GJ60: 4 | GK60: 4 | GL60: 4 | GM60: 4 | GN60: 3 | GO60: 2 | GP60: 1 | GQ60: 1 | GR60: 1 | GS60: 1 | GT60: 1 | GU60: 1 | GV60: 1 | GW60: 1 | GX60: 1 | GY60: 1 | GZ60: 1 | HA60: 1 | HB60: 1 | HC60: 1 | HD60: 1 | HE60: 1 | HF60: 1 | HG60: 1
B63: Période d'étude | C63: 1er semestre 2012 - 2ème semestre 2015, soient 4 années

Sheet Regr lin nbres avtg & dépense
A1: RAPPORT DÉTAILLÉ
A3: Statistiques de la régression
A4: Coefficient de détermination multiple | B4: 0.8077506548
A5: Coefficient de détermination R^2 | B5: 0.6524611203
A6: Coefficient de détermination R^2 | B6: 0.6090187603
A7: Erreur-type | B7: 113878368.3
A8: Observations | B8: 10
A10: ANALYSE DE VARIANCE
B11: Degré de liberté | C11: Somme des carrés | D11: Moyenne des carrés | E11: F | F11: Valeur critique de F
A12: Régression | B12: 1 | C12: 1.947707331e+17 | D12: 1.947707331e+17 | E12: 15.01900727 | F12: 0.004705036285
A13: Résidus | B13: 8 | C13: 1.037462621e+17 | D13: 1.296828276e+16
A14: Total | B14: 9 | C14: 2.985169951e+17
B16: Coefficients | C16: Erreur-type | D16: Statistique t | E16: Probabilité | F16: Limite inférieure pour seuil de confiance = 95% | G16: Limite supérieure pour seuil de confiance = 95% | H16: Limite inférieure pour seuil de confiance = 95,0% | I16: Limite supérieure pour seuil de confiance = 95,0%
A17: Constante | B17: 39304346.43 | C17: 47483267.14 | D17: 0.8277515173 | E17: 0.4318088248 | F17: -70192263.87 | G17: 148800956.7 | H17: -70192263.87 | I17: 148800956.7
A18: Nombre d'avantages versés | B18: 1111588.198 | C18: 286829.168 | D18: 3.875436398 | E18: 0.004705036285 | F18: 450158.9506 | G18: 1773017.445 | H18: 450158.9506 | I18: 1773017.445

Sheet Regr lin nbr cvt & dépense
A1: RAPPORT DÉTAILLÉ
A3: Statistiques de la régression
A4: Coefficient de détermination multiple | B4: 0.9469010257
A5: Coefficient de détermination R^2 | B5: 0.8966215525
A6: Coefficient de détermination R^2 | B6: 0.8836992466
A7: Erreur-type | B7: 62109000.46
A8: Observations | B8: 10
A10: ANALYSE DE VARIANCE
B11: Degré de liberté | C11: Somme des carrés | D11: Moyenne des carrés | E11: F | F11: Valeur critique de F
A12: Régression | B12: 1 | C12: 2.676567716e+17 | D12: 2.676567716e+17 | E12: 69.38556919 | F12: 3.261199527e-05
A13: Résidus | B13: 8 | C13: 3.08602235e+16 | D13: 3.857527938e+15
A14: Total | B14: 9 | C14: 2.985169951e+17
B16: Coefficients | C16: Erreur-type | D16: Statistique t | E16: Probabilité | F16: Limite inférieure pour seuil de confiance = 95% | G16: Limite supérieure pour seuil de confiance = 95% | H16: Limite inférieure pour seuil de confiance = 95,0% | I16: Limite supérieure pour seuil de confiance = 95,0%
A17: Constante | B17: 19340256.62 | C17: 25842733.09 | D17: 0.7483827874 | E17: 0.4756530115 | F17: -40253192.7 | G17: 78933705.94 | H17: -40253192.7 | I17: 78933705.94
A18: Nombre de conventions signées | B18: 3261176.138 | C18: 391507.1324 | D18: 8.329800069 | E18: 3.261199527e-05 | F18: 2358359.073 | G18: 4163993.204 | H18: 2358359.073 | I18: 4163993.204

Sheet Regr lin mts avtg & dépense
A1: RAPPORT DÉTAILLÉ
A3: Statistiques de la régression
A4: Coefficient de détermination multiple | B4: 0.8321813178
A5: Coefficient de détermination R^2 | B5: 0.6925257457
A6: Coefficient de détermination R^2 | B6: 0.6540914639
A7: Erreur-type | B7: 107113427.3
A8: Observations | B8: 10
A10: ANALYSE DE VARIANCE
B11: Degré de liberté | C11: Somme des carrés | D11: Moyenne des carrés | E11: F | F11: Valeur critique de F
A12: Régression | B12: 1 | C12: 2.067307047e+17 | D12: 2.067307047e+17 | E12: 18.01843858 | F12: 0.00281895822
A13: Résidus | B13: 8 | C13: 9.178629047e+16 | D13: 1.147328631e+16
A14: Total | B14: 9 | C14: 2.985169951e+17
B16: Coefficients | C16: Erreur-type | D16: Statistique t | E16: Probabilité | F16: Limite inférieure pour seuil de confiance = 95% | G16: Limite supérieure pour seuil de confiance = 95% | H16: Limite inférieure pour seuil de confiance = 95,0% | I16: Limite supérieure pour seuil de confiance = 95,0%
A17: Constante | B17: 12760086.96 | C17: 48354996.83 | D17: 0.2638835239 | E17: 0.7985398944 | F17: -98746735.59 | G17: 124266909.5 | H17: -98746735.59 | I17: 124266909.5
A18: Total avantages versés** | B18: 13273.34415 | C18: 3126.956055 | D18: 4.244813138 | E18: 0.00281895822 | F18: 6062.570558 | G18: 20484.11773 | H18: 6062.570558 | I18: 20484.11773

Sheet DATA
A3: Médicament(s) | B3: Firme | C3: Total avantages versés** | D3: Nombre d'avantages versés | E3: Nombre de conventions signées | F3: Dépense 2015*
A4: INFLECTRA®, infliximab | B4: HOSPIRA | C4: ='Tableaux de synthèse'!CM60 -> 20 | D4: ='Tableaux de synthèse'!FI60 -> 1 | E4: =0 -> 0 | F4: 6378071
A5: REMSIMA®, infliximab | B5: BIOGARAN | C5: ='Tableaux de synthèse'!CK60 -> 22 | D5: ='Tableaux de synthèse'!FJ60 -> 1 | E5: ='Tableaux de synthèse'!HE60 -> 1 | F5: 1808091
A6: KINERET®, anakinra | B6: SWEDISH ORPHAN BIOVITRUM | C6: ='Tableaux de synthèse'!CA60 -> 50 | D6: ='Tableaux de synthèse'!FL60 -> 1 | E6: ='Tableaux de synthèse'!HF60 -> 1 | F6: 7644188.906
A7: METOJECT®, méthotrexate injectable | B7: NORDIC PHARMA | C7: ='Tableaux de synthèse'!AF60 -> 8572 | D7: ='Tableaux de synthèse'!DO60 -> 26 | E7: ='Tableaux de synthèse'!GA60 -> 11 | F7: 43489683.72
A8: CIMZIA®, certolizumab | B8: UCB PHARMA | C8: ='Tableaux de synthèse'!AS60 -> 1917 | D8: ='Tableaux de synthèse'!DG60 -> 38 | E8: ='Tableaux de synthèse'!FV60 -> 22 | F8: 33438228.38
A9: ORENCIA®, abatacept | B9: BMS | C9: ='Tableaux de synthèse'!AB60 -> 13078 | D9: ='Tableaux de synthèse'!CT60 -> 148 | E9: ='Tableaux de synthèse'!GB60 -> 11 | F9: 48960481.71
A10: MABTHERA®, rituximab + ROACTEMRA®, tocilizumab | B10: ROCHE + CHUGAÏ | C10: ='Tableaux de synthèse'!AA60+'Tableaux de synthèse'!AP60 -> 17496 | D10: ='Tableaux de synthèse'!CX60+'Tableaux de synthèse'!DI60 -> 162 | E10: ='Tableaux de synthèse'!FR60+'Tableaux de synthèse'!GO60 -> 44 | F10: 321117022.5
A11: REMICADE®, infliximab + SIMPONI®, golimumab | B11: MSD | C11: ='Tableaux de synthèse'!AC60 -> 11950 | D11: ='Tableaux de synthèse'!CW60 -> 127 | E11: ='Tableaux de synthèse'!FN60 -> 123 | F11: 409994912.9
A12: ENBREL®, étanercept | B12: PFIZER | C12: ='Tableaux de synthèse'!Z60 -> 23376 | D12: ='Tableaux de synthèse'!CV60 -> 142 | E12: ='Tableaux de synthèse'!FP60 -> 73 | F12: 269086357.9
A13: HUMIRA®, adalimumab | B13: ABBVIE | C13: ='Tableaux de synthèse'!Y60 -> 33879 | D13: ='Tableaux de synthèse'!CS60 -> 433 | E13: ='Tableaux de synthèse'!FM60 -> 143 | F13: 450530091.5
B14: LILLY | C14: ='Tableaux de synthèse'!AE60 -> 9563 | D14: ='Tableaux de synthèse'!CY60 -> 122 | E14: ='Tableaux de synthèse'!FU60 -> 26 | F14: 26244795
B15: AMGEN | C15: ='Tableaux de synthèse'!AN60 -> 2792 | D15: ='Tableaux de synthèse'!DB60 -> 65 | E15: ='Tableaux de synthèse'!FY60 -> 13 | F15: 13400751
B16: GSK | C16: ='Tableaux de synthèse'!AL60 -> 4408 | D16: ='Tableaux de synthèse'!DS60 -> 13 | E16: ='Tableaux de synthèse'!GU60 -> 1 | F16: ?
B17: Total 55 rhumatologues et internistes | C17: 195893 | D17: 2135 | E17: 800
B18: Total 8 biothérapies + 2 biosimilaires PR = 9 firmes (en jaune) | C18: =SUM(C4:C5)+SUM(C8:C13) -> 101738 | D18: =SUM(D4:D5)+SUM(D8:D13) -> 1052 | E18: =SUM(E4:E5)+SUM(E8:E13) -> 417
B19: % 8 biothérapies + 2 biosimilaires PR & 9 firmes | C19: =C18/C17 -> 0.519354954 | D19: =D18/D17 -> 0.4927400468 | E19: 0.52125
A21: (*) Montants remboursés en ville (médecins libéraux + prescriptions hospitalières ambulatoires) + liste en sus
A22: (**) Total avantages versés aux 55 rhumatologues et internistes des Yvelines en Euros sur la période 2012-2015 (4 années) ; idem pour les nombres d'avantages et de conventions signées
A23: AMGEN commercialise depuis 2010 PROLIA®, dénosumab, qu'il promeut chez les rhumatologues dans l'ostéoporose post ménauposique chez la femme à risque élevé de fracture
A24: LILLY commercialise depuis septembre 2004 FORSTEO®, tériparatide, qu'il promeut chez les rhumatologues dans l'ostéoporose post ménauposique chez la femme à risque élevé de fracture et développe le baricitinib, inhibiteur des JAK1 et JAK2
A25: GSK commercialise depuis octobre 2012 BENLYSTA®, belimumab, qu'il promeut auprès des rhumatologues dans le lupus erythémateux disséminé. Mais étant réservé à l'usage hospitalier et absent de la liste en sus, les volumes et montants prescrits et remboursés sont jalousement gardés dans les coffres forts de l'ANSM...
